Body name,Service Area Categorisation,Cost Centre Description,Detailed Expenses Type,Expenses Code,Date,Transaction Number,Amount,Supplier Name,Supplier ID
Solihull MBC,Central Services to the Public,PC Fund,IT Equipment & Software,D32000,28/05/2014,31845547,75.00,10 Squared Ltd,2115700
Solihull MBC,Central Services to the Public,PC Fund,IT Equipment & Software,D32000,28/05/2014,31845547,1399.50,10 Squared Ltd,2115700
Solihull MBC,Children & Education Services,Berkswell J&I,Capitation,D11001,06/05/2014,27952547,429.00,123Comms Ltd,3307687
Solihull MBC,Adult Social Care,ASC - Joint Stores,Furniture & Equipment,D10000,27/05/2014,31568547,760.00,1St Call Mobility Limited,687599
Solihull MBC,Children & Education Services,Monkspath J&I,Software Licenses & Support,D32906,12/05/2014,29056547,900.00,2 Simple Software Ltd,91137
Solihull MBC,Children & Education Services,Valley Inf,Training,A32000,15/05/2014,29787547,500.00,21St Century Legacy,2869687
Solihull MBC,Children & Education Services,Our Lady Compassion  J&I,IT Equipment & Software,D32000,20/05/2014,30503547,1400.00,2Simple Software Limited,66771
Solihull MBC,Children & Education Services,Dickens Hth Primary,IT Equipment & Software,D32000,01/05/2014,27785548,800.00,2Simple Software Limited,66771
Solihull MBC,Children & Education Services,Inspectors,IT Equipment & Software,D32000,21/05/2014,30914549,4164.00,3P Learning Limited,170499
Solihull MBC,Children & Education Services,Special Transport,Transport-Contract Hire,C30000,07/05/2014,28453547,592.50,A S C Birch,9523
Solihull MBC,Adult Social Care,PD Spot Comm Care - South,Clients Transport Costs,C21000,15/05/2014,29710547,540.00,A S C Birch,9523
Solihull MBC,Children & Education Services,Special Transport,Transport-Contract Hire,C30000,07/05/2014,28453547,319.39,A S C Birch,9523
Solihull MBC,Adult Social Care,LD Spot Comm Care - South,Clients Transport Costs,C21000,15/05/2014,29710547,170.00,A S C Birch,9523
Solihull MBC,Children & Education Services,Special Transport,Transport-Contract Hire,C30000,07/05/2014,28453547,664.40,A S C Birch,9523
Solihull MBC,Children & Education Services,Special Transport,Transport-Contract Hire,C30000,07/05/2014,28453547,18.27,A S C Birch,9523
Solihull MBC,Children & Education Services,Section 17 South/Central,Clients Transport Costs,C21000,15/05/2014,29710547,120.00,A S C Birch,9523
Solihull MBC,Children & Education Services,Special Transport,Transport-Contract Hire,C30000,07/05/2014,28453547,125.70,A S C Birch,9523
Solihull MBC,Children & Education Services,Sans Souci,Repair & Maintn Of Buildings,B31000,06/05/2014,28250551,470.00,A T Flooring,203158
Solihull MBC,Children & Education Services,Special Transport,Transport-Contract Hire,C30000,12/05/2014,29231549,720.00,A2B Radio Cars,9733
Solihull MBC,Children & Education Services,Special Transport,Transport-Contract Hire,C30000,12/05/2014,29231549,1080.00,A2B Radio Cars,9733
Solihull MBC,Children & Education Services,Special Transport,Transport-Contract Hire,C30000,12/05/2014,29231549,448.00,A2B Radio Cars,9733
Solihull MBC,Children & Education Services,Special Transport,Transport-Contract Hire,C30000,12/05/2014,29231549,763.20,A2B Radio Cars,9733
Solihull MBC,Children & Education Services,Special Transport,Transport-Contract Hire,C30000,12/05/2014,29231549,900.00,A2B Radio Cars,9733
Solihull MBC,Children & Education Services,Special Transport,Transport-Contract Hire,C30000,12/05/2014,29231549,675.00,A2B Radio Cars,9733
Solihull MBC,Children & Education Services,Special Transport,Transport-Contract Hire,C30000,12/05/2014,29231549,900.00,A2B Radio Cars,9733
Solihull MBC,Children & Education Services,Special Transport,Transport-Contract Hire,C30000,12/05/2014,29231549,1116.00,A2B Radio Cars,9733
Solihull MBC,Children & Education Services,Special Transport,Transport-Contract Hire,C30000,12/05/2014,29231549,10.60,A2B Radio Cars,9733
Solihull MBC,Children & Education Services,Special Transport,Transport-Contract Hire,C30000,12/05/2014,29231549,891.00,A2B Radio Cars,9733
Solihull MBC,Children & Education Services,Special Transport,Transport-Contract Hire,C30000,12/05/2014,29231549,870.00,A2B Radio Cars,9733
Solihull MBC,Children & Education Services,Special Transport,Transport-Contract Hire,C30000,12/05/2014,29231549,10.60,A2B Radio Cars,9733
Solihull MBC,Children & Education Services,Lyndon,Other Fees,D52000,20/05/2014,30658548,1000.00,AA Projects Ltd,2069661
Solihull MBC,Planning & Development Services,Craig Croft Village Centre,Consultants,Y31000,08/05/2014,28603547,1500.00,AA Projects Ltd,2069661
Solihull MBC,Children & Education Services,Berkswell J&I,Maintenance Of Grounds,B30000,06/05/2014,27956547,12039.00,Abacus Playgrounds Ltd,219768
Solihull MBC,Children & Education Services,Chapel Fields Jnr,Agency Staff: Teachers,A35001,08/05/2014,28738548,2203.75,ABC Teachers,189821
Solihull MBC,Children & Education Services,Chapel Fields Jnr,Agency Staff: Teachers,A35001,22/05/2014,31244548,1921.99,ABC Teachers,189821
Solihull MBC,Children & Education Services,Fordbridge Community Primary,Agency Staff: Teachers,A35001,20/05/2014,30627547,2567.05,ABC Teachers,189821
Solihull MBC,Children & Education Services,Fordbridge Community Primary,Agency Staff: Teachers,A35001,14/05/2014,29575547,1952.08,ABC Teachers,189821
Solihull MBC,Children & Education Services,Langley J&I,Agency Staff: Teachers,A35001,20/05/2014,30359547,349.98,ABC Teachers,189821
Solihull MBC,Children & Education Services,Chapel Fields Jnr,Agency Staff: Teachers,A35001,22/05/2014,31245548,1792.00,ABC Teachers,189821
Solihull MBC,Children & Education Services,Fordbridge Community Primary,Agency Staff: Teachers,A35001,14/05/2014,29573547,1762.09,ABC Teachers,189821
Solihull MBC,Children & Education Services,Fordbridge Community Primary,Agency Staff: Teachers,A35001,14/05/2014,29577547,2377.06,ABC Teachers,189821
Solihull MBC,Children & Education Services,Fordbridge Community Primary,Agency Staff: Teachers,A35001,14/05/2014,29579547,2187.07,ABC Teachers,189821
Solihull MBC,Children & Education Services,Langley J&I,Agency Staff: Teachers,A35001,06/05/2014,27960547,369.98,ABC Teachers,189821
Solihull MBC,Children & Education Services,Bishop Wilson J&I,Agency Staff: Teachers,A35001,21/05/2014,30845548,599.98,ABC Teachers,189821
Solihull MBC,Children & Education Services,Chapel Fields Jnr,Agency Staff: Teachers,A35001,08/05/2014,28736548,559.97,ABC Teachers,189821
Solihull MBC,Adult Social Care,ASC - Joint Stores,Furniture & Equipment,D10000,30/05/2014,32133547,733.33,Ability Superstore,5534686
Solihull MBC,Adult Social Care,OP - North Spot Comm Care,ASC - Nursing Care Permanent,E20005,07/05/2014,28497547,1485.90,Absolute Care Homes,2869686
Solihull MBC,Adult Social Care,OP - Sol Hos Spot Comm Care,ASC - Nursing Care Permanent,E20005,07/05/2014,28497548,1284.60,Absolute Care Homes,2869686
Solihull MBC,Children & Education Services,Section 17 South/Central,Clients Expenses,D62000,27/05/2014,31651547,335.17,Absolute Interpreting & Translation Ltd,169778
Solihull MBC,Children & Education Services,Int. Fostering Chelmsley Wood,Other Contracted Services,E29000,21/05/2014,30680547,3202.86,Access 2 Choice Ltd,5446687
Solihull MBC,Adult Social Care,SP - Ment Disordered Offenders,Other Contracted Services,E29000,20/05/2014,30331548,2002.00,Accord Housing Association,23450
Solihull MBC,Adult Social Care,SP - Generic,Block Contracts,E21001,20/05/2014,30331547,396.93,Accord Housing Association,23450
Solihull MBC,Adult Social Care,OP - Extra Care Contract,ASC - Extra Care,E20007,12/05/2014,29231566,22570.11,Accord Housing Association,23450
Solihull MBC,Adult Social Care,OP - Extra Care Contract,ASC - Extra Care,E20007,12/05/2014,29231566,22570.17,Accord Housing Association,23450
Solihull MBC,Adult Social Care,SP - Old People Support Needs,Block Contracts,E21001,20/05/2014,30331549,7095.40,Accord Housing Association,23450
Solihull MBC,Adult Social Care,OP - Extra Care Contract,ASC - Extra Care,E20007,12/05/2014,29231566,-22570.17,Accord Housing Association,23450
Solihull MBC,Adult Social Care,Silver Birches Block,ASC - Residential Care Permanent,E20003,27/05/2014,31598600,1707.38,Accord Housing Asssociation,60226
Solihull MBC,Adult Social Care,Silver Birches Block,ASC - Residential Care Permanent,E20003,27/05/2014,31598561,1365.99,Accord Housing Asssociation,60226
Solihull MBC,Adult Social Care,Silver Birches Block,ASC - Residential Care Permanent,E20003,27/05/2014,31598562,1970.06,Accord Housing Asssociation,60226
Solihull MBC,Adult Social Care,Silver Birches Block,ASC - Residential Care Permanent,E20003,27/05/2014,31598568,1211.36,Accord Housing Asssociation,60226
Solihull MBC,Adult Social Care,Silver Birches Block,ASC - Residential Care Permanent,E20003,27/05/2014,31598573,1482.39,Accord Housing Asssociation,60226
Solihull MBC,Adult Social Care,Silver Birches Block,ASC - Residential Care Permanent,E20003,27/05/2014,31598575,1332.30,Accord Housing Asssociation,60226
Solihull MBC,Adult Social Care,Silver Birches Block,ASC - Residential Care Permanent,E20003,27/05/2014,31598586,262.68,Accord Housing Asssociation,60226
Solihull MBC,Adult Social Care,Silver Birches Block,ASC - Residential Care Permanent,E20003,27/05/2014,31598591,1334.32,Accord Housing Asssociation,60226
Solihull MBC,Adult Social Care,Silver Birches Block,ASC - Residential Care Permanent,E20003,27/05/2014,31598596,1279.67,Accord Housing Asssociation,60226
Solihull MBC,Adult Social Care,Silver Birches Block,ASC - Residential Care Permanent,E20003,27/05/2014,31598599,591.02,Accord Housing Asssociation,60226
Solihull MBC,Adult Social Care,Silver Birches Block,ASC - Residential Care Permanent,E20003,27/05/2014,31598569,1034.27,Accord Housing Asssociation,60226
Solihull MBC,Adult Social Care,Silver Birches Block,ASC - Residential Care Permanent,E20003,27/05/2014,31598585,1412.19,Accord Housing Asssociation,60226
Solihull MBC,Adult Social Care,Silver Birches Block,ASC - Residential Care Permanent,E20003,27/05/2014,31598598,1576.05,Accord Housing Asssociation,60226
Solihull MBC,Adult Social Care,Silver Birches Block,ASC - Residential Care Permanent,E20003,27/05/2014,31598601,985.03,Accord Housing Asssociation,60226
Solihull MBC,Adult Social Care,Silver Birches Block,ASC - Residential Care Permanent,E20003,27/05/2014,31598588,1970.06,Accord Housing Asssociation,60226
Solihull MBC,Adult Social Care,Silver Birches Block,ASC - Residential Care Permanent,E20003,27/05/2014,31598560,1449.35,Accord Housing Asssociation,60226
Solihull MBC,Adult Social Care,Silver Birches Block,ASC - Residential Care Permanent,E20003,27/05/2014,31598564,1431.43,Accord Housing Asssociation,60226
Solihull MBC,Adult Social Care,Silver Birches Block,ASC - Residential Care Permanent,E20003,27/05/2014,31598576,1428.95,Accord Housing Asssociation,60226
Solihull MBC,Adult Social Care,Silver Birches Block,ASC - Residential Care Permanent,E20003,27/05/2014,31598577,1551.13,Accord Housing Asssociation,60226
Solihull MBC,Adult Social Care,Silver Birches Block,ASC - Residential Care Permanent,E20003,27/05/2014,31598580,1275.99,Accord Housing Asssociation,60226
Solihull MBC,Adult Social Care,Silver Birches Block,ASC - Residential Care Permanent,E20003,27/05/2014,31598581,1479.35,Accord Housing Asssociation,60226
Solihull MBC,Adult Social Care,Silver Birches Block,ASC - Residential Care Permanent,E20003,27/05/2014,31598583,1431.99,Accord Housing Asssociation,60226
Solihull MBC,Adult Social Care,Silver Birches Block,ASC - Residential Care Permanent,E20003,27/05/2014,31598587,1392.43,Accord Housing Asssociation,60226
Solihull MBC,Adult Social Care,Silver Birches Block,ASC - Residential Care Permanent,E20003,27/05/2014,31598592,1372.16,Accord Housing Asssociation,60226
Solihull MBC,Adult Social Care,Silver Birches Block,ASC - Residential Care Permanent,E20003,27/05/2014,31598597,1050.70,Accord Housing Asssociation,60226
Solihull MBC,Adult Social Care,Silver Birches Block,ASC - Residential Care Permanent,E20003,27/05/2014,31598570,1327.03,Accord Housing Asssociation,60226
Solihull MBC,Adult Social Care,Silver Birches Block,ASC - Residential Care Permanent,E20003,27/05/2014,31598571,1449.35,Accord Housing Asssociation,60226
Solihull MBC,Adult Social Care,Silver Birches Block,ASC - Residential Care Permanent,E20003,27/05/2014,31598582,1449.35,Accord Housing Asssociation,60226
Solihull MBC,Adult Social Care,Prior Year Spot PMT 12/13,ASC - Residential Care Permanent,E20003,27/05/2014,31598562,3940.11,Accord Housing Asssociation,60226
Solihull MBC,Adult Social Care,Prior Year Spot PMT 12/13,ASC - Residential Care Permanent,E20003,27/05/2014,31598602,985.03,Accord Housing Asssociation,60226
Solihull MBC,Adult Social Care,Silver Birches Block,ASC - Residential Care Permanent,E20003,27/05/2014,31598565,1259.32,Accord Housing Asssociation,60226
Solihull MBC,Adult Social Care,Silver Birches Block,ASC - Residential Care Permanent,E20003,27/05/2014,31598566,1204.89,Accord Housing Asssociation,60226
Solihull MBC,Adult Social Care,Silver Birches Block,ASC - Residential Care Permanent,E20003,27/05/2014,31598567,1426.33,Accord Housing Asssociation,60226
Solihull MBC,Adult Social Care,Silver Birches Block,ASC - Residential Care Permanent,E20003,27/05/2014,31598574,1337.83,Accord Housing Asssociation,60226
Solihull MBC,Adult Social Care,Silver Birches Block,ASC - Residential Care Permanent,E20003,27/05/2014,31598578,1392.56,Accord Housing Asssociation,60226
Solihull MBC,Adult Social Care,Silver Birches Block,ASC - Residential Care Permanent,E20003,27/05/2014,31598595,640.97,Accord Housing Asssociation,60226
Solihull MBC,Adult Social Care,Prior Year Spot PMT 12/13,ASC - Residential Care Permanent,E20003,27/05/2014,31598586,5975.84,Accord Housing Asssociation,60226
Solihull MBC,Adult Social Care,Silver Birches Block,ASC - Residential Care Permanent,E20003,27/05/2014,31598572,394.01,Accord Housing Asssociation,60226
Solihull MBC,Adult Social Care,Silver Birches Block,ASC - Residential Care Permanent,E20003,27/05/2014,31598593,1331.27,Accord Housing Asssociation,60226
Solihull MBC,Adult Social Care,Silver Birches Block,ASC - Residential Care Permanent,E20003,27/05/2014,31598594,1422.60,Accord Housing Asssociation,60226
Solihull MBC,Adult Social Care,Silver Birches Block,ASC - Residential Care Permanent,E20003,27/05/2014,31598590,1483.42,Accord Housing Asssociation,60226
Solihull MBC,Adult Social Care,Silver Birches Block,ASC - Residential Care Permanent,E20003,27/05/2014,31598589,1427.92,Accord Housing Asssociation,60226
Solihull MBC,Adult Social Care,Silver Birches Block,ASC - Residential Care Permanent,E20003,27/05/2014,31598584,1466.49,Accord Housing Asssociation,60226
Solihull MBC,Adult Social Care,Silver Birches Block,ASC - Residential Care Permanent,E20003,27/05/2014,31598579,1443.82,Accord Housing Asssociation,60226
Solihull MBC,Adult Social Care,Silver Birches Block,ASC - Residential Care Permanent,E20003,27/05/2014,31598603,3611.77,Accord Housing Asssociation,60226
Solihull MBC,Adult Social Care,Silver Birches Block,ASC - Residential Care Permanent,E20003,27/05/2014,31598563,1449.35,Accord Housing Asssociation,60226
Solihull MBC,Adult Social Care,Silver Birches Block,ASC - Residential Care Permanent,E20003,27/05/2014,31598559,1312.12,Accord Housing Asssociation,60226
Solihull MBC,Adult Social Care,Silver Birches Block,ASC - Residential Care Permanent,E20003,27/05/2014,31598604,-525.35,Accord Housing Asssociation,60226
Solihull MBC,Children & Education Services,St Peter's,Building Maint Day To Day,B31001,13/05/2014,29241547,300.00,Ace Cleaning Company,48575
Solihull MBC,Central Services to the Public,Recovery Account,Liability Insurance,D94000,12/05/2014,29211547,15175.14,Ace European Group Ltd,121548
Solihull MBC,Children & Education Services,Greswold J&I,Visits & Pupil Activities,D52002,23/05/2014,31481547,6062.40,Acorn Adventure,70201
Solihull MBC,Other Housing Services,Policy + Spatial Planning,Professional Fees,D51000,13/05/2014,29376548,4650.00,Act On Energy,2677692
Solihull MBC,Children & Education Services,Marston Green Jnr,Visits & Pupil Activities,D52002,07/05/2014,28295548,6031.67,Action Centres UK Ltd,34763
Solihull MBC,Highways & Transport Services,Car Parks Expenditure,Furniture & Equipment,D10000,19/05/2014,30207547,485.00,Action Graphics (Bham) Ltd,10043
Solihull MBC,Highways & Transport Services,Car Parks Expenditure,Furniture & Equipment,D10000,19/05/2014,30144547,460.70,Action Graphics (Bham) Ltd,10043
Solihull MBC,Children & Education Services,Hazel Oak,Capitation,D11001,06/05/2014,28248547,762.13,Activate,687635
Solihull MBC,Children & Education Services,Section 17 South/Central,Clients Expenses,D62000,19/05/2014,30148547,250.00,Active Angels,131744
Solihull MBC,Children & Education Services,2Yr Old Free E Learn/Care,Grant & Subscription (SCITT),D92000,19/05/2014,30227572,1650.00,Active Angels,131744
Solihull MBC,Children & Education Services,Lyndon,IT Equipment & Software,D32000,15/05/2014,29714547,1380.00,Active Communications,105267
Solihull MBC,Children & Education Services,Smith's Wood Community Primary,IT Equipment & Software,D32000,21/05/2014,30798547,788.00,Active Visual Supplies Ltd,57805
Solihull MBC,Central Services to the Public,PC Fund,IT Equipment & Software,D32000,13/05/2014,29256548,380.00,Active Visual Supplies Ltd,57805
Solihull MBC,Children & Education Services,Mill Lodge J&I,IT Equipment & Software,D32000,08/05/2014,28575547,276.00,Active Visual Supplies Ltd,57805
Solihull MBC,Children & Education Services,St Peter's,Capitation,D11001,01/05/2014,27684547,668.00,Active Visual Supplies Ltd,57805
Solihull MBC,Children & Education Services,Streetsbrook Inf,Consumables,D32907,15/05/2014,29850547,368.00,Active Visual Supplies Ltd,57805
Solihull MBC,Children & Education Services,St Peter's,Capitation,D11001,01/05/2014,27684547,100.00,Active Visual Supplies Ltd,57805
Solihull MBC,Central Services to the Public,PC Fund,IT Equipment & Software,D32000,13/05/2014,29256548,433.00,Active Visual Supplies Ltd,57805
Solihull MBC,Children & Education Services,Smith's Wood Community Primary,IT Equipment & Software,D32000,08/05/2014,28623547,259.60,Active Visual Supplies Ltd,57805
Solihull MBC,Children & Education Services,Smith's Wood Community Primary,IT Equipment & Software,D32000,15/05/2014,29700547,788.00,Active Visual Supplies Ltd,57805
Solihull MBC,Central Services to the Public,CSW Resilience,Furniture & Equipment,D10000,12/05/2014,29070548,674.00,Active Visual Supplies Ltd,57805
Solihull MBC,Central Services to the Public,PC Fund,IT Equipment & Software,D32000,13/05/2014,29256548,151.00,Active Visual Supplies Ltd,57805
Solihull MBC,Children & Education Services,St Peter's,Capitation,D11001,01/05/2014,27684547,900.00,Active Visual Supplies Ltd,57805
Solihull MBC,Children & Education Services,St Peter's,Capitation,D11001,01/05/2014,27684547,198.00,Active Visual Supplies Ltd,57805
Solihull MBC,Children & Education Services,Sans Souci,Repair & Maintn Of Buildings,B31000,27/05/2014,31630547,423.00,Active Visual Supplies Ltd,57805
Solihull MBC,Central Services to the Public,PC Fund,IT Equipment & Software,D32000,13/05/2014,29256548,131.00,Active Visual Supplies Ltd,57805
Solihull MBC,Children & Education Services,Smith's Wood Community Primary,IT Equipment & Software,D32000,08/05/2014,28623547,1038.40,Active Visual Supplies Ltd,57805
Solihull MBC,Central Services to the Public,PC Fund,IT Equipment & Software,D32000,13/05/2014,29256548,75.00,Active Visual Supplies Ltd,57805
Solihull MBC,Central Services to the Public,Commissioning,Training,A32000,23/05/2014,31338547,300.00,Adass,229700
Solihull MBC,Children & Education Services,Adoption Team,Professional Fees,D51000,27/05/2014,31597547,250.00,Adoption UK,10219
Solihull MBC,Children & Education Services,Smith's Wood Community Primary,Professional Fees,D51000,15/05/2014,29697548,700.00,Adrienne Cave,2251686
Solihull MBC,Children & Education Services,Yorkswood J&I,Alarms,B43002,14/05/2014,29592548,905.67,ADT Fire & Security PLC,10132
Solihull MBC,Children & Education Services,Oak Cottage J&I,Alarms,B43002,08/05/2014,28567548,280.72,ADT Fire & Security PLC,10132
Solihull MBC,Central Services to the Public,ICT: Data Centre,IT Equipment & Software,D32000,06/05/2014,27924547,647.56,ADT Fire & Security PLC,10132
Solihull MBC,Children & Education Services,Our Lady Wayside J&I,Alarms,B43002,28/05/2014,31947550,283.70,ADT Fire & Security PLC,10132
Solihull MBC,Children & Education Services,Streetsbrook Inf,Alarms,B43002,06/05/2014,28248548,475.99,ADT Fire & Security PLC,10132
Solihull MBC,Children & Education Services,Smith's Wood Community Primary,Health & Safety,B43003,15/05/2014,29703547,1518.96,ADT Fire & Security PLC,10132
Solihull MBC,Central Services to the Public,ICT: Data Centre,IT Equipment & Software,D32000,06/05/2014,27926547,-402.73,ADT Fire & Security PLC,10132
Solihull MBC,Children & Education Services,St Peter's,Alarms,B43002,19/05/2014,30279547,456.64,ADT Fire And Security  PLC,206540
Solihull MBC,Children & Education Services,Hazel Oak,Consumables,D32907,23/05/2014,31491547,789.95,Advantage Business Components Ltd,234165
Solihull MBC,Environmental and Regulatory Services,Trading Standards,Grant & Subscription (SCITT),D92000,20/05/2014,30619547,252.00,Aea Environment,2191774
Solihull MBC,Other Housing Services,Discretionary Hsg Payments,Clients Expenses,D62000,15/05/2014,29858548,2000.00,Age Concern,5184
Solihull MBC,Other Housing Services,LWP - Crisis Awards,Grant & Subscription (SCITT),D92000,15/05/2014,29723547,4500.00,Age Concern,5184
Solihull MBC,Adult Social Care,SP - Old People Support Needs,Block Contracts,E21001,20/05/2014,30331550,6200.40,Age Concern Solihull,958597
Solihull MBC,Adult Social Care,ASC - Careers Services,Other Contracted Services,E29000,27/05/2014,31749551,30000.00,Age UK Solihull,2205695
Solihull MBC,Highways & Transport Services,Streetcare-Cleanse/Ground,Other Contracted Services,E29000,14/05/2014,29551550,425.00,Agripa Solutions,247492
Solihull MBC,Central Services to the Public,Contact Service Support,IT Equipment & Software,D32000,20/05/2014,30645548,327.60,Agx Holdings Ltd,127770
Solihull MBC,Adult Social Care,ASC - Joint Stores,Furniture & Equipment,D10000,01/05/2014,27774560,11.64,Aidapt Bathrooms Ltd,687651
Solihull MBC,Adult Social Care,ASC - Joint Stores,Furniture & Equipment,D10000,07/05/2014,28318547,132.00,Aidapt Bathrooms Ltd,687651
Solihull MBC,Adult Social Care,ASC - Joint Stores,Furniture & Equipment,D10000,20/05/2014,30636548,378.48,Aidapt Bathrooms Ltd,687651
Solihull MBC,Adult Social Care,ASC - Joint Stores,Furniture & Equipment,D10000,20/05/2014,30636548,491.28,Aidapt Bathrooms Ltd,687651
Solihull MBC,Adult Social Care,ASC - Joint Stores,Furniture & Equipment,D10000,07/05/2014,28318547,124.80,Aidapt Bathrooms Ltd,687651
Solihull MBC,Adult Social Care,ASC - Joint Stores,Furniture & Equipment,D10000,07/05/2014,28318547,97.00,Aidapt Bathrooms Ltd,687651
Solihull MBC,Adult Social Care,ASC - Joint Stores,Furniture & Equipment,D10000,13/05/2014,29254548,287.28,Aidapt Bathrooms Ltd,687651
Solihull MBC,Adult Social Care,ASC - Joint Stores,Furniture & Equipment,D10000,28/05/2014,31910548,29.64,Aidapt Bathrooms Ltd,687651
Solihull MBC,Adult Social Care,ASC - Joint Stores,Furniture & Equipment,D10000,28/05/2014,31910548,527.28,Aidapt Bathrooms Ltd,687651
Solihull MBC,Adult Social Care,ASC - Joint Stores,Furniture & Equipment,D10000,01/05/2014,27774560,491.28,Aidapt Bathrooms Ltd,687651
Solihull MBC,Adult Social Care,ASC - Joint Stores,Furniture & Equipment,D10000,07/05/2014,28318547,309.60,Aidapt Bathrooms Ltd,687651
Solihull MBC,Adult Social Care,ASC - Joint Stores,Furniture & Equipment,D10000,28/05/2014,31910548,240.00,Aidapt Bathrooms Ltd,687651
Solihull MBC,Adult Social Care,ASC - Joint Stores,Furniture & Equipment,D10000,01/05/2014,27774560,455.28,Aidapt Bathrooms Ltd,687651
Solihull MBC,Adult Social Care,ASC - Joint Stores,Furniture & Equipment,D10000,13/05/2014,29254548,491.28,Aidapt Bathrooms Ltd,687651
Solihull MBC,Adult Social Care,ASC - Joint Stores,Furniture & Equipment,D10000,01/05/2014,27774560,287.28,Aidapt Bathrooms Ltd,687651
Solihull MBC,Adult Social Care,ASC - Joint Stores,Furniture & Equipment,D10000,07/05/2014,28318547,480.00,Aidapt Bathrooms Ltd,687651
Solihull MBC,Adult Social Care,ASC - Joint Stores,Furniture & Equipment,D10000,13/05/2014,29254548,720.00,Aidapt Bathrooms Ltd,687651
Solihull MBC,Adult Social Care,ASC - Joint Stores,Furniture & Equipment,D10000,06/05/2014,28250558,461.00,Aidservice Ltd,197178
Solihull MBC,Adult Social Care,OP South Spot Comm Care,ASC - Nursing Care Permanent,E20005,16/05/2014,29939674,1291.63,Akari Care Ltd,2677701
Solihull MBC,Adult Social Care,OP - North Spot Comm Care,ASC - Nursing Care Permanent,E20005,16/05/2014,29939673,1257.81,Akari Care Ltd,2677701
Solihull MBC,Children & Education Services,St Augustine's J&I,Cleaning Contracts,B40001,09/05/2014,28846547,1015.31,A-Kleen Cleaning Services,105447
Solihull MBC,Children & Education Services,Forest Oak,Alarms,B43002,20/05/2014,30554548,420.00,Alarm & Vision,194179
Solihull MBC,Adult Social Care,OP - North Spot Comm Care,ASC - Domiciliary Care,E20008,16/05/2014,29939689,777.00,Aldermore Invoice Finance - Plan It Home Care Ltd,4912686
Solihull MBC,Adult Social Care,Prior Year Spot PMT 12/13,ASC - Domiciliary Care,E20008,07/05/2014,28497593,1666.00,Aldermore Invoice Finance - Plan It Home Care Ltd,4912686
Solihull MBC,Adult Social Care,OP - Roundmead Reablement Team,ASC - Domiciliary Care,E20008,16/05/2014,29939688,1407.00,Aldermore Invoice Finance - Plan It Home Care Ltd,4912686
Solihull MBC,Adult Social Care,Prior Year Spot PMT 12/13,ASC - Domiciliary Care,E20008,07/05/2014,28497596,280.00,Aldermore Invoice Finance - Plan It Home Care Ltd,4912686
Solihull MBC,Adult Social Care,Prior Year Spot PMT 12/13,ASC - Out of hospital,E20012,07/05/2014,28497602,630.00,Aldermore Invoice Finance - Plan It Home Care Ltd,4912686
Solihull MBC,Adult Social Care,OP - North Spot Comm Care,ASC - Domiciliary Care,E20008,16/05/2014,29939691,840.00,Aldermore Invoice Finance - Plan It Home Care Ltd,4912686
Solihull MBC,Adult Social Care,OP South Spot Comm Care,ASC - Out of hospital,E20012,16/05/2014,29939700,700.00,Aldermore Invoice Finance - Plan It Home Care Ltd,4912686
Solihull MBC,Adult Social Care,Prior Year Spot PMT 12/13,ASC - Domiciliary Care,E20008,07/05/2014,28497587,1071.00,Aldermore Invoice Finance - Plan It Home Care Ltd,4912686
Solihull MBC,Adult Social Care,Prior Year Spot PMT 12/13,ASC - Domiciliary Care,E20008,07/05/2014,28497589,1274.00,Aldermore Invoice Finance - Plan It Home Care Ltd,4912686
Solihull MBC,Adult Social Care,OP South Spot Comm Care,ASC - Domiciliary Care,E20008,16/05/2014,29939685,2100.00,Aldermore Invoice Finance - Plan It Home Care Ltd,4912686
Solihull MBC,Adult Social Care,OP South Spot Comm Care,ASC - Domiciliary Care,E20008,16/05/2014,29939696,315.00,Aldermore Invoice Finance - Plan It Home Care Ltd,4912686
Solihull MBC,Adult Social Care,Prior Year Spot PMT 12/13,ASC - Domiciliary Care,E20008,07/05/2014,28497590,994.00,Aldermore Invoice Finance - Plan It Home Care Ltd,4912686
Solihull MBC,Adult Social Care,OP - North Spot Comm Care,ASC - Domiciliary Care,E20008,16/05/2014,29939683,1064.00,Aldermore Invoice Finance - Plan It Home Care Ltd,4912686
Solihull MBC,Adult Social Care,Prior Year Spot PMT 12/13,ASC - Domiciliary Care,E20008,07/05/2014,28497588,310.00,Aldermore Invoice Finance - Plan It Home Care Ltd,4912686
Solihull MBC,Adult Social Care,Winter Pressures,ASC - Domiciliary Care,E20008,16/05/2014,29939694,406.00,Aldermore Invoice Finance - Plan It Home Care Ltd,4912686
Solihull MBC,Adult Social Care,OP South Spot Comm Care,ASC - Domiciliary Care,E20008,16/05/2014,29939684,308.00,Aldermore Invoice Finance - Plan It Home Care Ltd,4912686
Solihull MBC,Adult Social Care,OP South Spot Comm Care,ASC - Domiciliary Care,E20008,16/05/2014,29939687,637.00,Aldermore Invoice Finance - Plan It Home Care Ltd,4912686
Solihull MBC,Adult Social Care,Prior Year Spot PMT 12/13,ASC - Domiciliary Care,E20008,07/05/2014,28497598,325.50,Aldermore Invoice Finance - Plan It Home Care Ltd,4912686
Solihull MBC,Adult Social Care,Prior Year Spot PMT 12/13,ASC - Out of hospital,E20012,07/05/2014,28497601,560.00,Aldermore Invoice Finance - Plan It Home Care Ltd,4912686
Solihull MBC,Adult Social Care,Prior Year Spot PMT 12/13,ASC - Domiciliary Care,E20008,07/05/2014,28497595,651.00,Aldermore Invoice Finance - Plan It Home Care Ltd,4912686
Solihull MBC,Adult Social Care,OP - Reablement Team Greenhill Way,ASC - Domiciliary Care,E20008,16/05/2014,29939698,1680.00,Aldermore Invoice Finance - Plan It Home Care Ltd,4912686
Solihull MBC,Adult Social Care,OP - North Spot Comm Care,ASC - Domiciliary Care,E20008,16/05/2014,29939690,1890.00,Aldermore Invoice Finance - Plan It Home Care Ltd,4912686
Solihull MBC,Adult Social Care,OP South Spot Comm Care,ASC - Domiciliary Care,E20008,16/05/2014,29939692,651.00,Aldermore Invoice Finance - Plan It Home Care Ltd,4912686
Solihull MBC,Adult Social Care,Prior Year Spot PMT 12/13,ASC - Domiciliary Care,E20008,07/05/2014,28497599,1736.00,Aldermore Invoice Finance - Plan It Home Care Ltd,4912686
Solihull MBC,Adult Social Care,Prior Year Spot PMT 12/13,ASC - Domiciliary Care,E20008,07/05/2014,28497591,1575.00,Aldermore Invoice Finance - Plan It Home Care Ltd,4912686
Solihull MBC,Adult Social Care,Prior Year Spot PMT 12/13,ASC - Domiciliary Care,E20008,07/05/2014,28497594,868.00,Aldermore Invoice Finance - Plan It Home Care Ltd,4912686
Solihull MBC,Adult Social Care,PD Spot Comm Care,ASC - Residential Care Permanent,E20003,07/05/2014,28497552,3607.54,Alexandra Centre For Physical Disability,2185686
Solihull MBC,Children & Education Services,Secondary Transport,Transport-Contract Hire,C30000,30/05/2014,32148547,2816.00,A-Line Coaches,222599
Solihull MBC,Children & Education Services,Secondary Transport,Transport-Contract Hire,C30000,08/05/2014,28534547,2288.00,A-Line Coaches,222599
Solihull MBC,Planning & Development Services,Nhood Mgt Area 1 Staff,Other Contracted Services,E29000,27/05/2014,31730547,400.00,Alison Saint,272457
Solihull MBC,Planning & Development Services,Nhood Mgt Area 1 Staff,Other Contracted Services,E29000,06/05/2014,28048547,900.00,Alison Saint,272457
Solihull MBC,Children & Education Services,Daylesford Inf,Health & Safety,B43003,22/05/2014,31073547,320.00,All Drain Solutions (Midlands) Ltd,283233
Solihull MBC,Children & Education Services,Forest Oak,Agency Staff: Teachers,A35001,12/05/2014,29229547,405.50,All Saints CE Primary School,5700686
Solihull MBC,Children & Education Services,Hatchford Brook,Contractors,Y21000,08/05/2014,28763547,7760.00,All Seasons Garden Services,283336
Solihull MBC,Children & Education Services,Yew Tree J&I,Maintenance Of Grounds,B30000,13/05/2014,29429547,327.50,All Seasons Garden Services,283336
Solihull MBC,Children & Education Services,Daylesford Before & After,Building Maint Planned,B31002,08/05/2014,28638549,2500.00,All Seasons Garden Services,283336
Solihull MBC,Children & Education Services,Daylesford Inf,Maintenance Of Grounds,B30000,08/05/2014,28638549,210.00,All Seasons Garden Services,283336
Solihull MBC,Children & Education Services,Chapel Fields Jnr,Maintenance Of Grounds,B30000,08/05/2014,28752551,324.17,All Seasons Garden Services,283336
Solihull MBC,Adult Social Care,OP - North Spot Comm Care,ASC - Residential Care Permanent,E20003,07/05/2014,28497551,961.29,Allambie Enterprise Ltd,2089647
Solihull MBC,Children & Education Services,Tidbury Green J&I,Catering Provisions,D20000,23/05/2014,31523562,1230.00,Alliance In Partnership Ltd,3585692
Solihull MBC,Adult Social Care,LD Spot Comm Care,ASC - Residential Care Permanent,E20003,07/05/2014,28497555,8085.54,Alophonsus Services Ltd,1124612
Solihull MBC,Adult Social Care,OP - North Spot Comm Care,ASC - Nursing Care Permanent,E20005,16/05/2014,29939547,1894.84,Alpha Health Care Ltd,5595
Solihull MBC,Children & Education Services,Section 17 CDT,Clients Expenses,D62000,06/05/2014,28022547,471.08,Alpha Nursing & Care Services,206961
Solihull MBC,Children & Education Services,Section 17 CDT,Clients Expenses,D62000,06/05/2014,28019547,1011.20,Alpha Nursing & Care Services,206961
Solihull MBC,Central Services to the Public,ICT: Network Support,IT Equipment & Software,D32000,15/05/2014,29641547,23874.00,Altinet Ltd,5586686
Solihull MBC,Children & Education Services,Broadband Line Rental,IT Equipment & Software,D32000,15/05/2014,29641547,26044.00,Altinet Ltd,5586686
Solihull MBC,Children & Education Services,Coppice Jnr,Furniture & Equipment,D10000,14/04/2014,PC99808,208.98,Amazon EU,Purchase Card Supplier
Solihull MBC,Children & Education Services,Marston Green Jnr,Capitation,D11001,10/04/2014,PC58184,356.86,Amazon EU,Purchase Card Supplier
Solihull MBC,Adult Social Care,PD Spot Comm Care - South,ASC - Nursing Care Permanent,E20005,12/05/2014,29197569,4717.11,Amberley Court Nursing Home,126185
Solihull MBC,Adult Social Care,OP South Spot Comm Care,ASC - Residential Care Permanent,E20003,16/05/2014,29939554,1183.89,Anchor Homes - Kerria Court,688062
Solihull MBC,Children & Education Services,Our Lady Compassion  J&I,Training,A32000,07/05/2014,28385547,230.00,Andrell Education Ltd,125363
Solihull MBC,Environmental and Regulatory Services,Bereavement Services,Other Contracted Services,E29000,15/05/2014,29670547,395.97,Angel Springs Ltd,67477
Solihull MBC,Adult Social Care,OP - North Spot Comm Care,ASC - Domiciliary Care,E20008,12/05/2014,29218580,578.22,Angels Healthcare Ltd,687666
Solihull MBC,Adult Social Care,Heart Hos Spot Comm Care,ASC - Domiciliary Care,E20008,12/05/2014,29197767,437.25,Angels Healthcare Ltd,687666
Solihull MBC,Adult Social Care,OP - North Spot Comm Care,ASC - Domiciliary Care,E20008,12/05/2014,29197781,732.00,Angels Healthcare Ltd,687666
Solihull MBC,Adult Social Care,OP - North Spot Comm Care,ASC - Domiciliary Care,E20008,12/05/2014,29218582,378.20,Angels Healthcare Ltd,687666
Solihull MBC,Adult Social Care,OP - North Spot Comm Care,ASC - Domiciliary Care,E20008,12/05/2014,29197760,255.06,Angels Healthcare Ltd,687666
Solihull MBC,Adult Social Care,OP - North Spot Comm Care,ASC - Domiciliary Care,E20008,12/05/2014,29218581,640.50,Angels Healthcare Ltd,687666
Solihull MBC,Adult Social Care,OP - Roundmead Reablement Team,ASC - Domiciliary Care,E20008,12/05/2014,29218583,420.90,Angels Healthcare Ltd,687666
Solihull MBC,Adult Social Care,OP - North Spot Comm Care,ASC - Out of hospital,E20012,12/05/2014,29197774,375.00,Angels Healthcare Ltd,687666
Solihull MBC,Adult Social Care,OP - North Spot Comm Care,ASC - Domiciliary Care,E20008,12/05/2014,29197780,545.95,Angels Healthcare Ltd,687666
Solihull MBC,Adult Social Care,OP - North Spot Comm Care,ASC - Domiciliary Care,E20008,12/05/2014,29197779,1006.50,Angels Healthcare Ltd,687666
Solihull MBC,Adult Social Care,OP - Roundmead Reablement Team,ASC - Domiciliary Care,E20008,12/05/2014,29197761,477.00,Angels Healthcare Ltd,687666
Solihull MBC,Adult Social Care,OP - Roundmead Reablement Team,ASC - Domiciliary Care,E20008,12/05/2014,29197764,882.45,Angels Healthcare Ltd,687666
Solihull MBC,Adult Social Care,OP - Roundmead Reablement Team,ASC - Domiciliary Care,E20008,12/05/2014,29197763,397.50,Angels Healthcare Ltd,687666
Solihull MBC,Adult Social Care,OP - Roundmead Reablement Team,ASC - Domiciliary Care,E20008,12/05/2014,29197765,351.13,Angels Healthcare Ltd,687666
Solihull MBC,Adult Social Care,OP - Roundmead Reablement Team,ASC - Domiciliary Care,E20008,12/05/2014,29197770,457.12,Angels Healthcare Ltd,687666
Solihull MBC,Children & Education Services,Monkspath J&I,Capitation,D11001,08/05/2014,28591547,220.00,Ann Arbor Publishers Ltd,5917
Solihull MBC,Adult Social Care,Bacons End,Catering Provisions,D20000,06/05/2014,27984547,436.74,Apetito Ltd,59270
Solihull MBC,Adult Social Care,OP South Spot Comm Care,ASC - Day Care,E20010,21/05/2014,30896551,585.00,Apna Ghar(1995) Ltd,6039
Solihull MBC,Adult Social Care,OP South Spot Comm Care,ASC - Day Care,E20010,21/05/2014,30896554,350.00,Apna Ghar(1995) Ltd,6039
Solihull MBC,Children & Education Services,Smith's Wood,Meetings & Other Expenses,D61002,20/05/2014,30654549,358.10,Aquaid,71388
Solihull MBC,Children & Education Services,S.C.I.L. School Joint Costs,Other Premise Costs,B43000,06/05/2014,28065547,1520.40,Aquaid,71388
Solihull MBC,Children & Education Services,Greswold J&I,Capitation,D11001,09/05/2014,28985547,208.40,Aquaid,71388
Solihull MBC,Adult Social Care,ASC - Joint Stores,Furniture & Equipment,D10000,15/05/2014,29802547,15.00,"Aquajoy Bathlifts Ltd.,",687669
Solihull MBC,Adult Social Care,ASC - Joint Stores,Furniture & Equipment,D10000,15/05/2014,29802547,195.00,"Aquajoy Bathlifts Ltd.,",687669
Solihull MBC,Adult Social Care,ASC - Joint Stores,Furniture & Equipment,D10000,15/05/2014,29802547,60.00,"Aquajoy Bathlifts Ltd.,",687669
Solihull MBC,Adult Social Care,ASC - Joint Stores,Furniture & Equipment,D10000,15/05/2014,29802547,60.00,"Aquajoy Bathlifts Ltd.,",687669
Solihull MBC,Adult Social Care,ASC - Joint Stores,Furniture & Equipment,D10000,15/05/2014,29802547,-195.00,"Aquajoy Bathlifts Ltd.,",687669
Solihull MBC,Adult Social Care,ASC - Joint Stores,Furniture & Equipment,D10000,15/05/2014,29802547,195.00,"Aquajoy Bathlifts Ltd.,",687669
Solihull MBC,Cultural & Related Services,Arts Complex Hirings,Advertising/Publicity/Promotion,D93000,27/05/2014,31558547,513.39,Arcane Direct Marketing,25105
Solihull MBC,Cultural & Related Services,Arts Complex Hirings,Advertising/Publicity/Promotion,D93000,27/05/2014,31559547,1887.57,Arcane Direct Marketing,25105
Solihull MBC,Children & Education Services,Academy & Contingency SEN,Other Contracted Services,E29000,22/05/2014,30927550,2640.00,Archway Community College,1872614
Solihull MBC,Children & Education Services,Academy & Contingency SEN,Other Contracted Services,E29000,07/05/2014,28303547,4800.00,Archway Community College,1872614
Solihull MBC,Children & Education Services,Education Otherwise,Other Contracted Services,E29000,23/05/2014,31248547,14400.00,Archway Community College,1872614
Solihull MBC,Highways & Transport Services,Traffic Regulation Orders,Other Fees,D52000,27/05/2014,31634547,750.00,Arden Academy Trust,483596
Solihull MBC,Adult Social Care,Sexual Health,Other Contracted Services,E29000,06/05/2014,28135547,83.00,Arden Medical Centre,61904
Solihull MBC,Adult Social Care,Primary Prevention,Other Contracted Services,E29000,06/05/2014,28135547,875.00,Arden Medical Centre,61904
Solihull MBC,Adult Social Care,Sexual Health,Other Contracted Services,E29000,06/05/2014,28135547,818.00,Arden Medical Centre,61904
Solihull MBC,Adult Social Care,1 Truro Walk,Rents For Premises,B22000,06/05/2014,28113547,460.00,Ardenfield Development Comp. LTD,687670
Solihull MBC,Adult Social Care,OP - Sol Hos Spot Comm Care,ASC - Nursing Care Permanent,E20005,12/05/2014,29197563,1491.26,Ardenlea Court,96816
Solihull MBC,Adult Social Care,OP - North Spot Comm Care,ASC - Nursing Care Permanent,E20005,12/05/2014,29197561,2921.14,Ardenlea Court,96816
Solihull MBC,Adult Social Care,OP South Spot Comm Care,ASC - Nursing Care Permanent,E20005,12/05/2014,29197562,3688.41,Ardenlea Court,96816
Solihull MBC,Adult Social Care,OP South Spot Comm Care,ASC - Nursing Care Permanent,E20005,12/05/2014,29197565,2701.16,Ardenlea Grove,688097
Solihull MBC,Adult Social Care,OP South Spot Comm Care,ASC - Nursing Care Permanent,E20005,12/05/2014,29197568,1514.91,Ardenlea Grove,688097
Solihull MBC,Adult Social Care,OP - North Spot Comm Care,ASC - Nursing Care Permanent,E20005,12/05/2014,29197566,1374.13,Ardenlea Grove,688097
Solihull MBC,Adult Social Care,OP South Spot Comm Care,ASC - Nursing Care Permanent,E20005,12/05/2014,29197567,1547.66,Ardenlea Grove,688097
Solihull MBC,Adult Social Care,PD Spot Comm Care - South,ASC - Nursing Care Permanent,E20005,12/05/2014,29197564,3289.50,Ardenlea Grove,688097
Solihull MBC,Adult Social Care,Winter Pressures,Other Contracted Services,E29000,08/05/2014,28754547,30000.00,Ardenlea Grove Nursing Home,93742
Solihull MBC,Adult Social Care,Winter Pressures,Other Contracted Services,E29000,08/05/2014,28754549,-1500.00,Ardenlea Grove Nursing Home,93742
Solihull MBC,Adult Social Care,7 Downing Close,Furniture & Equipment,D10000,08/04/2014,PC23829,229.99,Argos Ltd,Purchase Card Supplier
Solihull MBC,Adult Social Care,7 Downing Close,Furniture & Equipment,D10000,08/04/2014,PC23836,359.97,Argos Ltd,Purchase Card Supplier
Solihull MBC,Children & Education Services,Fieldwork Sector And Court,General Office Expenses,D42000,14/04/2014,PC61294,237.32,Argos Retail Group,Purchase Card Supplier
Solihull MBC,Children & Education Services,UASC 18+,Client Leaving Care Grant,D62020,28/04/2014,PC45988,436.59,Argos Retail Group,Purchase Card Supplier
Solihull MBC,Children & Education Services,ATC-CSW 18+ Client Team 1,Client Leaving Care Grant,D62020,22/04/2014,PC78623,438.93,Argos Retail Group,Purchase Card Supplier
Solihull MBC,Adult Social Care,ASC - Joint Stores,Furniture & Equipment,D10000,01/05/2014,27718557,7852.00,Arjohuntleigh,3307691
Solihull MBC,Adult Social Care,ASC - Joint Stores,Furniture & Equipment,D10000,01/05/2014,27718559,7852.00,Arjohuntleigh,3307691
Solihull MBC,Adult Social Care,ASC - Joint Stores,Furniture & Equipment,D10000,29/05/2014,32056547,6577.00,Arjohuntleigh,3307691
Solihull MBC,Adult Social Care,ASC - Joint Stores,Furniture & Equipment,D10000,29/05/2014,32056547,750.00,Arjohuntleigh,3307691
Solihull MBC,Adult Social Care,ASC - Joint Stores,Furniture & Equipment,D10000,01/05/2014,27718556,7852.00,Arjohuntleigh,3307691
Solihull MBC,Adult Social Care,Primary Prevention,Other Contracted Services,E29000,14/05/2014,29540547,1760.00,Arran Medical Centre,91809
Solihull MBC,Adult Social Care,Sexual Health,Other Contracted Services,E29000,14/05/2014,29540547,1218.29,Arran Medical Centre,91809
Solihull MBC,Adult Social Care,Sexual Health,Other Contracted Services,E29000,14/05/2014,29540547,210.94,Arran Medical Centre,91809
Solihull MBC,Children & Education Services,LDC Stores,Cleaning,B40000,22/05/2014,31130547,1049.44,Arrow County Supplies,6340
Solihull MBC,Children & Education Services,LDC Stores,Cleaning,B40000,23/05/2014,31469548,0.03,Arrow County Supplies,6340
Solihull MBC,Children & Education Services,LDC Stores,Cleaning,B40000,23/05/2014,31308547,354.15,Arrow County Supplies,6340
Solihull MBC,Children & Education Services,LDC Stores,Cleaning,B40000,22/05/2014,31153547,990.45,Arrow County Supplies,6340
Solihull MBC,Children & Education Services,LDC Stores,Cleaning,B40000,23/05/2014,31321547,371.61,Arrow County Supplies,6340
Solihull MBC,Children & Education Services,LDC Stores,Cleaning,B40000,23/05/2014,31469548,258.90,Arrow County Supplies,6340
Solihull MBC,Children & Education Services,Monkspath,Catering Provisions,D20000,30/05/2014,32141615,661.86,Arthur Brett Catering Ltd,6373
Solihull MBC,Children & Education Services,Monkspath,Catering Provisions,D20000,30/05/2014,32141616,-579.96,Arthur Brett Catering Ltd,6373
Solihull MBC,Children & Education Services,Coppice Jnr,Professional Fees,D51000,02/05/2014,27823547,7260.00,Artis Education Ltd,239663
Solihull MBC,Children & Education Services,Yew Tree J&I,Professional Fees,D51000,01/05/2014,27744548,1815.00,Artis Education Ltd,239663
Solihull MBC,Children & Education Services,Sharmans Cross Jnr,Professional Fees,D51000,15/05/2014,29906549,7260.00,Artis Education Ltd,239663
Solihull MBC,Children & Education Services,Lyndon,Training,A32000,20/05/2014,30513547,280.00,Ascl Professional Development Ltd,2463689
Solihull MBC,Children & Education Services,Bishop Wilson J&I,Capitation,D11001,07/04/2014,PC55588,248.95,Asda  Direct Web 4387,Purchase Card Supplier
Solihull MBC,Cultural & Related Services,Park Rangers,Materials,D11000,25/04/2014,PC73297,250.00,Asda Stores 5881,Purchase Card Supplier
Solihull MBC,Highways & Transport Services,Car Parks Expenditure,Repair & Maintn Of Buildings,B31000,19/05/2014,30205547,1125.00,Ashdown Phillips & Partners Ltd,2424758
Solihull MBC,Environmental and Regulatory Services,Bereavement Services,Materials,D11000,08/05/2014,28565547,230.40,Ashdown Supplies,23205
Solihull MBC,Children & Education Services,Section 17 Smiths Wood,Clients Expenses,D62000,12/05/2014,29047548,1289.45,Ashleigh Nursery School,2633831
Solihull MBC,Adult Social Care,OP South Spot Comm Care,ASC - Residential Care Permanent,E20003,16/05/2014,29939548,625.80,Ashley Lodge,6517
Solihull MBC,Adult Social Care,Healthy Standrd of Living,Other Contracted Services,E29000,27/05/2014,31686547,1500.00,Ashram Housing Association,247211
Solihull MBC,Adult Social Care,SP - Black & Ethnic Minority,Block Contracts,E21001,20/05/2014,30331551,2723.48,Ashram Housing Association Ltd,65191
Solihull MBC,Cultural & Related Services,Libraries Resources Fund,Materials,D11000,15/05/2014,29804547,222.49,Askews Library Services Ltd,6562
Solihull MBC,Cultural & Related Services,Libraries Resources Fund,Materials,D11000,27/05/2014,31721547,17.61,Askews Library Services Ltd,6562
Solihull MBC,Cultural & Related Services,Libraries Resources Fund,Materials,D11000,12/05/2014,29039547,1000.47,Askews Library Services Ltd,6562
Solihull MBC,Cultural & Related Services,Libraries Resources Fund,Materials,D11000,15/05/2014,29628549,645.72,Askews Library Services Ltd,6562
Solihull MBC,Cultural & Related Services,Libraries Resources Fund,Materials,D11000,15/05/2014,29628549,304.51,Askews Library Services Ltd,6562
Solihull MBC,Cultural & Related Services,Libraries Resources Fund,Materials,D11000,27/05/2014,31721547,426.89,Askews Library Services Ltd,6562
Solihull MBC,Cultural & Related Services,Libraries Resources Fund,Materials,D11000,30/05/2014,32158548,549.56,Askews Library Services Ltd,6562
Solihull MBC,Cultural & Related Services,Libraries Resources Fund,Materials,D11000,15/05/2014,29628549,18.57,Askews Library Services Ltd,6562
Solihull MBC,Cultural & Related Services,Libraries Resources Fund,Materials,D11000,12/05/2014,29039547,560.54,Askews Library Services Ltd,6562
Solihull MBC,Cultural & Related Services,Libraries Resources Fund,Materials,D11000,27/05/2014,31721547,235.82,Askews Library Services Ltd,6562
Solihull MBC,Cultural & Related Services,Libraries Resources Fund,Materials,D11000,27/05/2014,31721547,290.60,Askews Library Services Ltd,6562
Solihull MBC,Cultural & Related Services,Libraries Resources Fund,Materials,D11000,27/05/2014,31721547,155.56,Askews Library Services Ltd,6562
Solihull MBC,Cultural & Related Services,Libraries Resources Fund,Materials,D11000,30/05/2014,32158548,680.46,Askews Library Services Ltd,6562
Solihull MBC,Cultural & Related Services,Libraries Resources Fund,Materials,D11000,30/05/2014,32158548,39.85,Askews Library Services Ltd,6562
Solihull MBC,Cultural & Related Services,Libraries Resources Fund,Materials,D11000,12/05/2014,29039547,203.14,Askews Library Services Ltd,6562
Solihull MBC,Cultural & Related Services,Libraries Resources Fund,Materials,D11000,15/05/2014,29628549,241.91,Askews Library Services Ltd,6562
Solihull MBC,Cultural & Related Services,Libraries Resources Fund,Materials,D11000,15/05/2014,29629547,216.80,Askews Library Services Ltd,6562
Solihull MBC,Cultural & Related Services,Libraries Resources Fund,Materials,D11000,15/05/2014,29804547,1599.54,Askews Library Services Ltd,6562
Solihull MBC,Cultural & Related Services,Libraries Resources Fund,Materials,D11000,15/05/2014,29804547,521.54,Askews Library Services Ltd,6562
Solihull MBC,Cultural & Related Services,Libraries Resources Fund,Materials,D11000,15/05/2014,29804547,1651.20,Askews Library Services Ltd,6562
Solihull MBC,Cultural & Related Services,Libraries Resources Fund,Materials,D11000,15/05/2014,29628549,1623.66,Askews Library Services Ltd,6562
Solihull MBC,Cultural & Related Services,Libraries Resources Fund,Materials,D11000,30/05/2014,32158548,984.83,Askews Library Services Ltd,6562
Solihull MBC,Cultural & Related Services,Libraries Resources Fund,Materials,D11000,15/05/2014,29804547,1912.90,Askews Library Services Ltd,6562
Solihull MBC,Cultural & Related Services,Libraries Resources Fund,Materials,D11000,12/05/2014,29039547,1056.63,Askews Library Services Ltd,6562
Solihull MBC,Adult Social Care,LD Spot Comm Care - South,ASC - Domiciliary Care,E20008,21/05/2014,30886570,6819.90,Aspects Care Ltd,2651706
Solihull MBC,Adult Social Care,LD Spot Comm Care - South,ASC - Domiciliary Care,E20008,21/05/2014,30886569,4423.20,Aspects Care Ltd,2651706
Solihull MBC,Adult Social Care,LD Spot Comm Care - South,ASC - Domiciliary Care,E20008,21/05/2014,30886567,6819.90,Aspects Care Ltd,2651706
Solihull MBC,Adult Social Care,LD Spot Comm Care - South,ASC - Domiciliary Care,E20008,21/05/2014,30886568,3604.50,Aspects Care Ltd,2651706
Solihull MBC,Adult Social Care,LD Spot Comm Care - South,ASC - Domiciliary Care,E20008,21/05/2014,30886571,4277.10,Aspects Care Ltd,2651706
Solihull MBC,Adult Social Care,LD Spot Comm Care - South,ASC - Domiciliary Care,E20008,21/05/2014,30886573,1277.00,Aspects Care Ltd,2651706
Solihull MBC,Adult Social Care,LD Spot Comm Care,ASC - Domiciliary Care,E20008,21/05/2014,30886572,6623.40,Aspects Care Ltd,2651706
Solihull MBC,Children & Education Services,Yorkswood J&I,Agency Staff: Classroom Support,A35002,16/05/2014,29964553,495.00,Aspire,119244
Solihull MBC,Children & Education Services,Yorkswood J&I,Agency Staff: Classroom Support,A35002,16/05/2014,29971549,495.00,Aspire,119244
Solihull MBC,Children & Education Services,Mill Lodge J&I,Agency Staff: Teachers,A35001,08/05/2014,28576549,189.00,Aspire People Ltd,186698
Solihull MBC,Children & Education Services,Our Lady Compassion  J&I,Professional Fees,D51000,22/05/2014,31184548,336.00,Aspire People Ltd,186698
Solihull MBC,Children & Education Services,Monkspath J&I,Agency Staff: Teachers,A35001,16/05/2014,29966547,290.00,Aspire People Ltd,186698
Solihull MBC,Children & Education Services,Smith's Wood,Agency Staff: Teachers,A35001,07/05/2014,28523547,300.00,Aspire People Ltd,186698
Solihull MBC,Children & Education Services,Smith's Wood,Agency Staff: Teachers,A35001,20/05/2014,30664547,3446.00,Aspire People Ltd,186698
Solihull MBC,Children & Education Services,Mill Lodge J&I,Agency Staff: Teachers,A35001,08/05/2014,28590548,110.00,Aspire People Ltd,186698
Solihull MBC,Children & Education Services,Lyndon,Agency Staff: Teachers,A35001,23/05/2014,31381548,408.38,Aspire People Ltd,186698
Solihull MBC,Children & Education Services,Smith's Wood,Agency Staff: Teachers,A35001,22/05/2014,31226567,3738.50,Aspire People Ltd,186698
Solihull MBC,Children & Education Services,Smith's Wood,Agency Staff: Teachers,A35001,14/05/2014,29538547,4007.50,Aspire People Ltd,186698
Solihull MBC,Children & Education Services,Mill Lodge J&I,Agency Staff: Teachers,A35001,08/05/2014,28590548,105.00,Aspire People Ltd,186698
Solihull MBC,Children & Education Services,Monkspath J&I,Agency Staff: Teachers,A35001,01/05/2014,27711553,570.00,Aspire People Ltd,186698
Solihull MBC,Children & Education Services,Mill Lodge J&I,Agency Staff: Teachers,A35001,08/05/2014,28576549,110.00,Aspire People Ltd,186698
Solihull MBC,Children & Education Services,Yorkswood J&I,Agency Staff: Classroom Support,A35002,15/05/2014,29669548,495.00,Aspire People Ltd,186698
Solihull MBC,Children & Education Services,Mill Lodge J&I,Agency Staff: Teachers,A35001,08/05/2014,28590548,210.00,Aspire People Ltd,186698
Solihull MBC,Children & Education Services,Yorkswood J&I,Agency Staff: Classroom Support,A35002,15/05/2014,29740547,495.00,Aspire People Ltd,186698
Solihull MBC,Children & Education Services,Yorkswood J&I,Agency Staff: Classroom Support,A35002,15/05/2014,29705547,495.00,Aspire People Ltd,186698
Solihull MBC,Children & Education Services,Smith's Wood,Agency Staff: Teachers,A35001,20/05/2014,30657547,2191.00,Aspire People Ltd,186698
Solihull MBC,Children & Education Services,Streetsbrook Inf,Professional Fees,D51000,22/05/2014,31219547,914.44,Aspire Sports Health & Fitness Ltd,401600
Solihull MBC,Children & Education Services,Streetsbrook Inf,Professional Fees,D51000,06/05/2014,28251548,914.44,Aspire Sports Health & Fitness Ltd,401600
Solihull MBC,Children & Education Services,Coppice Jnr,Professional Fees,D51000,06/05/2014,27994547,1343.72,Aspire Sports Health & Fitness Ltd,401600
Solihull MBC,Children & Education Services,Coppice Jnr,Professional Fees,D51000,20/05/2014,30557547,1343.72,Aspire Sports Health & Fitness Ltd,401600
Solihull MBC,Children & Education Services,St Peter's,Examination Fees,D52001,08/05/2014,28701547,1412.75,Assessment & Qualifications Alliance,34231
Solihull MBC,Children & Education Services,St Peter's,Examination Fees,D52001,19/05/2014,30133547,863.40,Assessment & Qualifications Alliance,34231
Solihull MBC,Children & Education Services,Lyndon,Examination Fees,D52001,20/05/2014,30651549,8214.40,Assessment & Qualifications Alliance,34231
Solihull MBC,Children & Education Services,Smith's Wood,Examination Fees,D52001,14/05/2014,29553547,2848.20,Assessment & Qualifications Alliance,34231
Solihull MBC,Children & Education Services,St Peter's,Examination Fees,D52001,27/05/2014,31689549,279.80,Assessment & Qualifications Alliance,34231
Solihull MBC,Children & Education Services,St Peter's,Examination Fees,D52001,06/05/2014,28101547,-268.65,Assessment & Qualifications Alliance,34231
Solihull MBC,Children & Education Services,Castle Bromwich Inf,Photocopying,D40001,02/05/2014,27832547,382.62,A-Stat Office Technology Ltd,121926
Solihull MBC,Highways & Transport Services,Highways Network Implemnt,Agency Staff,A35000,01/05/2014,27777548,4448.10,Atkins,3714802
Solihull MBC,Highways & Transport Services,Highways Network Implemnt,Agency Staff,A35000,20/05/2014,30567547,3624.57,Atkins,3714802
Solihull MBC,Children & Education Services,Meriden Kitchen Ventil,Consultants,Y31000,16/05/2014,30101547,240.00,Atkins,3714802
Solihull MBC,Highways & Transport Services,Network Management Staff,Agency Staff,A35000,06/05/2014,28015549,2897.83,Atkins,3714802
Solihull MBC,Planning & Development Services,Craig Croft Village Centre,Consultants,Y31000,19/05/2014,30305547,3002.98,Atkins,3714802
Solihull MBC,Highways & Transport Services,Tankers,Other Transport Costs,C42000,24/04/2014,PC19021,558.61,Ats Euromaster,Purchase Card Supplier
Solihull MBC,Planning & Development Services,Kickstart,Other Contracted Services,E29000,28/05/2014,31909547,4500.00,Auctus Management Group Ltd,5710686
Solihull MBC,Cultural & Related Services,Arts Complex Hirings,Furniture & Equipment,D10000,20/05/2014,30622547,336.00,Audio Emporium,105743
Solihull MBC,Central Services to the Public,Internal Audit,IT Equipment & Software,D32000,13/05/2014,29337547,670.00,Auditware Systems Ltd,55650
Solihull MBC,Adult Social Care,LD Spot Comm Care,ASC - Residential Care Permanent,E20003,16/05/2014,29939549,6087.26,Autism West Midlands,80510
Solihull MBC,Adult Social Care,LD Spot Comm Care,ASC - Residential Care Permanent,E20003,16/05/2014,29939550,9730.12,Autism West Midlands,80510
Solihull MBC,Adult Social Care,LD Spot Comm Care,ASC - Residential Care Permanent,E20003,16/05/2014,29939553,6416.79,Autism West Midlands,80510
Solihull MBC,Adult Social Care,LD Spot Comm Care - South,ASC - Domiciliary Care,E20008,16/05/2014,29939568,3080.70,Autism West Midlands,80510
Solihull MBC,Adult Social Care,LD Spot Comm Care,ASC - Residential Care Permanent,E20003,16/05/2014,29939552,4182.13,Autism West Midlands,80510
Solihull MBC,Adult Social Care,LD Spot Comm Care,ASC - Domiciliary Care,E20008,16/05/2014,29939569,616.14,Autism West Midlands,80510
Solihull MBC,Adult Social Care,LD Spot Comm Care,ASC - Residential Care Permanent,E20003,16/05/2014,29939551,6154.74,Autism West Midlands,80510
Solihull MBC,Adult Social Care,ASC - Joint Stores,Transport-Contract Hire,C30000,21/05/2014,30787547,-380.04,Automotive Leasing (Orders),688119
Solihull MBC,Adult Social Care,ASC - Joint Stores,Transport-Contract Hire,C30000,23/05/2014,31391548,341.28,Automotive Leasing (Orders),688119
Solihull MBC,Adult Social Care,ASC - Wheelchairs,Transport-Contract Hire,C30000,21/05/2014,30885547,324.26,Automotive Leasing (Orders),688119
Solihull MBC,Highways & Transport Services,Street Lighting Contract 1,Transport-Contract Hire,C30000,23/05/2014,31279548,3126.78,Automotive Leasing (Orders),688119
Solihull MBC,Highways & Transport Services,Street Lighting Contract 1,Transport-Contract Hire,C30000,23/05/2014,31279547,1183.90,Automotive Leasing (Orders),688119
Solihull MBC,Adult Social Care,ASC - Joint Stores,Transport-Contract Hire,C30000,21/05/2014,30787547,380.04,Automotive Leasing (Orders),688119
Solihull MBC,Highways & Transport Services,Street Lighting Contract 1,Transport-Contract Hire,C30000,23/05/2014,31280547,1042.26,Automotive Leasing (Orders),688119
Solihull MBC,Adult Social Care,ASC - Joint Stores,Transport-Contract Hire,C30000,21/05/2014,30858547,324.26,Automotive Leasing (Orders),688119
Solihull MBC,Adult Social Care,ASC - Joint Stores,Transport-Contract Hire,C30000,21/05/2014,30787547,445.24,Automotive Leasing (Orders),688119
Solihull MBC,Highways & Transport Services,Street Lighting Contract 1,Transport-Contract Hire,C30000,23/05/2014,31278547,1183.90,Automotive Leasing (Orders),688119
Solihull MBC,Highways & Transport Services,Environmental Champion,Other Contracted Services,E29000,27/05/2014,31681548,211.54,Automotive Leasing (Orders),688119
Solihull MBC,Adult Social Care,ASC - Joint Stores,Transport-Contract Hire,C30000,21/05/2014,30856547,341.28,Automotive Leasing (Orders),688119
Solihull MBC,Highways & Transport Services,Traffic Management Staff,Transport-Contract Hire,C30000,23/05/2014,31247547,843.20,Automotive Leasing (Orders),688119
Solihull MBC,Highways & Transport Services,Traffic Management Staff,Transport-Contract Hire,C30000,23/05/2014,31247548,-843.20,Automotive Leasing (Orders),688119
Solihull MBC,Adult Social Care,OP - North Spot Comm Care,ASC - Residential Care Permanent,E20003,07/05/2014,28497550,1230.99,Avery Homes Wolverhampton,2386687
Solihull MBC,Children & Education Services,Blossomfield Inf,Visits & Pupil Activities,D52002,07/05/2014,28272547,360.00,Avoncroft Museum,283235
Solihull MBC,Cultural & Related Services,Libraries Resources Fund,Materials,D11000,09/05/2014,28915547,1025.00,Axiell Ltd,241989
Solihull MBC,Cultural & Related Services,Business Support,IT Equipment & Software,D32000,09/05/2014,28915547,1075.81,Axiell Ltd,241989
Solihull MBC,Cultural & Related Services,Business Support,Furniture & Equipment,D10000,01/05/2014,PC95972,324.00,Axiomatic Technology,Purchase Card Supplier
Solihull MBC,Children & Education Services,Summerfield Centre,Professional Fees,D51000,06/05/2014,28224548,581.10,B A Education Ltd,3301687
Solihull MBC,Highways & Transport Services,Road Safety,Materials,D11000,09/05/2014,28910547,335.00,B3 Creative Ltd,3147690
Solihull MBC,Children & Education Services,Adoption Team,Advertising/Publicity/Promotion,D93000,23/05/2014,31299547,337.00,BAAF,124674
Solihull MBC,Children & Education Services,St Mary & Margaret J&I,Building Maint Planned,B31002,16/05/2014,30042547,1500.00,Baker Flooring Ltd,232934
Solihull MBC,Highways & Transport Services,Struct Mtce Carriageways�,Other Contracted Services,E29000,29/05/2014,32077547,57.03,Balfour Beatty Living Places Ltd,3171686
Solihull MBC,Highways & Transport Services,Struct Mtce Carriageways�,Other Contracted Services,E29000,29/05/2014,32077547,35.07,Balfour Beatty Living Places Ltd,3171686
Solihull MBC,Highways & Transport Services,Struct Mtce Carriageways�,Other Contracted Services,E29000,29/05/2014,32077547,17.54,Balfour Beatty Living Places Ltd,3171686
Solihull MBC,Highways & Transport Services,Struct Mtce Carriageways�,Other Contracted Services,E29000,29/05/2014,32077547,7777.13,Balfour Beatty Living Places Ltd,3171686
Solihull MBC,Highways & Transport Services,Struct Mtce Carriageways�,Other Contracted Services,E29000,29/05/2014,32077547,17.54,Balfour Beatty Living Places Ltd,3171686
Solihull MBC,Highways & Transport Services,Struct Mtce Carriageways�,Other Contracted Services,E29000,29/05/2014,32077547,16.41,Balfour Beatty Living Places Ltd,3171686
Solihull MBC,Highways & Transport Services,Struct Mtce Carriageways�,Other Contracted Services,E29000,29/05/2014,32077547,17.54,Balfour Beatty Living Places Ltd,3171686
Solihull MBC,Highways & Transport Services,Struct Mtce Carriageways�,Other Contracted Services,E29000,29/05/2014,32077547,17.54,Balfour Beatty Living Places Ltd,3171686
Solihull MBC,Highways & Transport Services,Struct Mtce Carriageways�,Other Contracted Services,E29000,29/05/2014,32077547,5.00,Balfour Beatty Living Places Ltd,3171686
Solihull MBC,Highways & Transport Services,Struct Mtce Carriageways�,Other Contracted Services,E29000,29/05/2014,32077547,23.38,Balfour Beatty Living Places Ltd,3171686
Solihull MBC,Highways & Transport Services,Struct Mtce Carriageways�,Other Contracted Services,E29000,29/05/2014,32077547,19.15,Balfour Beatty Living Places Ltd,3171686
Solihull MBC,Highways & Transport Services,Struct Mtce Carriageways�,Other Contracted Services,E29000,29/05/2014,32077547,9.57,Balfour Beatty Living Places Ltd,3171686
Solihull MBC,Highways & Transport Services,Struct Mtce Carriageways�,Other Contracted Services,E29000,29/05/2014,32077547,19.15,Balfour Beatty Living Places Ltd,3171686
Solihull MBC,Highways & Transport Services,Struct Mtce Carriageways�,Other Contracted Services,E29000,29/05/2014,32077547,15.41,Balfour Beatty Living Places Ltd,3171686
Solihull MBC,Highways & Transport Services,Struct Mtce Carriageways�,Other Contracted Services,E29000,29/05/2014,32077547,9.57,Balfour Beatty Living Places Ltd,3171686
Solihull MBC,Highways & Transport Services,Struct Mtce Carriageways�,Other Contracted Services,E29000,29/05/2014,32077547,15.41,Balfour Beatty Living Places Ltd,3171686
Solihull MBC,Highways & Transport Services,Struct Mtce Carriageways�,Other Contracted Services,E29000,29/05/2014,32077547,1.00,Balfour Beatty Living Places Ltd,3171686
Solihull MBC,Highways & Transport Services,Struct Mtce Carriageways�,Other Contracted Services,E29000,29/05/2014,32077547,9.57,Balfour Beatty Living Places Ltd,3171686
Solihull MBC,Highways & Transport Services,Struct Mtce Carriageways�,Other Contracted Services,E29000,29/05/2014,32077547,17.54,Balfour Beatty Living Places Ltd,3171686
Solihull MBC,Highways & Transport Services,Struct Mtce Carriageways�,Other Contracted Services,E29000,29/05/2014,32077547,28.72,Balfour Beatty Living Places Ltd,3171686
Solihull MBC,Highways & Transport Services,Struct Mtce Carriageways�,Other Contracted Services,E29000,29/05/2014,32077547,19.15,Balfour Beatty Living Places Ltd,3171686
Solihull MBC,Highways & Transport Services,Struct Mtce Carriageways�,Other Contracted Services,E29000,29/05/2014,32077547,22.60,Balfour Beatty Living Places Ltd,3171686
Solihull MBC,Highways & Transport Services,Struct Mtce Carriageways�,Other Contracted Services,E29000,29/05/2014,32077547,27.67,Balfour Beatty Living Places Ltd,3171686
Solihull MBC,Highways & Transport Services,Struct Mtce Carriageways�,Other Contracted Services,E29000,29/05/2014,32077547,27.67,Balfour Beatty Living Places Ltd,3171686
Solihull MBC,Highways & Transport Services,Struct Mtce Carriageways�,Other Contracted Services,E29000,29/05/2014,32077547,22.60,Balfour Beatty Living Places Ltd,3171686
Solihull MBC,Highways & Transport Services,Struct Mtce Carriageways�,Other Contracted Services,E29000,29/05/2014,32077547,22.60,Balfour Beatty Living Places Ltd,3171686
Solihull MBC,Highways & Transport Services,Struct Mtce Carriageways�,Other Contracted Services,E29000,29/05/2014,32077547,22.60,Balfour Beatty Living Places Ltd,3171686
Solihull MBC,Highways & Transport Services,Struct Mtce Carriageways�,Other Contracted Services,E29000,29/05/2014,32077547,27.67,Balfour Beatty Living Places Ltd,3171686
Solihull MBC,Highways & Transport Services,Struct Mtce Carriageways�,Other Contracted Services,E29000,29/05/2014,32077547,93.75,Balfour Beatty Living Places Ltd,3171686
Solihull MBC,Highways & Transport Services,Struct Mtce Carriageways�,Other Contracted Services,E29000,29/05/2014,32077547,19.57,Balfour Beatty Living Places Ltd,3171686
Solihull MBC,Highways & Transport Services,Struct Mtce Carriageways�,Other Contracted Services,E29000,29/05/2014,32077547,17.54,Balfour Beatty Living Places Ltd,3171686
Solihull MBC,Highways & Transport Services,Struct Mtce Carriageways�,Other Contracted Services,E29000,29/05/2014,32077547,17.54,Balfour Beatty Living Places Ltd,3171686
Solihull MBC,Highways & Transport Services,Struct Mtce Carriageways�,Other Contracted Services,E29000,29/05/2014,32077547,17.54,Balfour Beatty Living Places Ltd,3171686
Solihull MBC,Highways & Transport Services,Struct Mtce Carriageways�,Other Contracted Services,E29000,29/05/2014,32077547,5.84,Balfour Beatty Living Places Ltd,3171686
Solihull MBC,Highways & Transport Services,Struct Mtce Carriageways�,Other Contracted Services,E29000,29/05/2014,32077547,1333.15,Balfour Beatty Living Places Ltd,3171686
Solihull MBC,Highways & Transport Services,Struct Mtce Carriageways�,Other Contracted Services,E29000,29/05/2014,32077547,22.60,Balfour Beatty Living Places Ltd,3171686
Solihull MBC,Highways & Transport Services,Struct Mtce Carriageways�,Other Contracted Services,E29000,29/05/2014,32077547,16.24,Balfour Beatty Living Places Ltd,3171686
Solihull MBC,Highways & Transport Services,Struct Mtce Carriageways�,Other Contracted Services,E29000,29/05/2014,32077547,104.29,Balfour Beatty Living Places Ltd,3171686
Solihull MBC,Highways & Transport Services,Struct Mtce Carriageways�,Other Contracted Services,E29000,29/05/2014,32077547,28.72,Balfour Beatty Living Places Ltd,3171686
Solihull MBC,Highways & Transport Services,Struct Mtce Carriageways�,Other Contracted Services,E29000,29/05/2014,32077547,17.54,Balfour Beatty Living Places Ltd,3171686
Solihull MBC,Highways & Transport Services,Struct Mtce Carriageways�,Other Contracted Services,E29000,29/05/2014,32077547,17.54,Balfour Beatty Living Places Ltd,3171686
Solihull MBC,Planning & Development Services,Shops- Forecourts & Paths,Other Contracted Services,E29000,29/05/2014,32077547,8.76,Balfour Beatty Living Places Ltd,3171686
Solihull MBC,Highways & Transport Services,Struct Mtce Carriageways�,Other Contracted Services,E29000,29/05/2014,32077547,76.51,Balfour Beatty Living Places Ltd,3171686
Solihull MBC,Highways & Transport Services,Struct Mtce Carriageways�,Other Contracted Services,E29000,29/05/2014,32077547,22.60,Balfour Beatty Living Places Ltd,3171686
Solihull MBC,Highways & Transport Services,Struct Mtce Carriageways�,Other Contracted Services,E29000,29/05/2014,32077547,22.60,Balfour Beatty Living Places Ltd,3171686
Solihull MBC,Highways & Transport Services,Struct Mtce Carriageways�,Other Contracted Services,E29000,29/05/2014,32077547,19.15,Balfour Beatty Living Places Ltd,3171686
Solihull MBC,Highways & Transport Services,Struct Mtce Carriageways�,Other Contracted Services,E29000,29/05/2014,32077547,9.57,Balfour Beatty Living Places Ltd,3171686
Solihull MBC,Highways & Transport Services,Struct Mtce Carriageways�,Other Contracted Services,E29000,29/05/2014,32077547,9.57,Balfour Beatty Living Places Ltd,3171686
Solihull MBC,Highways & Transport Services,Struct Mtce Carriageways�,Other Contracted Services,E29000,29/05/2014,32077547,76.15,Balfour Beatty Living Places Ltd,3171686
Solihull MBC,Highways & Transport Services,Struct Mtce Carriageways�,Other Contracted Services,E29000,29/05/2014,32077547,2.36,Balfour Beatty Living Places Ltd,3171686
Solihull MBC,Highways & Transport Services,Struct Mtce Carriageways�,Other Contracted Services,E29000,29/05/2014,32077547,8.03,Balfour Beatty Living Places Ltd,3171686
Solihull MBC,Highways & Transport Services,Struct Mtce Carriageways�,Other Contracted Services,E29000,29/05/2014,32077547,16.27,Balfour Beatty Living Places Ltd,3171686
Solihull MBC,Highways & Transport Services,Struct Mtce Carriageways�,Other Contracted Services,E29000,29/05/2014,32077547,16.27,Balfour Beatty Living Places Ltd,3171686
Solihull MBC,Highways & Transport Services,Struct Mtce Carriageways�,Other Contracted Services,E29000,29/05/2014,32077547,27.67,Balfour Beatty Living Places Ltd,3171686
Solihull MBC,Highways & Transport Services,Struct Mtce Carriageways�,Other Contracted Services,E29000,29/05/2014,32077547,85.14,Balfour Beatty Living Places Ltd,3171686
Solihull MBC,Highways & Transport Services,Struct Mtce Carriageways�,Other Contracted Services,E29000,29/05/2014,32077547,22.60,Balfour Beatty Living Places Ltd,3171686
Solihull MBC,Highways & Transport Services,Struct Mtce Carriageways�,Other Contracted Services,E29000,29/05/2014,32077547,22.60,Balfour Beatty Living Places Ltd,3171686
Solihull MBC,Highways & Transport Services,Struct Mtce Carriageways�,Other Contracted Services,E29000,29/05/2014,32077547,17.54,Balfour Beatty Living Places Ltd,3171686
Solihull MBC,Highways & Transport Services,Struct Mtce Carriageways�,Other Contracted Services,E29000,29/05/2014,32077547,17.54,Balfour Beatty Living Places Ltd,3171686
Solihull MBC,Highways & Transport Services,Struct Mtce Carriageways�,Other Contracted Services,E29000,29/05/2014,32077547,4.39,Balfour Beatty Living Places Ltd,3171686
Solihull MBC,Highways & Transport Services,Struct Mtce Carriageways�,Other Contracted Services,E29000,29/05/2014,32077547,17.54,Balfour Beatty Living Places Ltd,3171686
Solihull MBC,Highways & Transport Services,Struct Mtce Carriageways�,Other Contracted Services,E29000,29/05/2014,32077547,22.60,Balfour Beatty Living Places Ltd,3171686
Solihull MBC,Highways & Transport Services,Struct Mtce Carriageways�,Other Contracted Services,E29000,29/05/2014,32077547,18.72,Balfour Beatty Living Places Ltd,3171686
Solihull MBC,Highways & Transport Services,Struct Mtce Carriageways�,Other Contracted Services,E29000,29/05/2014,32077547,22.60,Balfour Beatty Living Places Ltd,3171686
Solihull MBC,Highways & Transport Services,Struct Mtce Carriageways�,Other Contracted Services,E29000,29/05/2014,32077547,22.60,Balfour Beatty Living Places Ltd,3171686
Solihull MBC,Highways & Transport Services,Struct Mtce Carriageways�,Other Contracted Services,E29000,29/05/2014,32077547,18.72,Balfour Beatty Living Places Ltd,3171686
Solihull MBC,Highways & Transport Services,Struct Mtce Carriageways�,Other Contracted Services,E29000,29/05/2014,32077547,84.18,Balfour Beatty Living Places Ltd,3171686
Solihull MBC,Highways & Transport Services,Struct Mtce Carriageways�,Other Contracted Services,E29000,29/05/2014,32077547,19.15,Balfour Beatty Living Places Ltd,3171686
Solihull MBC,Highways & Transport Services,Struct Mtce Carriageways�,Other Contracted Services,E29000,29/05/2014,32077547,19.15,Balfour Beatty Living Places Ltd,3171686
Solihull MBC,Highways & Transport Services,Struct Mtce Carriageways�,Other Contracted Services,E29000,29/05/2014,32077547,19.15,Balfour Beatty Living Places Ltd,3171686
Solihull MBC,Highways & Transport Services,Struct Mtce Carriageways�,Other Contracted Services,E29000,29/05/2014,32077547,9.57,Balfour Beatty Living Places Ltd,3171686
Solihull MBC,Highways & Transport Services,Struct Mtce Carriageways�,Other Contracted Services,E29000,29/05/2014,32077547,35.07,Balfour Beatty Living Places Ltd,3171686
Solihull MBC,Highways & Transport Services,Struct Mtce Carriageways�,Other Contracted Services,E29000,29/05/2014,32077547,17.54,Balfour Beatty Living Places Ltd,3171686
Solihull MBC,Highways & Transport Services,Struct Mtce Carriageways�,Other Contracted Services,E29000,29/05/2014,32077547,17.54,Balfour Beatty Living Places Ltd,3171686
Solihull MBC,Highways & Transport Services,Struct Mtce Carriageways�,Other Contracted Services,E29000,29/05/2014,32077547,1.00,Balfour Beatty Living Places Ltd,3171686
Solihull MBC,Highways & Transport Services,Struct Mtce Carriageways�,Other Contracted Services,E29000,29/05/2014,32077547,13.52,Balfour Beatty Living Places Ltd,3171686
Solihull MBC,Highways & Transport Services,Struct Mtce Carriageways�,Other Contracted Services,E29000,29/05/2014,32077547,8.78,Balfour Beatty Living Places Ltd,3171686
Solihull MBC,Highways & Transport Services,Struct Mtce Carriageways�,Other Contracted Services,E29000,29/05/2014,32077547,43.46,Balfour Beatty Living Places Ltd,3171686
Solihull MBC,Highways & Transport Services,Struct Mtce Carriageways�,Other Contracted Services,E29000,29/05/2014,32077547,852.57,Balfour Beatty Living Places Ltd,3171686
Solihull MBC,Highways & Transport Services,Struct Mtce Carriageways�,Other Contracted Services,E29000,29/05/2014,32077547,5.84,Balfour Beatty Living Places Ltd,3171686
Solihull MBC,Highways & Transport Services,Struct Mtce Carriageways�,Other Contracted Services,E29000,29/05/2014,32077547,28.72,Balfour Beatty Living Places Ltd,3171686
Solihull MBC,Highways & Transport Services,Struct Mtce Carriageways�,Other Contracted Services,E29000,29/05/2014,32077547,15.03,Balfour Beatty Living Places Ltd,3171686
Solihull MBC,Highways & Transport Services,Struct Mtce Carriageways�,Other Contracted Services,E29000,29/05/2014,32077547,22.60,Balfour Beatty Living Places Ltd,3171686
Solihull MBC,Highways & Transport Services,Struct Mtce Carriageways�,Other Contracted Services,E29000,29/05/2014,32077547,22.60,Balfour Beatty Living Places Ltd,3171686
Solihull MBC,Highways & Transport Services,Struct Mtce Carriageways�,Other Contracted Services,E29000,29/05/2014,32077547,2.14,Balfour Beatty Living Places Ltd,3171686
Solihull MBC,Highways & Transport Services,Struct Mtce Carriageways�,Other Contracted Services,E29000,29/05/2014,32077547,8.03,Balfour Beatty Living Places Ltd,3171686
Solihull MBC,Highways & Transport Services,Struct Mtce Carriageways�,Other Contracted Services,E29000,29/05/2014,32077547,27.67,Balfour Beatty Living Places Ltd,3171686
Solihull MBC,Highways & Transport Services,Struct Mtce Carriageways�,Other Contracted Services,E29000,29/05/2014,32077547,35.56,Balfour Beatty Living Places Ltd,3171686
Solihull MBC,Highways & Transport Services,Struct Mtce Carriageways�,Other Contracted Services,E29000,29/05/2014,32077547,2.14,Balfour Beatty Living Places Ltd,3171686
Solihull MBC,Highways & Transport Services,Struct Mtce Carriageways�,Other Contracted Services,E29000,29/05/2014,32077547,4886.02,Balfour Beatty Living Places Ltd,3171686
Solihull MBC,Highways & Transport Services,Struct Mtce Carriageways�,Other Contracted Services,E29000,29/05/2014,32077547,17.54,Balfour Beatty Living Places Ltd,3171686
Solihull MBC,Highways & Transport Services,Struct Mtce Carriageways�,Other Contracted Services,E29000,29/05/2014,32077547,35.07,Balfour Beatty Living Places Ltd,3171686
Solihull MBC,Highways & Transport Services,Struct Mtce Carriageways�,Other Contracted Services,E29000,29/05/2014,32077547,62.73,Balfour Beatty Living Places Ltd,3171686
Solihull MBC,Highways & Transport Services,Struct Mtce Carriageways�,Other Contracted Services,E29000,29/05/2014,32077547,17.54,Balfour Beatty Living Places Ltd,3171686
Solihull MBC,Highways & Transport Services,Marston Green,Contractors,Y21000,29/05/2014,32077547,25762.48,Balfour Beatty Living Places Ltd,3171686
Solihull MBC,Highways & Transport Services,Struct Mtce Carriageways�,Other Contracted Services,E29000,29/05/2014,32077547,1656.76,Balfour Beatty Living Places Ltd,3171686
Solihull MBC,Highways & Transport Services,Struct Mtce Carriageways�,Other Contracted Services,E29000,29/05/2014,32077547,17.54,Balfour Beatty Living Places Ltd,3171686
Solihull MBC,Highways & Transport Services,Struct Mtce Carriageways�,Other Contracted Services,E29000,29/05/2014,32077547,17.54,Balfour Beatty Living Places Ltd,3171686
Solihull MBC,Highways & Transport Services,Struct Mtce Carriageways�,Other Contracted Services,E29000,29/05/2014,32077547,27.67,Balfour Beatty Living Places Ltd,3171686
Solihull MBC,Highways & Transport Services,Struct Mtce Carriageways�,Other Contracted Services,E29000,29/05/2014,32077547,35.07,Balfour Beatty Living Places Ltd,3171686
Solihull MBC,Highways & Transport Services,Struct Mtce Carriageways�,Other Contracted Services,E29000,29/05/2014,32077547,9.57,Balfour Beatty Living Places Ltd,3171686
Solihull MBC,Highways & Transport Services,Struct Mtce Carriageways�,Other Contracted Services,E29000,29/05/2014,32077547,84.18,Balfour Beatty Living Places Ltd,3171686
Solihull MBC,Highways & Transport Services,Struct Mtce Carriageways�,Other Contracted Services,E29000,29/05/2014,32077547,16.27,Balfour Beatty Living Places Ltd,3171686
Solihull MBC,Highways & Transport Services,Struct Mtce Carriageways�,Other Contracted Services,E29000,29/05/2014,32077547,17.54,Balfour Beatty Living Places Ltd,3171686
Solihull MBC,Highways & Transport Services,Struct Mtce Carriageways�,Other Contracted Services,E29000,29/05/2014,32077547,5.84,Balfour Beatty Living Places Ltd,3171686
Solihull MBC,Highways & Transport Services,Struct Mtce Carriageways�,Other Contracted Services,E29000,29/05/2014,32077547,27.67,Balfour Beatty Living Places Ltd,3171686
Solihull MBC,Highways & Transport Services,Struct Mtce Carriageways�,Other Contracted Services,E29000,29/05/2014,32077547,34.13,Balfour Beatty Living Places Ltd,3171686
Solihull MBC,Highways & Transport Services,Struct Mtce Carriageways�,Other Contracted Services,E29000,29/05/2014,32077547,5.84,Balfour Beatty Living Places Ltd,3171686
Solihull MBC,Highways & Transport Services,Struct Mtce Carriageways�,Other Contracted Services,E29000,29/05/2014,32077547,22.60,Balfour Beatty Living Places Ltd,3171686
Solihull MBC,Highways & Transport Services,Struct Mtce Carriageways�,Other Contracted Services,E29000,29/05/2014,32077547,103.33,Balfour Beatty Living Places Ltd,3171686
Solihull MBC,Highways & Transport Services,Struct Mtce Carriageways�,Other Contracted Services,E29000,29/05/2014,32077547,5.84,Balfour Beatty Living Places Ltd,3171686
Solihull MBC,Highways & Transport Services,Struct Mtce Carriageways�,Other Contracted Services,E29000,29/05/2014,32077547,18.05,Balfour Beatty Living Places Ltd,3171686
Solihull MBC,Highways & Transport Services,Struct Mtce Carriageways�,Other Contracted Services,E29000,29/05/2014,32077547,2096.56,Balfour Beatty Living Places Ltd,3171686
Solihull MBC,Highways & Transport Services,Struct Mtce Carriageways�,Other Contracted Services,E29000,29/05/2014,32077547,15.03,Balfour Beatty Living Places Ltd,3171686
Solihull MBC,Highways & Transport Services,Struct Mtce Carriageways�,Other Contracted Services,E29000,29/05/2014,32077547,5.84,Balfour Beatty Living Places Ltd,3171686
Solihull MBC,Highways & Transport Services,Struct Mtce Carriageways�,Other Contracted Services,E29000,29/05/2014,32077547,17.54,Balfour Beatty Living Places Ltd,3171686
Solihull MBC,Highways & Transport Services,Struct Mtce Carriageways�,Other Contracted Services,E29000,29/05/2014,32077547,22.60,Balfour Beatty Living Places Ltd,3171686
Solihull MBC,Highways & Transport Services,Struct Mtce Carriageways�,Other Contracted Services,E29000,29/05/2014,32077547,21.82,Balfour Beatty Living Places Ltd,3171686
Solihull MBC,Highways & Transport Services,Struct Mtce Carriageways�,Other Contracted Services,E29000,29/05/2014,32077547,16.27,Balfour Beatty Living Places Ltd,3171686
Solihull MBC,Highways & Transport Services,Struct Mtce Carriageways�,Other Contracted Services,E29000,29/05/2014,32077547,5.84,Balfour Beatty Living Places Ltd,3171686
Solihull MBC,Highways & Transport Services,Struct Mtce Carriageways�,Other Contracted Services,E29000,29/05/2014,32077547,100.14,Balfour Beatty Living Places Ltd,3171686
Solihull MBC,Highways & Transport Services,Struct Mtce Carriageways�,Other Contracted Services,E29000,29/05/2014,32077547,559.75,Balfour Beatty Living Places Ltd,3171686
Solihull MBC,Highways & Transport Services,Struct Mtce Carriageways�,Other Contracted Services,E29000,29/05/2014,32077547,17.54,Balfour Beatty Living Places Ltd,3171686
Solihull MBC,Highways & Transport Services,Struct Mtce Carriageways�,Other Contracted Services,E29000,29/05/2014,32077547,43.46,Balfour Beatty Living Places Ltd,3171686
Solihull MBC,Highways & Transport Services,Struct Mtce Carriageways�,Other Contracted Services,E29000,29/05/2014,32077547,43.46,Balfour Beatty Living Places Ltd,3171686
Solihull MBC,Highways & Transport Services,Struct Mtce Carriageways�,Other Contracted Services,E29000,29/05/2014,32077547,22.60,Balfour Beatty Living Places Ltd,3171686
Solihull MBC,Highways & Transport Services,Struct Mtce Carriageways�,Other Contracted Services,E29000,29/05/2014,32077547,21.33,Balfour Beatty Living Places Ltd,3171686
Solihull MBC,Highways & Transport Services,Struct Mtce Carriageways�,Other Contracted Services,E29000,29/05/2014,32077547,22.60,Balfour Beatty Living Places Ltd,3171686
Solihull MBC,Highways & Transport Services,Struct Mtce Carriageways�,Other Contracted Services,E29000,29/05/2014,32077547,43.94,Balfour Beatty Living Places Ltd,3171686
Solihull MBC,Highways & Transport Services,Struct Mtce Carriageways�,Other Contracted Services,E29000,29/05/2014,32077547,27.67,Balfour Beatty Living Places Ltd,3171686
Solihull MBC,Highways & Transport Services,Struct Mtce Carriageways�,Other Contracted Services,E29000,29/05/2014,32077547,84.18,Balfour Beatty Living Places Ltd,3171686
Solihull MBC,Highways & Transport Services,Struct Mtce Carriageways�,Other Contracted Services,E29000,29/05/2014,32077547,84.18,Balfour Beatty Living Places Ltd,3171686
Solihull MBC,Highways & Transport Services,Struct Mtce Carriageways�,Other Contracted Services,E29000,29/05/2014,32077547,5.84,Balfour Beatty Living Places Ltd,3171686
Solihull MBC,Highways & Transport Services,Struct Mtce Carriageways�,Other Contracted Services,E29000,29/05/2014,32077547,22.60,Balfour Beatty Living Places Ltd,3171686
Solihull MBC,Highways & Transport Services,Struct Mtce Carriageways�,Other Contracted Services,E29000,29/05/2014,32077547,9.00,Balfour Beatty Living Places Ltd,3171686
Solihull MBC,Highways & Transport Services,Struct Mtce Carriageways�,Other Contracted Services,E29000,29/05/2014,32077547,17.54,Balfour Beatty Living Places Ltd,3171686
Solihull MBC,Highways & Transport Services,Struct Mtce Carriageways�,Other Contracted Services,E29000,29/05/2014,32077547,17.54,Balfour Beatty Living Places Ltd,3171686
Solihull MBC,Highways & Transport Services,Struct Mtce Carriageways�,Other Contracted Services,E29000,29/05/2014,32077547,17.54,Balfour Beatty Living Places Ltd,3171686
Solihull MBC,Highways & Transport Services,Struct Mtce Carriageways�,Other Contracted Services,E29000,29/05/2014,32077547,27.67,Balfour Beatty Living Places Ltd,3171686
Solihull MBC,Highways & Transport Services,Struct Mtce Carriageways�,Other Contracted Services,E29000,29/05/2014,32077547,35.07,Balfour Beatty Living Places Ltd,3171686
Solihull MBC,Highways & Transport Services,Struct Mtce Carriageways�,Other Contracted Services,E29000,29/05/2014,32077547,17.54,Balfour Beatty Living Places Ltd,3171686
Solihull MBC,Highways & Transport Services,Struct Mtce Carriageways�,Other Contracted Services,E29000,29/05/2014,32077547,22.60,Balfour Beatty Living Places Ltd,3171686
Solihull MBC,Highways & Transport Services,Struct Mtce Carriageways�,Other Contracted Services,E29000,29/05/2014,32077547,104.29,Balfour Beatty Living Places Ltd,3171686
Solihull MBC,Highways & Transport Services,Struct Mtce Carriageways�,Other Contracted Services,E29000,29/05/2014,32077547,15.41,Balfour Beatty Living Places Ltd,3171686
Solihull MBC,Highways & Transport Services,Struct Mtce Carriageways�,Other Contracted Services,E29000,29/05/2014,32077547,5.84,Balfour Beatty Living Places Ltd,3171686
Solihull MBC,Highways & Transport Services,Struct Mtce Carriageways�,Other Contracted Services,E29000,29/05/2014,32077547,17.54,Balfour Beatty Living Places Ltd,3171686
Solihull MBC,Highways & Transport Services,Struct Mtce Carriageways�,Other Contracted Services,E29000,29/05/2014,32077547,23.38,Balfour Beatty Living Places Ltd,3171686
Solihull MBC,Highways & Transport Services,Struct Mtce Carriageways�,Other Contracted Services,E29000,29/05/2014,32077547,9.57,Balfour Beatty Living Places Ltd,3171686
Solihull MBC,Highways & Transport Services,Struct Mtce Carriageways�,Other Contracted Services,E29000,29/05/2014,32077547,9.57,Balfour Beatty Living Places Ltd,3171686
Solihull MBC,Highways & Transport Services,Struct Mtce Carriageways�,Other Contracted Services,E29000,29/05/2014,32077547,17.54,Balfour Beatty Living Places Ltd,3171686
Solihull MBC,Highways & Transport Services,Struct Mtce Carriageways�,Other Contracted Services,E29000,29/05/2014,32077547,9781.79,Balfour Beatty Living Places Ltd,3171686
Solihull MBC,Highways & Transport Services,Struct Mtce Carriageways�,Other Contracted Services,E29000,29/05/2014,32077547,17.54,Balfour Beatty Living Places Ltd,3171686
Solihull MBC,Highways & Transport Services,Stratford Road Corridor,Contractors,Y21000,29/05/2014,32077547,5778.55,Balfour Beatty Living Places Ltd,3171686
Solihull MBC,Highways & Transport Services,Salting & Gritting,Other Contracted Services,E29000,29/05/2014,32077547,1648.07,Balfour Beatty Living Places Ltd,3171686
Solihull MBC,Highways & Transport Services,Struct Mtce Carriageways�,Other Contracted Services,E29000,29/05/2014,32077547,17.54,Balfour Beatty Living Places Ltd,3171686
Solihull MBC,Highways & Transport Services,Struct Mtce Carriageways�,Other Contracted Services,E29000,29/05/2014,32077547,17.54,Balfour Beatty Living Places Ltd,3171686
Solihull MBC,Highways & Transport Services,Struct Mtce Carriageways�,Other Contracted Services,E29000,29/05/2014,32077547,16.27,Balfour Beatty Living Places Ltd,3171686
Solihull MBC,Highways & Transport Services,Struct Mtce Carriageways�,Other Contracted Services,E29000,29/05/2014,32077547,17.54,Balfour Beatty Living Places Ltd,3171686
Solihull MBC,Highways & Transport Services,Struct Mtce Carriageways�,Other Contracted Services,E29000,29/05/2014,32077547,23.38,Balfour Beatty Living Places Ltd,3171686
Solihull MBC,Highways & Transport Services,Struct Mtce Carriageways�,Other Contracted Services,E29000,29/05/2014,32077547,17.54,Balfour Beatty Living Places Ltd,3171686
Solihull MBC,Highways & Transport Services,Struct Mtce Carriageways�,Other Contracted Services,E29000,29/05/2014,32077547,17.54,Balfour Beatty Living Places Ltd,3171686
Solihull MBC,Highways & Transport Services,Struct Mtce Carriageways�,Other Contracted Services,E29000,29/05/2014,32077547,17.54,Balfour Beatty Living Places Ltd,3171686
Solihull MBC,Highways & Transport Services,Struct Mtce Carriageways�,Other Contracted Services,E29000,29/05/2014,32077547,17.54,Balfour Beatty Living Places Ltd,3171686
Solihull MBC,Highways & Transport Services,Struct Mtce Carriageways�,Other Contracted Services,E29000,29/05/2014,32077547,4.39,Balfour Beatty Living Places Ltd,3171686
Solihull MBC,Highways & Transport Services,Struct Mtce Carriageways�,Other Contracted Services,E29000,29/05/2014,32077547,17.54,Balfour Beatty Living Places Ltd,3171686
Solihull MBC,Highways & Transport Services,Struct Mtce Carriageways�,Other Contracted Services,E29000,29/05/2014,32077547,119.88,Balfour Beatty Living Places Ltd,3171686
Solihull MBC,Highways & Transport Services,Struct Mtce Carriageways�,Other Contracted Services,E29000,29/05/2014,32077547,19.14,Balfour Beatty Living Places Ltd,3171686
Solihull MBC,Highways & Transport Services,Struct Mtce Carriageways�,Other Contracted Services,E29000,29/05/2014,32077547,17.54,Balfour Beatty Living Places Ltd,3171686
Solihull MBC,Highways & Transport Services,Struct Mtce Carriageways�,Other Contracted Services,E29000,29/05/2014,32077547,4.39,Balfour Beatty Living Places Ltd,3171686
Solihull MBC,Highways & Transport Services,Struct Mtce Carriageways�,Other Contracted Services,E29000,29/05/2014,32077547,17.54,Balfour Beatty Living Places Ltd,3171686
Solihull MBC,Highways & Transport Services,Struct Mtce Carriageways�,Other Contracted Services,E29000,29/05/2014,32077547,35.07,Balfour Beatty Living Places Ltd,3171686
Solihull MBC,Highways & Transport Services,Struct Mtce Carriageways�,Other Contracted Services,E29000,29/05/2014,32077547,17.54,Balfour Beatty Living Places Ltd,3171686
Solihull MBC,Highways & Transport Services,Struct Mtce Carriageways�,Other Contracted Services,E29000,29/05/2014,32077547,17.54,Balfour Beatty Living Places Ltd,3171686
Solihull MBC,Highways & Transport Services,Struct Mtce Carriageways�,Other Contracted Services,E29000,29/05/2014,32077547,9.57,Balfour Beatty Living Places Ltd,3171686
Solihull MBC,Highways & Transport Services,Struct Mtce Carriageways�,Other Contracted Services,E29000,29/05/2014,32077547,17.54,Balfour Beatty Living Places Ltd,3171686
Solihull MBC,Highways & Transport Services,Struct Mtce Carriageways�,Other Contracted Services,E29000,29/05/2014,32077547,17.54,Balfour Beatty Living Places Ltd,3171686
Solihull MBC,Highways & Transport Services,Struct Mtce Carriageways�,Other Contracted Services,E29000,29/05/2014,32077547,16.27,Balfour Beatty Living Places Ltd,3171686
Solihull MBC,Highways & Transport Services,Struct Mtce Carriageways�,Other Contracted Services,E29000,29/05/2014,32077547,17.54,Balfour Beatty Living Places Ltd,3171686
Solihull MBC,Highways & Transport Services,Struct Mtce Carriageways�,Other Contracted Services,E29000,29/05/2014,32077547,18.72,Balfour Beatty Living Places Ltd,3171686
Solihull MBC,Highways & Transport Services,Struct Mtce Carriageways�,Other Contracted Services,E29000,29/05/2014,32077547,17.54,Balfour Beatty Living Places Ltd,3171686
Solihull MBC,Highways & Transport Services,Struct Mtce Carriageways�,Other Contracted Services,E29000,29/05/2014,32077547,35.07,Balfour Beatty Living Places Ltd,3171686
Solihull MBC,Highways & Transport Services,Struct Mtce Carriageways�,Other Contracted Services,E29000,29/05/2014,32077547,35.07,Balfour Beatty Living Places Ltd,3171686
Solihull MBC,Highways & Transport Services,Struct Mtce Carriageways�,Other Contracted Services,E29000,29/05/2014,32077547,22.60,Balfour Beatty Living Places Ltd,3171686
Solihull MBC,Highways & Transport Services,Struct Mtce Carriageways�,Other Contracted Services,E29000,29/05/2014,32077547,28.71,Balfour Beatty Living Places Ltd,3171686
Solihull MBC,Highways & Transport Services,Struct Mtce Carriageways�,Other Contracted Services,E29000,29/05/2014,32077547,81.12,Balfour Beatty Living Places Ltd,3171686
Solihull MBC,Highways & Transport Services,Struct Mtce Carriageways�,Other Contracted Services,E29000,29/05/2014,32077547,22.60,Balfour Beatty Living Places Ltd,3171686
Solihull MBC,Highways & Transport Services,Struct Mtce Carriageways�,Other Contracted Services,E29000,29/05/2014,32077547,9.57,Balfour Beatty Living Places Ltd,3171686
Solihull MBC,Highways & Transport Services,Struct Mtce Carriageways�,Other Contracted Services,E29000,29/05/2014,32077547,18.72,Balfour Beatty Living Places Ltd,3171686
Solihull MBC,Highways & Transport Services,Struct Mtce Carriageways�,Other Contracted Services,E29000,29/05/2014,32077547,52.60,Balfour Beatty Living Places Ltd,3171686
Solihull MBC,Highways & Transport Services,Struct Mtce Carriageways�,Other Contracted Services,E29000,29/05/2014,32077547,35.07,Balfour Beatty Living Places Ltd,3171686
Solihull MBC,Highways & Transport Services,Struct Mtce Carriageways�,Other Contracted Services,E29000,29/05/2014,32077547,38.30,Balfour Beatty Living Places Ltd,3171686
Solihull MBC,Highways & Transport Services,Struct Mtce Carriageways�,Other Contracted Services,E29000,29/05/2014,32077547,1.18,Balfour Beatty Living Places Ltd,3171686
Solihull MBC,Highways & Transport Services,Struct Mtce Carriageways�,Other Contracted Services,E29000,29/05/2014,32077547,22.60,Balfour Beatty Living Places Ltd,3171686
Solihull MBC,Highways & Transport Services,Struct Mtce Carriageways�,Other Contracted Services,E29000,29/05/2014,32077547,17.54,Balfour Beatty Living Places Ltd,3171686
Solihull MBC,Highways & Transport Services,Struct Mtce Carriageways�,Other Contracted Services,E29000,29/05/2014,32077547,22.60,Balfour Beatty Living Places Ltd,3171686
Solihull MBC,Highways & Transport Services,Struct Mtce Carriageways�,Other Contracted Services,E29000,29/05/2014,32077547,22.60,Balfour Beatty Living Places Ltd,3171686
Solihull MBC,Highways & Transport Services,Struct Mtce Carriageways�,Other Contracted Services,E29000,29/05/2014,32077547,22.60,Balfour Beatty Living Places Ltd,3171686
Solihull MBC,Highways & Transport Services,Struct Mtce Carriageways�,Other Contracted Services,E29000,29/05/2014,32077547,38.38,Balfour Beatty Living Places Ltd,3171686
Solihull MBC,Highways & Transport Services,Struct Mtce Carriageways�,Other Contracted Services,E29000,29/05/2014,32077547,1.00,Balfour Beatty Living Places Ltd,3171686
Solihull MBC,Highways & Transport Services,Struct Mtce Carriageways�,Other Contracted Services,E29000,29/05/2014,32077547,2132.34,Balfour Beatty Living Places Ltd,3171686
Solihull MBC,Highways & Transport Services,Struct Mtce Carriageways�,Other Contracted Services,E29000,29/05/2014,32077547,27.67,Balfour Beatty Living Places Ltd,3171686
Solihull MBC,Highways & Transport Services,Struct Mtce Carriageways�,Other Contracted Services,E29000,29/05/2014,32077547,17.54,Balfour Beatty Living Places Ltd,3171686
Solihull MBC,Highways & Transport Services,Struct Mtce Carriageways�,Other Contracted Services,E29000,29/05/2014,32077547,5.84,Balfour Beatty Living Places Ltd,3171686
Solihull MBC,Highways & Transport Services,Struct Mtce Carriageways�,Other Contracted Services,E29000,29/05/2014,32077547,1419.89,Balfour Beatty Living Places Ltd,3171686
Solihull MBC,Highways & Transport Services,Struct Mtce Carriageways�,Other Contracted Services,E29000,29/05/2014,32077547,594.94,Balfour Beatty Living Places Ltd,3171686
Solihull MBC,Highways & Transport Services,Struct Mtce Carriageways�,Other Contracted Services,E29000,29/05/2014,32077547,5.84,Balfour Beatty Living Places Ltd,3171686
Solihull MBC,Highways & Transport Services,Struct Mtce Carriageways�,Other Contracted Services,E29000,29/05/2014,32077547,27.67,Balfour Beatty Living Places Ltd,3171686
Solihull MBC,Highways & Transport Services,Struct Mtce Carriageways�,Other Contracted Services,E29000,29/05/2014,32077547,19.15,Balfour Beatty Living Places Ltd,3171686
Solihull MBC,Highways & Transport Services,Struct Mtce Carriageways�,Other Contracted Services,E29000,29/05/2014,32077547,35.07,Balfour Beatty Living Places Ltd,3171686
Solihull MBC,Highways & Transport Services,Struct Mtce Carriageways�,Other Contracted Services,E29000,29/05/2014,32077547,35.07,Balfour Beatty Living Places Ltd,3171686
Solihull MBC,Highways & Transport Services,Struct Mtce Carriageways�,Other Contracted Services,E29000,29/05/2014,32077547,16.27,Balfour Beatty Living Places Ltd,3171686
Solihull MBC,Highways & Transport Services,Struct Mtce Carriageways�,Other Contracted Services,E29000,29/05/2014,32077547,2.00,Balfour Beatty Living Places Ltd,3171686
Solihull MBC,Highways & Transport Services,Struct Mtce Carriageways�,Other Contracted Services,E29000,29/05/2014,32077547,17.54,Balfour Beatty Living Places Ltd,3171686
Solihull MBC,Highways & Transport Services,Struct Mtce Carriageways�,Other Contracted Services,E29000,29/05/2014,32077547,1.00,Balfour Beatty Living Places Ltd,3171686
Solihull MBC,Highways & Transport Services,Struct Mtce Carriageways�,Other Contracted Services,E29000,29/05/2014,32077547,17.54,Balfour Beatty Living Places Ltd,3171686
Solihull MBC,Highways & Transport Services,Struct Mtce Carriageways�,Other Contracted Services,E29000,29/05/2014,32077547,17.54,Balfour Beatty Living Places Ltd,3171686
Solihull MBC,Highways & Transport Services,Struct Mtce Carriageways�,Other Contracted Services,E29000,29/05/2014,32077547,11.30,Balfour Beatty Living Places Ltd,3171686
Solihull MBC,Highways & Transport Services,Struct Mtce Carriageways�,Other Contracted Services,E29000,29/05/2014,32077547,51.33,Balfour Beatty Living Places Ltd,3171686
Solihull MBC,Highways & Transport Services,Struct Mtce Carriageways�,Other Contracted Services,E29000,29/05/2014,32077547,17.54,Balfour Beatty Living Places Ltd,3171686
Solihull MBC,Highways & Transport Services,Struct Mtce Carriageways�,Other Contracted Services,E29000,29/05/2014,32077547,22.60,Balfour Beatty Living Places Ltd,3171686
Solihull MBC,Highways & Transport Services,Struct Mtce Carriageways�,Other Contracted Services,E29000,29/05/2014,32077547,84.18,Balfour Beatty Living Places Ltd,3171686
Solihull MBC,Highways & Transport Services,Struct Mtce Carriageways�,Other Contracted Services,E29000,29/05/2014,32077547,17.54,Balfour Beatty Living Places Ltd,3171686
Solihull MBC,Highways & Transport Services,Struct Mtce Carriageways�,Other Contracted Services,E29000,29/05/2014,32077547,16.27,Balfour Beatty Living Places Ltd,3171686
Solihull MBC,Highways & Transport Services,Struct Mtce Carriageways�,Other Contracted Services,E29000,29/05/2014,32077547,17.54,Balfour Beatty Living Places Ltd,3171686
Solihull MBC,Highways & Transport Services,Struct Mtce Carriageways�,Other Contracted Services,E29000,29/05/2014,32077547,689.13,Balfour Beatty Living Places Ltd,3171686
Solihull MBC,Highways & Transport Services,Struct Mtce Carriageways�,Other Contracted Services,E29000,29/05/2014,32077547,22.60,Balfour Beatty Living Places Ltd,3171686
Solihull MBC,Highways & Transport Services,Struct Mtce Carriageways�,Other Contracted Services,E29000,29/05/2014,32077547,105.40,Balfour Beatty Living Places Ltd,3171686
Solihull MBC,Highways & Transport Services,Struct Mtce Carriageways�,Other Contracted Services,E29000,29/05/2014,32077547,5.84,Balfour Beatty Living Places Ltd,3171686
Solihull MBC,Highways & Transport Services,Struct Mtce Carriageways�,Other Contracted Services,E29000,29/05/2014,32077547,2423.92,Balfour Beatty Living Places Ltd,3171686
Solihull MBC,Highways & Transport Services,Struct Mtce Carriageways�,Other Contracted Services,E29000,29/05/2014,32077547,35.07,Balfour Beatty Living Places Ltd,3171686
Solihull MBC,Highways & Transport Services,Struct Mtce Carriageways�,Other Contracted Services,E29000,29/05/2014,32077547,17.54,Balfour Beatty Living Places Ltd,3171686
Solihull MBC,Highways & Transport Services,Struct Mtce Carriageways�,Other Contracted Services,E29000,29/05/2014,32077547,7333.84,Balfour Beatty Living Places Ltd,3171686
Solihull MBC,Highways & Transport Services,Struct Mtce Carriageways�,Other Contracted Services,E29000,29/05/2014,32077547,86.20,Balfour Beatty Living Places Ltd,3171686
Solihull MBC,Highways & Transport Services,Struct Mtce Carriageways�,Other Contracted Services,E29000,29/05/2014,32077547,22.60,Balfour Beatty Living Places Ltd,3171686
Solihull MBC,Highways & Transport Services,Struct Mtce Carriageways�,Other Contracted Services,E29000,29/05/2014,32077547,1.95,Balfour Beatty Living Places Ltd,3171686
Solihull MBC,Highways & Transport Services,Struct Mtce Carriageways�,Other Contracted Services,E29000,29/05/2014,32077547,17.54,Balfour Beatty Living Places Ltd,3171686
Solihull MBC,Highways & Transport Services,Struct Mtce Carriageways�,Other Contracted Services,E29000,29/05/2014,32077547,5.84,Balfour Beatty Living Places Ltd,3171686
Solihull MBC,Highways & Transport Services,Struct Mtce Carriageways�,Other Contracted Services,E29000,29/05/2014,32077547,93.75,Balfour Beatty Living Places Ltd,3171686
Solihull MBC,Highways & Transport Services,Struct Mtce Carriageways�,Other Contracted Services,E29000,29/05/2014,32077547,9.57,Balfour Beatty Living Places Ltd,3171686
Solihull MBC,Highways & Transport Services,Struct Mtce Carriageways�,Other Contracted Services,E29000,29/05/2014,32077547,38.30,Balfour Beatty Living Places Ltd,3171686
Solihull MBC,Highways & Transport Services,Struct Mtce Carriageways�,Other Contracted Services,E29000,29/05/2014,32077547,9.57,Balfour Beatty Living Places Ltd,3171686
Solihull MBC,Highways & Transport Services,Struct Mtce Carriageways�,Other Contracted Services,E29000,29/05/2014,32077547,84.18,Balfour Beatty Living Places Ltd,3171686
Solihull MBC,Highways & Transport Services,Struct Mtce Carriageways�,Other Contracted Services,E29000,29/05/2014,32077547,80.26,Balfour Beatty Living Places Ltd,3171686
Solihull MBC,Highways & Transport Services,Struct Mtce Carriageways�,Other Contracted Services,E29000,29/05/2014,32077547,16.27,Balfour Beatty Living Places Ltd,3171686
Solihull MBC,Highways & Transport Services,Struct Mtce Carriageways�,Other Contracted Services,E29000,29/05/2014,32077547,22.60,Balfour Beatty Living Places Ltd,3171686
Solihull MBC,Highways & Transport Services,Struct Mtce Carriageways�,Other Contracted Services,E29000,29/05/2014,32077547,15.41,Balfour Beatty Living Places Ltd,3171686
Solihull MBC,Highways & Transport Services,Struct Mtce Carriageways�,Other Contracted Services,E29000,29/05/2014,32077547,16.27,Balfour Beatty Living Places Ltd,3171686
Solihull MBC,Highways & Transport Services,Struct Mtce Carriageways�,Other Contracted Services,E29000,29/05/2014,32077547,18.44,Balfour Beatty Living Places Ltd,3171686
Solihull MBC,Highways & Transport Services,Struct Mtce Carriageways�,Other Contracted Services,E29000,29/05/2014,32077547,21.33,Balfour Beatty Living Places Ltd,3171686
Solihull MBC,Highways & Transport Services,Struct Mtce Carriageways�,Other Contracted Services,E29000,29/05/2014,32077547,22.60,Balfour Beatty Living Places Ltd,3171686
Solihull MBC,Highways & Transport Services,Struct Mtce Carriageways�,Other Contracted Services,E29000,29/05/2014,32077547,24.99,Balfour Beatty Living Places Ltd,3171686
Solihull MBC,Highways & Transport Services,Struct Mtce Carriageways�,Other Contracted Services,E29000,29/05/2014,32077547,72.95,Balfour Beatty Living Places Ltd,3171686
Solihull MBC,Highways & Transport Services,Struct Mtce Carriageways�,Other Contracted Services,E29000,29/05/2014,32077547,7.79,Balfour Beatty Living Places Ltd,3171686
Solihull MBC,Highways & Transport Services,Struct Mtce Carriageways�,Other Contracted Services,E29000,29/05/2014,32077547,341.17,Balfour Beatty Living Places Ltd,3171686
Solihull MBC,Highways & Transport Services,Struct Mtce Carriageways�,Other Contracted Services,E29000,29/05/2014,32077547,68946.07,Balfour Beatty Living Places Ltd,3171686
Solihull MBC,Highways & Transport Services,Struct Mtce Carriageways�,Other Contracted Services,E29000,29/05/2014,32077547,17.54,Balfour Beatty Living Places Ltd,3171686
Solihull MBC,Highways & Transport Services,Struct Mtce Carriageways�,Other Contracted Services,E29000,29/05/2014,32077547,93.75,Balfour Beatty Living Places Ltd,3171686
Solihull MBC,Highways & Transport Services,Struct Mtce Carriageways�,Other Contracted Services,E29000,29/05/2014,32077547,17.94,Balfour Beatty Living Places Ltd,3171686
Solihull MBC,Highways & Transport Services,Struct Mtce Carriageways�,Other Contracted Services,E29000,29/05/2014,32077547,17.54,Balfour Beatty Living Places Ltd,3171686
Solihull MBC,Highways & Transport Services,Struct Mtce Carriageways�,Other Contracted Services,E29000,29/05/2014,32077547,17.54,Balfour Beatty Living Places Ltd,3171686
Solihull MBC,Highways & Transport Services,Struct Mtce Carriageways�,Other Contracted Services,E29000,29/05/2014,32077547,1468.94,Balfour Beatty Living Places Ltd,3171686
Solihull MBC,Highways & Transport Services,Struct Mtce Carriageways�,Other Contracted Services,E29000,29/05/2014,32077547,1736.24,Balfour Beatty Living Places Ltd,3171686
Solihull MBC,Highways & Transport Services,Struct Mtce Carriageways�,Other Contracted Services,E29000,29/05/2014,32077547,17.54,Balfour Beatty Living Places Ltd,3171686
Solihull MBC,Highways & Transport Services,Struct Mtce Carriageways�,Other Contracted Services,E29000,29/05/2014,32077547,5.84,Balfour Beatty Living Places Ltd,3171686
Solihull MBC,Highways & Transport Services,Struct Mtce Carriageways�,Other Contracted Services,E29000,29/05/2014,32077547,22.60,Balfour Beatty Living Places Ltd,3171686
Solihull MBC,Highways & Transport Services,Struct Mtce Carriageways�,Other Contracted Services,E29000,29/05/2014,32077547,214.19,Balfour Beatty Living Places Ltd,3171686
Solihull MBC,Highways & Transport Services,Struct Mtce Carriageways�,Other Contracted Services,E29000,29/05/2014,32077547,5.84,Balfour Beatty Living Places Ltd,3171686
Solihull MBC,Highways & Transport Services,Struct Mtce Carriageways�,Other Contracted Services,E29000,29/05/2014,32077547,35.07,Balfour Beatty Living Places Ltd,3171686
Solihull MBC,Highways & Transport Services,Struct Mtce Carriageways�,Other Contracted Services,E29000,29/05/2014,32077547,2.19,Balfour Beatty Living Places Ltd,3171686
Solihull MBC,Highways & Transport Services,Struct Mtce Carriageways�,Other Contracted Services,E29000,29/05/2014,32077547,9.57,Balfour Beatty Living Places Ltd,3171686
Solihull MBC,Highways & Transport Services,Struct Mtce Carriageways�,Other Contracted Services,E29000,29/05/2014,32077547,84.18,Balfour Beatty Living Places Ltd,3171686
Solihull MBC,Highways & Transport Services,Struct Mtce Carriageways�,Other Contracted Services,E29000,29/05/2014,32077547,9.57,Balfour Beatty Living Places Ltd,3171686
Solihull MBC,Highways & Transport Services,Struct Mtce Carriageways�,Other Contracted Services,E29000,29/05/2014,32077547,103.33,Balfour Beatty Living Places Ltd,3171686
Solihull MBC,Highways & Transport Services,Struct Mtce Carriageways�,Other Contracted Services,E29000,29/05/2014,32077547,1961.77,Balfour Beatty Living Places Ltd,3171686
Solihull MBC,Highways & Transport Services,Struct Mtce Carriageways�,Other Contracted Services,E29000,29/05/2014,32077547,17.54,Balfour Beatty Living Places Ltd,3171686
Solihull MBC,Highways & Transport Services,Struct Mtce Carriageways�,Other Contracted Services,E29000,29/05/2014,32077547,5.84,Balfour Beatty Living Places Ltd,3171686
Solihull MBC,Highways & Transport Services,Struct Mtce Carriageways�,Other Contracted Services,E29000,29/05/2014,32077547,8.76,Balfour Beatty Living Places Ltd,3171686
Solihull MBC,Highways & Transport Services,Struct Mtce Carriageways�,Other Contracted Services,E29000,29/05/2014,32077547,8.76,Balfour Beatty Living Places Ltd,3171686
Solihull MBC,Highways & Transport Services,Struct Mtce Carriageways�,Other Contracted Services,E29000,29/05/2014,32077547,17.54,Balfour Beatty Living Places Ltd,3171686
Solihull MBC,Highways & Transport Services,Stratford Road Corridor,Contractors,Y21000,29/05/2014,32077547,710.13,Balfour Beatty Living Places Ltd,3171686
Solihull MBC,Highways & Transport Services,Struct Mtce Carriageways�,Other Contracted Services,E29000,29/05/2014,32077547,17.54,Balfour Beatty Living Places Ltd,3171686
Solihull MBC,Highways & Transport Services,Struct Mtce Carriageways�,Other Contracted Services,E29000,29/05/2014,32077547,290.34,Balfour Beatty Living Places Ltd,3171686
Solihull MBC,Highways & Transport Services,Struct Mtce Carriageways�,Other Contracted Services,E29000,29/05/2014,32077547,17.54,Balfour Beatty Living Places Ltd,3171686
Solihull MBC,Highways & Transport Services,Struct Mtce Carriageways�,Other Contracted Services,E29000,29/05/2014,32077547,35.07,Balfour Beatty Living Places Ltd,3171686
Solihull MBC,Highways & Transport Services,Struct Mtce Carriageways�,Other Contracted Services,E29000,29/05/2014,32077547,17.54,Balfour Beatty Living Places Ltd,3171686
Solihull MBC,Highways & Transport Services,Struct Mtce Carriageways�,Other Contracted Services,E29000,29/05/2014,32077547,1367.28,Balfour Beatty Living Places Ltd,3171686
Solihull MBC,Highways & Transport Services,Struct Mtce Carriageways�,Other Contracted Services,E29000,29/05/2014,32077547,17.54,Balfour Beatty Living Places Ltd,3171686
Solihull MBC,Highways & Transport Services,Struct Mtce Carriageways�,Other Contracted Services,E29000,29/05/2014,32077547,17.54,Balfour Beatty Living Places Ltd,3171686
Solihull MBC,Highways & Transport Services,Struct Mtce Carriageways�,Other Contracted Services,E29000,29/05/2014,32077547,17.54,Balfour Beatty Living Places Ltd,3171686
Solihull MBC,Highways & Transport Services,Struct Mtce Carriageways�,Other Contracted Services,E29000,29/05/2014,32077547,17.54,Balfour Beatty Living Places Ltd,3171686
Solihull MBC,Highways & Transport Services,Struct Mtce Carriageways�,Other Contracted Services,E29000,29/05/2014,32077547,16.27,Balfour Beatty Living Places Ltd,3171686
Solihull MBC,Highways & Transport Services,Struct Mtce Carriageways�,Other Contracted Services,E29000,29/05/2014,32077547,11.30,Balfour Beatty Living Places Ltd,3171686
Solihull MBC,Highways & Transport Services,Struct Mtce Carriageways�,Other Contracted Services,E29000,29/05/2014,32077547,22.60,Balfour Beatty Living Places Ltd,3171686
Solihull MBC,Highways & Transport Services,Struct Mtce Carriageways�,Other Contracted Services,E29000,29/05/2014,32077547,9.57,Balfour Beatty Living Places Ltd,3171686
Solihull MBC,Highways & Transport Services,Struct Mtce Carriageways�,Other Contracted Services,E29000,29/05/2014,32077547,33.51,Balfour Beatty Living Places Ltd,3171686
Solihull MBC,Highways & Transport Services,Struct Mtce Carriageways�,Other Contracted Services,E29000,29/05/2014,32077547,69.29,Balfour Beatty Living Places Ltd,3171686
Solihull MBC,Highways & Transport Services,Struct Mtce Carriageways�,Other Contracted Services,E29000,29/05/2014,32077547,19.15,Balfour Beatty Living Places Ltd,3171686
Solihull MBC,Highways & Transport Services,Struct Mtce Carriageways�,Other Contracted Services,E29000,29/05/2014,32077547,22.60,Balfour Beatty Living Places Ltd,3171686
Solihull MBC,Highways & Transport Services,Struct Mtce Carriageways�,Other Contracted Services,E29000,29/05/2014,32077547,15.41,Balfour Beatty Living Places Ltd,3171686
Solihull MBC,Highways & Transport Services,Struct Mtce Carriageways�,Other Contracted Services,E29000,29/05/2014,32077547,21.82,Balfour Beatty Living Places Ltd,3171686
Solihull MBC,Highways & Transport Services,Struct Mtce Carriageways�,Other Contracted Services,E29000,29/05/2014,32077547,22.60,Balfour Beatty Living Places Ltd,3171686
Solihull MBC,Highways & Transport Services,Struct Mtce Carriageways�,Other Contracted Services,E29000,29/05/2014,32077547,22.60,Balfour Beatty Living Places Ltd,3171686
Solihull MBC,Highways & Transport Services,Struct Mtce Carriageways�,Other Contracted Services,E29000,29/05/2014,32077547,5.84,Balfour Beatty Living Places Ltd,3171686
Solihull MBC,Highways & Transport Services,Struct Mtce Carriageways�,Other Contracted Services,E29000,29/05/2014,32077547,27.67,Balfour Beatty Living Places Ltd,3171686
Solihull MBC,Highways & Transport Services,Struct Mtce Carriageways�,Other Contracted Services,E29000,29/05/2014,32077547,5.84,Balfour Beatty Living Places Ltd,3171686
Solihull MBC,Highways & Transport Services,Struct Mtce Carriageways�,Other Contracted Services,E29000,29/05/2014,32077547,94.71,Balfour Beatty Living Places Ltd,3171686
Solihull MBC,Highways & Transport Services,Struct Mtce Carriageways�,Other Contracted Services,E29000,29/05/2014,32077547,18.72,Balfour Beatty Living Places Ltd,3171686
Solihull MBC,Highways & Transport Services,Struct Mtce Carriageways�,Other Contracted Services,E29000,29/05/2014,32077547,36.69,Balfour Beatty Living Places Ltd,3171686
Solihull MBC,Highways & Transport Services,Struct Mtce Carriageways�,Other Contracted Services,E29000,29/05/2014,32077547,21.25,Balfour Beatty Living Places Ltd,3171686
Solihull MBC,Highways & Transport Services,Struct Mtce Carriageways�,Other Contracted Services,E29000,29/05/2014,32077547,5.84,Balfour Beatty Living Places Ltd,3171686
Solihull MBC,Highways & Transport Services,Struct Mtce Carriageways�,Other Contracted Services,E29000,29/05/2014,32077547,5.84,Balfour Beatty Living Places Ltd,3171686
Solihull MBC,Highways & Transport Services,Struct Mtce Carriageways�,Other Contracted Services,E29000,29/05/2014,32077547,2.19,Balfour Beatty Living Places Ltd,3171686
Solihull MBC,Highways & Transport Services,Struct Mtce Carriageways�,Other Contracted Services,E29000,29/05/2014,32077547,17.54,Balfour Beatty Living Places Ltd,3171686
Solihull MBC,Highways & Transport Services,Struct Mtce Carriageways�,Other Contracted Services,E29000,29/05/2014,32077547,45.20,Balfour Beatty Living Places Ltd,3171686
Solihull MBC,Highways & Transport Services,Struct Mtce Carriageways�,Other Contracted Services,E29000,29/05/2014,32077547,21.82,Balfour Beatty Living Places Ltd,3171686
Solihull MBC,Highways & Transport Services,Struct Mtce Carriageways�,Other Contracted Services,E29000,29/05/2014,32077547,103.33,Balfour Beatty Living Places Ltd,3171686
Solihull MBC,Highways & Transport Services,Struct Mtce Carriageways�,Other Contracted Services,E29000,29/05/2014,32077547,28.72,Balfour Beatty Living Places Ltd,3171686
Solihull MBC,Highways & Transport Services,Struct Mtce Carriageways�,Other Contracted Services,E29000,29/05/2014,32077547,17.54,Balfour Beatty Living Places Ltd,3171686
Solihull MBC,Planning & Development Services,Shops- Forecourts & Paths,Other Contracted Services,E29000,29/05/2014,32077547,147.60,Balfour Beatty Living Places Ltd,3171686
Solihull MBC,Highways & Transport Services,Struct Mtce Carriageways�,Other Contracted Services,E29000,29/05/2014,32077547,151.20,Balfour Beatty Living Places Ltd,3171686
Solihull MBC,Highways & Transport Services,Struct Mtce Carriageways�,Other Contracted Services,E29000,29/05/2014,32077547,15.41,Balfour Beatty Living Places Ltd,3171686
Solihull MBC,Highways & Transport Services,Struct Mtce Carriageways�,Other Contracted Services,E29000,29/05/2014,32077547,16.27,Balfour Beatty Living Places Ltd,3171686
Solihull MBC,Highways & Transport Services,Struct Mtce Carriageways�,Other Contracted Services,E29000,29/05/2014,32077547,93.75,Balfour Beatty Living Places Ltd,3171686
Solihull MBC,Highways & Transport Services,Struct Mtce Carriageways�,Other Contracted Services,E29000,29/05/2014,32077547,23.38,Balfour Beatty Living Places Ltd,3171686
Solihull MBC,Highways & Transport Services,Struct Mtce Carriageways�,Other Contracted Services,E29000,29/05/2014,32077547,17.54,Balfour Beatty Living Places Ltd,3171686
Solihull MBC,Highways & Transport Services,Struct Mtce Carriageways�,Other Contracted Services,E29000,29/05/2014,32077547,8.76,Balfour Beatty Living Places Ltd,3171686
Solihull MBC,Highways & Transport Services,Struct Mtce Carriageways�,Other Contracted Services,E29000,29/05/2014,32077547,17.54,Balfour Beatty Living Places Ltd,3171686
Solihull MBC,Highways & Transport Services,Struct Mtce Carriageways�,Other Contracted Services,E29000,29/05/2014,32077547,31.88,Balfour Beatty Living Places Ltd,3171686
Solihull MBC,Highways & Transport Services,Struct Mtce Carriageways�,Other Contracted Services,E29000,29/05/2014,32077547,17.54,Balfour Beatty Living Places Ltd,3171686
Solihull MBC,Highways & Transport Services,Struct Mtce Carriageways�,Other Contracted Services,E29000,29/05/2014,32077547,9.57,Balfour Beatty Living Places Ltd,3171686
Solihull MBC,Highways & Transport Services,Struct Mtce Carriageways�,Other Contracted Services,E29000,29/05/2014,32077547,2.19,Balfour Beatty Living Places Ltd,3171686
Solihull MBC,Highways & Transport Services,Struct Mtce Carriageways�,Other Contracted Services,E29000,29/05/2014,32077547,9.00,Balfour Beatty Living Places Ltd,3171686
Solihull MBC,Highways & Transport Services,Struct Mtce Carriageways�,Other Contracted Services,E29000,29/05/2014,32077547,15.41,Balfour Beatty Living Places Ltd,3171686
Solihull MBC,Highways & Transport Services,Struct Mtce Carriageways�,Other Contracted Services,E29000,29/05/2014,32077547,1.00,Balfour Beatty Living Places Ltd,3171686
Solihull MBC,Highways & Transport Services,Struct Mtce Carriageways�,Other Contracted Services,E29000,29/05/2014,32077547,13.52,Balfour Beatty Living Places Ltd,3171686
Solihull MBC,Highways & Transport Services,Struct Mtce Carriageways�,Other Contracted Services,E29000,29/05/2014,32077547,13.52,Balfour Beatty Living Places Ltd,3171686
Solihull MBC,Highways & Transport Services,Struct Mtce Carriageways�,Other Contracted Services,E29000,29/05/2014,32077547,13.52,Balfour Beatty Living Places Ltd,3171686
Solihull MBC,Highways & Transport Services,Struct Mtce Carriageways�,Other Contracted Services,E29000,29/05/2014,32077547,94.71,Balfour Beatty Living Places Ltd,3171686
Solihull MBC,Highways & Transport Services,Struct Mtce Carriageways�,Other Contracted Services,E29000,29/05/2014,32077547,27.67,Balfour Beatty Living Places Ltd,3171686
Solihull MBC,Highways & Transport Services,Struct Mtce Carriageways�,Other Contracted Services,E29000,29/05/2014,32077547,18.44,Balfour Beatty Living Places Ltd,3171686
Solihull MBC,Highways & Transport Services,Struct Mtce Carriageways�,Other Contracted Services,E29000,29/05/2014,32077547,27.67,Balfour Beatty Living Places Ltd,3171686
Solihull MBC,Highways & Transport Services,Struct Mtce Carriageways�,Other Contracted Services,E29000,29/05/2014,32077547,90.98,Balfour Beatty Living Places Ltd,3171686
Solihull MBC,Highways & Transport Services,Struct Mtce Carriageways�,Other Contracted Services,E29000,29/05/2014,32077547,22.60,Balfour Beatty Living Places Ltd,3171686
Solihull MBC,Highways & Transport Services,Struct Mtce Carriageways�,Other Contracted Services,E29000,29/05/2014,32077547,22.60,Balfour Beatty Living Places Ltd,3171686
Solihull MBC,Highways & Transport Services,Struct Mtce Carriageways�,Other Contracted Services,E29000,29/05/2014,32077547,17.54,Balfour Beatty Living Places Ltd,3171686
Solihull MBC,Adult Social Care,Sexual Health,Other Contracted Services,E29000,19/05/2014,30304547,2504.71,Balsall Common & Meridan Group P,688138
Solihull MBC,Adult Social Care,Primary Prevention,Other Contracted Services,E29000,19/05/2014,30304547,4512.00,Balsall Common & Meridan Group P,688138
Solihull MBC,Adult Social Care,Primary Prevention,Other Contracted Services,E29000,19/05/2014,30304547,24.00,Balsall Common & Meridan Group P,688138
Solihull MBC,Adult Social Care,Primary Prevention,Other Contracted Services,E29000,19/05/2014,30304547,24.00,Balsall Common & Meridan Group P,688138
Solihull MBC,Adult Social Care,Sexual Health,Other Contracted Services,E29000,19/05/2014,30304547,924.22,Balsall Common & Meridan Group P,688138
Solihull MBC,Children & Education Services,St Anthony's J&I,Training,A32000,09/05/2014,28936547,585.00,Balsall Common Primary School,7550
Solihull MBC,Environmental and Regulatory Services,Bereavement Services,Materials,D11000,28/05/2014,31847547,349.00,Bannocks Solihull,7594
Solihull MBC,Environmental and Regulatory Services,Bereavement Services,Materials,D11000,28/05/2014,31849547,349.00,Bannocks Solihull,7594
Solihull MBC,Adult Social Care,LD Spot Comm Care - South,ASC - Residential Care Permanent,E20003,12/05/2014,29197558,5377.71,Barchester Healthcare Homes Ltd,102300
Solihull MBC,Central Services to the Public,Vehicle Licensing,Other Fees,D52000,12/05/2014,,131.03,BARCLAYS MERCH CHG,
Solihull MBC,Central Services to the Public,Vehicle Licensing,Other Fees,D52000,12/05/2014,,50.00,BARCLAYS MERCH CHG,
Solihull MBC,Children & Education Services,Arts Complex Hirings,Other Fees,D52000,12/05/2014,,25.00,BARCLAYS MERCH CHG,
Solihull MBC,Adult Social Care,Income Team,Other Fees,D52000,12/05/2014,,4732.88,BARCLAYS MERCH CHG,
Solihull MBC,Children & Education Services,Income Team,Other Fees,D52000,12/05/2014,,5.86,BARCLAYS MERCH CHG,
Solihull MBC,Children & Education Services,Arts Complex Hirings,Other Fees,D52000,12/05/2014,,364.80,BARCLAYS MERCH CHG,
Solihull MBC,Children & Education Services,Arts Complex Hirings,Other Fees,D52000,12/05/2014,,108.30,BARCLAYS MERCH CHG,
Solihull MBC,Children & Education Services,Arts Complex Hirings,Other Fees,D52000,12/05/2014,,359.21,BARCLAYS MERCH CHG,
Solihull MBC,Children & Education Services,Arts Complex Hirings,Other Fees,D52000,12/05/2014,,1.01,BARCLAYS MERCH CHG,
Solihull MBC,Children & Education Services,Arts Complex Hirings,Other Fees,D52000,12/05/2014,,30.00,BARCLAYS MERCH CHG,
Solihull MBC,Adult Social Care,Theatre Bar,Other Fees,D52000,12/05/2014,,75.95,BARCLAYS MERCH CHG,
Solihull MBC,Children & Education Services,Theatre Bar,Other Fees,D52000,12/05/2014,,0.15,BARCLAYS MERCH CHG,
Solihull MBC,Adult Social Care,Theatre Bar,Other Fees,D52000,12/05/2014,,25.00,BARCLAYS MERCH CHG,
Solihull MBC,Children & Education Services,CSW Team B U18 Local Clients,Other Contracted Services,E29000,14/05/2014,29600547,13242.87,Barford Care,165519
Solihull MBC,Children & Education Services,Childrens Centres,Other Contracted Services,E29000,20/05/2014,30615547,31500.33,Barnardos Midlands,121075
Solihull MBC,Children & Education Services,CSW Team B U18 Local Clients,External Fostering,E29006,22/05/2014,31065547,3302.48,Barnardos Midlands,121075
Solihull MBC,Children & Education Services,CSW Team B U18 Local Clients,External Fostering,E29006,23/05/2014,31342549,3302.48,Barnardos Midlands,121075
Solihull MBC,Children & Education Services,CSW Team B U18 Local Clients,External Fostering,E29006,22/05/2014,30930547,3195.94,Barnardos Midlands,121075
Solihull MBC,Children & Education Services,CSW Team B U18 Local Clients,External Fostering,E29006,02/05/2014,27848547,3835.71,Barnardos Midlands,121075
Solihull MBC,Children & Education Services,CSW Team B U18 Local Clients,External Fostering,E29006,02/05/2014,27847547,3475.71,Barnardos Midlands,121075
Solihull MBC,Planning & Development Services,Building Control Holding Account,Professional Fees,D51000,19/05/2014,30311550,946.75,Barneveld Consultants,218451
Solihull MBC,Planning & Development Services,Building Control Holding Account,Professional Fees,D51000,19/05/2014,30287547,1117.10,Barneveld Consultants,218451
Solihull MBC,Planning & Development Services,Kickstart,Other Contracted Services,E29000,23/05/2014,31253547,1000.00,BB Boutique Ltd,4201686
Solihull MBC,Adult Social Care,OP South Spot Comm Care,ASC - Residential Care Permanent,E20003,07/05/2014,28497649,1223.48,BCOP,28610
Solihull MBC,Adult Social Care,OP South Spot Comm Care,ASC - Residential Care Permanent,E20003,07/05/2014,28497650,1259.06,BCOP,28610
Solihull MBC,Adult Social Care,OP South Spot Comm Care,ASC - Residential Care Permanent,E20003,07/05/2014,28497645,1471.20,BCOP,28610
Solihull MBC,Adult Social Care,OP - North Spot Comm Care,ASC - Residential Care Permanent,E20003,07/05/2014,28497638,1407.86,BCOP,28610
Solihull MBC,Adult Social Care,OP - North Spot Comm Care,ASC - Residential Care Permanent,E20003,07/05/2014,28497637,1237.93,BCOP,28610
Solihull MBC,Adult Social Care,OP South Spot Comm Care,ASC - Residential Care Permanent,E20003,07/05/2014,28497636,1306.20,BCOP,28610
Solihull MBC,Adult Social Care,OP - North Spot Comm Care,ASC - Residential Care Permanent,E20003,07/05/2014,28497640,1239.60,BCOP,28610
Solihull MBC,Adult Social Care,OP - North Spot Comm Care,ASC - Residential Care Permanent,E20003,07/05/2014,28497646,1416.13,BCOP,28610
Solihull MBC,Adult Social Care,OP South Spot Comm Care,ASC - Residential Care Permanent,E20003,07/05/2014,28497641,1251.17,BCOP,28610
Solihull MBC,Adult Social Care,OP South Spot Comm Care,ASC - Residential Care Permanent,E20003,07/05/2014,28497647,1568.48,BCOP,28610
Solihull MBC,Adult Social Care,OP - North Spot Comm Care,ASC - Residential Care Permanent,E20003,07/05/2014,28497644,1949.70,BCOP,28610
Solihull MBC,Adult Social Care,OP - North Spot Comm Care,ASC - Residential Care Permanent,E20003,07/05/2014,28497643,1327.80,BCOP,28610
Solihull MBC,Adult Social Care,OP South Spot Comm Care,ASC - Residential Care Permanent,E20003,07/05/2014,28497642,894.22,BCOP,28610
Solihull MBC,Adult Social Care,OP - Sol Hos Spot Comm Care,ASC - Residential Care Permanent,E20003,07/05/2014,28497635,1432.58,BCOP,28610
Solihull MBC,Adult Social Care,OP - North Spot Comm Care,ASC - Residential Care Permanent,E20003,07/05/2014,28497634,1429.07,BCOP,28610
Solihull MBC,Adult Social Care,OP - North Spot Comm Care,ASC - Residential Care Permanent,E20003,07/05/2014,28497648,1471.20,BCOP,28610
Solihull MBC,Adult Social Care,OP South Spot Comm Care,ASC - Residential Care Permanent,E20003,07/05/2014,28497639,1236.30,BCOP,28610
Solihull MBC,Adult Social Care,OP - North Spot Comm Care,ASC - Residential Care Permanent,E20003,07/05/2014,28497633,1297.63,BCOP,28610
Solihull MBC,Adult Social Care,OP South Spot Comm Care,ASC - Residential Care Permanent,E20003,07/05/2014,28497651,1470.16,BCOP,28610
Solihull MBC,Cultural & Related Services,Step Into Solihull,Furniture & Equipment,D10000,06/05/2014,28253550,1065.60,Be-Active Ltd,688597
Solihull MBC,Children & Education Services,North Area - Youth,Other Fees,D52000,27/05/2014,31746547,-450.00,Bear Creek Adventure,85440
Solihull MBC,Children & Education Services,Smith's Wood,Capitation,D11001,23/05/2014,31498554,250.00,Bear Creek Adventure,85440
Solihull MBC,Children & Education Services,North Area - Youth,Other Fees,D52000,27/05/2014,31746547,450.00,Bear Creek Adventure,85440
Solihull MBC,Children & Education Services,North Area - Youth,Other Fees,D52000,27/05/2014,31746547,450.00,Bear Creek Adventure,85440
Solihull MBC,Children & Education Services,Greswold J&I,Professional Fees,D51000,23/05/2014,31478547,380.00,Becky Jacobs,269157
Solihull MBC,Adult Social Care,OP South Spot Comm Care,ASC - Residential Care Permanent,E20003,12/05/2014,29197554,955.80,Beechcroft Residential Home,155078
Solihull MBC,Children & Education Services,2Yr Old Free E Learn/Care,Grant & Subscription (SCITT),D92000,19/05/2014,30227550,825.00,Beechwood Childcare,7960
Solihull MBC,Children & Education Services,2Yr Old Free E Learn/Care,Grant & Subscription (SCITT),D92000,19/05/2014,30227551,817.50,Beechwood Childcare,7960
Solihull MBC,Children & Education Services,2Yr Old Free E Learn/Care,Grant & Subscription (SCITT),D92000,19/05/2014,30227549,412.50,Beechwood Childcare (Mill Lodge),7949
Solihull MBC,Adult Social Care,ASC - Joint Stores,Furniture & Equipment,D10000,12/05/2014,29149547,505.00,Benmore Medical Ltd,688602
Solihull MBC,Adult Social Care,ASC - Joint Stores,Furniture & Equipment,D10000,12/05/2014,29149547,65.00,Benmore Medical Ltd,688602
Solihull MBC,Adult Social Care,Primary Prevention,Other Contracted Services,E29000,07/05/2014,28308548,1359.00,Bernays And Whitehouse,55817
Solihull MBC,Adult Social Care,Sexual Health,Other Contracted Services,E29000,07/05/2014,28308548,840.20,Bernays And Whitehouse,55817
Solihull MBC,Adult Social Care,Winter Pressures,Other Contracted Services,E29000,06/05/2014,27928550,1067.30,Bernays And Whitehouse,55817
Solihull MBC,Adult Social Care,Sexual Health,Other Contracted Services,E29000,07/05/2014,28308548,1608.23,Bernays And Whitehouse,55817
Solihull MBC,Adult Social Care,SP - Old People Support Needs,Other Contracted Services,E29000,20/05/2014,30331552,548.24,Berrow Cottage Homes,88317
Solihull MBC,Children & Education Services,Haslucks Green Jnr,Telephones,D30000,13/05/2014,29375547,211.00,Best 4 Business Communications Ltd,271333
Solihull MBC,Children & Education Services,St Alphege Jnr,Training,A32000,16/05/2014,29928547,230.00,Best Practice Network Ltd,134328
Solihull MBC,Children & Education Services,St Alphege Jnr,Training,A32000,16/05/2014,29927547,230.00,Best Practice Network Ltd,134328
Solihull MBC,Children & Education Services,Smithswood,Catering Provisions,D20000,23/05/2014,31339549,288.15,Beverages Direct Ltd,100222
Solihull MBC,Cultural & Related Services,Business Support,Materials,D11000,15/05/2014,29780547,244.96,Bibliotheca,2651693
Solihull MBC,Cultural & Related Services,Business Support,IT Equipment & Software,D32000,20/05/2014,30569549,22272.80,Bibliotheca,2651693
Solihull MBC,Children & Education Services,2Yr Old Free E Learn/Care,Grant & Subscription (SCITT),D92000,19/05/2014,30227568,825.00,Billy Bears Nursery,102085
Solihull MBC,Children & Education Services,Section 17 South/Central,Clients Expenses,D62000,06/05/2014,28137547,390.60,Billy Bears Nursery,102085
Solihull MBC,Children & Education Services,Section 17 South/Central,Clients Expenses,D62000,08/05/2014,28678548,325.60,Billy Bears Nursery,102085
Solihull MBC,Highways & Transport Services,Street Lighting Contract 1,Furniture & Equipment,D10000,15/05/2014,29763547,220.80,Birkett Electric Ltd,11410
Solihull MBC,Children & Education Services,Kineton Green Primary,Purchase Card Statement Summary,D11002,10/04/2014,PC52828,225.00,Birmingham,Purchase Card Supplier
Solihull MBC,Adult Social Care,SP - Women At Risk Dom Voilence,Block Contracts,E21001,20/05/2014,30331554,7978.46,Birmingham And Solihull Women's Aid,247871
Solihull MBC,Adult Social Care,SP - Women At Risk Dom Voilence,Block Contracts,E21001,20/05/2014,30331553,14693.31,Birmingham And Solihull Women's Aid,247871
Solihull MBC,Highways & Transport Services,"JDT Commissioned Retender		",General Creditors,S00000,20/05/2014,30442547,50000.00,Birmingham City Council,8616
Solihull MBC,Highways & Transport Services,Network Management Staff,Professional Fees,D51000,12/05/2014,29218557,11712.75,Birmingham City Council,8616
Solihull MBC,Central Services to the Public,Business Rates Retention,Parish Precepts,J10000,01/05/2014,27776547,2042172.00,Birmingham City Council,8616
Solihull MBC,Court Services,Coroners Court,Other Contracted Services,E29000,12/05/2014,29218556,73073.00,Birmingham City Council,8616
Solihull MBC,Planning & Development Services,Lep Esb Skills Project,Other Contracted Services,E29000,01/05/2014,27787549,4500.00,Birmingham City Council,8616
Solihull MBC,Planning & Development Services,WM Freeport Rent,General Creditors,S00000,12/05/2014,29218558,11288.54,Birmingham City Council,8616
Solihull MBC,Planning & Development Services,Lep Esb Skills Project,Other Contracted Services,E29000,01/05/2014,27787550,4000.00,Birmingham City Council,8616
Solihull MBC,Central Services to the Public,Business Rates Retention,Parish Precepts,J10000,15/05/2014,29783549,2680351.00,Birmingham City Council,8616
Solihull MBC,Children & Education Services,Special Hospitl Education,Other Contracted Services,E29000,15/05/2014,29755549,114614.98,Birmingham City Council,8616
Solihull MBC,Central Services to the Public,Birmingham Airport,General Creditors,S00000,12/05/2014,29218555,78195.90,Birmingham City Council,8616
Solihull MBC,Children & Education Services,UASC Non Allowable Expend,Supported Lodgings,E29007,02/05/2014,27828631,748.86,Birmingham City Council,8616
Solihull MBC,Highways & Transport Services,"JDT Commissioned Mets		",General Creditors,S00000,20/05/2014,30442547,83822.63,Birmingham City Council,8616
Solihull MBC,Planning & Development Services,Lep Esb Skills Project,Other Contracted Services,E29000,01/05/2014,27787551,3785.00,Birmingham City Council Shared Services,401601
Solihull MBC,Central Services to the Public,Postage Pool Post Room,Postage & Courier Services,D43000,07/05/2014,28349547,10872.59,Birmingham City Council Shared Services,401601
Solihull MBC,Children & Education Services,Merstone,Visits & Pupil Activities,D52002,18/05/2014,30109547,286.67,Birmingham Climbing Wall Ltd,206478
Solihull MBC,Children & Education Services,Sports Co-Ordinators Prog,Professional Fees,D51000,07/05/2014,28374547,600.00,Birmingham Exiles Rfc Ltd,5227688
Solihull MBC,Adult Social Care,LD Spot Comm Care,ASC - Day Care,E20010,07/05/2014,28497689,2350.80,Birmingham Focus,8661
Solihull MBC,Adult Social Care,LD Spot Comm Care,ASC - Residential Care Respite,E20002,08/05/2014,28546547,954.60,Birmingham Focus,8661
Solihull MBC,Children & Education Services,St Alphege Jnr,Visits & Pupil Activities,D52002,16/05/2014,29940547,525.00,Birmingham International Coaches Ltd,34755
Solihull MBC,Children & Education Services,Coppice Jnr,Visits & Pupil Activities,D52002,19/05/2014,30134547,450.00,Birmingham International Coaches Ltd,34755
Solihull MBC,Children & Education Services,Smith's Wood,Capitation,D11001,08/05/2014,28547547,330.00,Birmingham Museums Trust,2779693
Solihull MBC,Children & Education Services,Ark,Capitation,D11001,28/04/2014,PC23174,365.65,Bishop Sports & Leisu,Purchase Card Supplier
Solihull MBC,Children & Education Services,Shirley Heath Jnr,Capitation,D11001,08/05/2014,28710548,722.75,Bishop Sports & Leisure Ltd,8738
Solihull MBC,Children & Education Services,Yorkswood J&I,Capitation,D11001,09/05/2014,28816547,139.50,Bishop Sports & Leisure Ltd,8738
Solihull MBC,Children & Education Services,Shirley Heath Jnr,Capitation,D11001,08/05/2014,28710551,1146.20,Bishop Sports & Leisure Ltd,8738
Solihull MBC,Children & Education Services,Yorkswood J&I,Capitation,D11001,09/05/2014,28816547,59.95,Bishop Sports & Leisure Ltd,8738
Solihull MBC,Children & Education Services,Yorkswood J&I,Capitation,D11001,13/05/2014,29327547,15.00,Bishop Sports & Leisure Ltd,8738
Solihull MBC,Children & Education Services,Yorkswood J&I,Capitation,D11001,09/05/2014,28816547,19.30,Bishop Sports & Leisure Ltd,8738
Solihull MBC,Children & Education Services,Yorkswood J&I,Capitation,D11001,09/05/2014,28816547,21.85,Bishop Sports & Leisure Ltd,8738
Solihull MBC,Children & Education Services,Yorkswood J&I,Capitation,D11001,13/05/2014,29327547,1950.00,Bishop Sports & Leisure Ltd,8738
Solihull MBC,Children & Education Services,Yorkswood J&I,Capitation,D11001,09/05/2014,28816547,-4.50,Bishop Sports & Leisure Ltd,8738
Solihull MBC,Children & Education Services,Yorkswood J&I,Capitation,D11001,09/05/2014,28816547,17.00,Bishop Sports & Leisure Ltd,8738
Solihull MBC,Children & Education Services,Yorkswood J&I,Capitation,D11001,09/05/2014,28816547,0.80,Bishop Sports & Leisure Ltd,8738
Solihull MBC,Adult Social Care,OP South Spot Comm Care,ASC - Residential Care Permanent,E20003,16/05/2014,29939570,1180.77,Bjcc,688195
Solihull MBC,Children & Education Services,St Alphege Inf,Visits & Pupil Activities,D52002,23/05/2014,31265549,570.30,Black Country Museum Trust Ltd,43307
Solihull MBC,Children & Education Services,Castle Bromwich Inf,Visits & Pupil Activities,D52002,16/05/2014,30081549,1002.10,Black Country Museum Trust Ltd,43307
Solihull MBC,Children & Education Services,Youth Offending Team,General Office Expenses,D42000,14/04/2014,PC76594,600.00,Blackwell Adv.,Purchase Card Supplier
Solihull MBC,Children & Education Services,Streetsbrook Inf,Visits & Pupil Activities,D52002,22/05/2014,31160547,3400.00,Blackwell Adventure,136240
Solihull MBC,Children & Education Services,School Concerts,Capitation,D11001,27/05/2014,31550547,43.90,Blue Aran Ltd,286167
Solihull MBC,Children & Education Services,School Concerts,Capitation,D11001,27/05/2014,31550547,52.35,Blue Aran Ltd,286167
Solihull MBC,Children & Education Services,School Concerts,Capitation,D11001,27/05/2014,31550547,99.30,Blue Aran Ltd,286167
Solihull MBC,Children & Education Services,School Concerts,Capitation,D11001,27/05/2014,31550547,28.82,Blue Aran Ltd,286167
Solihull MBC,Adult Social Care,MH - Social Work Team,ASC - Domiciliary Care,E20008,13/05/2014,29258548,400.00,Blueberry Housing Ltd,208121
Solihull MBC,Children & Education Services,UASC 18+ Team 2,Rents - Accommodation,E29011,07/05/2014,28486547,148.00,Blueberry Housing LTD,208121
Solihull MBC,Children & Education Services,UASC 18+,Clients Expenses,D62000,21/05/2014,30689547,292.50,Blueberry Housing Ltd,208121
Solihull MBC,Children & Education Services,UASC 18+,Clients Transport Costs,C21000,30/05/2014,32084547,57.00,Blueberry Housing Ltd,208121
Solihull MBC,Children & Education Services,UASC 18+,Clients Further Education Support,D62021,30/05/2014,32095547,40.00,Blueberry Housing Ltd,208121
Solihull MBC,Children & Education Services,UASC 18+,Supported Lodgings,E29007,30/05/2014,32095547,649.60,Blueberry Housing Ltd,208121
Solihull MBC,Adult Social Care,MH - ASC Asylum Seekers,Rents For Premises,B22000,07/05/2014,28505547,-750.00,Blueberry Housing LTD,208121
Solihull MBC,Children & Education Services,UASC 18+,Supported Lodgings,E29007,30/05/2014,32084547,628.85,Blueberry Housing Ltd,208121
Solihull MBC,Children & Education Services,UASC 18+,Clients Transport Costs,C21000,21/05/2014,30689547,97.00,Blueberry Housing Ltd,208121
Solihull MBC,Children & Education Services,UASC 18+,Supported Lodgings,E29007,19/05/2014,30116547,250.80,Blueberry Housing Ltd,208121
Solihull MBC,Adult Social Care,MH - ASC Asylum Seekers,Rents For Premises,B22000,07/05/2014,28505547,457.50,Blueberry Housing LTD,208121
Solihull MBC,Children & Education Services,UASC 18+ Team 2,Clients Expenses,D62000,07/05/2014,28486547,207.20,Blueberry Housing Ltd,208121
Solihull MBC,Children & Education Services,UASC 16+,Clients Expenses,D62000,07/05/2014,28490547,229.28,Blueberry Housing Ltd,208121
Solihull MBC,Adult Social Care,MH - ASC Asylum Seekers,Rents For Premises,B22000,07/05/2014,28505547,750.00,Blueberry Housing LTD,208121
Solihull MBC,Adult Social Care,MH - ASC Asylum Seekers,Rents For Premises,B22000,07/05/2014,28505547,292.50,Blueberry Housing LTD,208121
Solihull MBC,Children & Education Services,UASC 18+,Clients Expenses,D62000,19/05/2014,30115547,468.00,Blueberry Housing Ltd,208121
Solihull MBC,Children & Education Services,UASC 18+,Supported Lodgings,E29007,19/05/2014,30115547,381.75,Blueberry Housing Ltd,208121
Solihull MBC,Children & Education Services,UASC 16+,Clients Expenses,D62000,07/05/2014,28490547,148.00,Blueberry Housing Ltd,208121
Solihull MBC,Children & Education Services,UASC 18+,Clients Expenses,D62000,30/05/2014,32095547,585.00,Blueberry Housing Ltd,208121
Solihull MBC,Children & Education Services,UASC 18+,Supported Lodgings,E29007,21/05/2014,30689547,157.50,Blueberry Housing Ltd,208121
Solihull MBC,Children & Education Services,UASC 16+,Supported Lodgings,E29007,07/05/2014,28490547,980.00,Blueberry Housing Ltd,208121
Solihull MBC,Children & Education Services,UASC 18+,Supported Lodgings,E29007,30/05/2014,32084547,74.00,Blueberry Housing Ltd,208121
Solihull MBC,Children & Education Services,UASC 18+,Clients Expenses,D62000,21/05/2014,30689547,45.00,Blueberry Housing Ltd,208121
Solihull MBC,Children & Education Services,UASC 18+ Team 2,Rents - Accommodation,E29011,07/05/2014,28486547,700.06,Blueberry Housing LTD,208121
Solihull MBC,Children & Education Services,UASC 18+,Clients Expenses,D62000,19/05/2014,30116547,160.50,Blueberry Housing Ltd,208121
Solihull MBC,Children & Education Services,Section 17 CDT,Clients Expenses,D62000,22/05/2014,31182548,461.00,Bluebird Care,1731617
Solihull MBC,Children & Education Services,Section 17 CDT,Clients Expenses,D62000,23/05/2014,31282547,446.50,Bluebird Care,1731617
Solihull MBC,Children & Education Services,Section 17 CDT,Clients Expenses,D62000,22/05/2014,31075548,389.00,Bluebird Care,1731617
Solihull MBC,Children & Education Services,Section 17 CDT,Clients Expenses,D62000,29/05/2014,32071547,494.00,Bluebird Care,1731617
Solihull MBC,Children & Education Services,Section 17 CDT,Clients Expenses,D62000,22/05/2014,31041547,480.00,Bluebird Care,1731617
Solihull MBC,Children & Education Services,Section 17 CDT,Clients Expenses,D62000,22/05/2014,31152548,488.00,Bluebird Care,1731617
Solihull MBC,Children & Education Services,Lyndon,Consumables,D32907,22/05/2014,31003547,2862.95,Bluepoint Corporation Ltd,132566
Solihull MBC,Children & Education Services,Lyndon,Capitation,D11001,20/05/2014,30647547,46.20,Bluepoint Corporation Ltd,132566
Solihull MBC,Children & Education Services,Lyndon,IT Equipment & Software,D32000,20/05/2014,30647547,918.25,Bluepoint Corporation Ltd,132566
Solihull MBC,Planning & Development Services,Starley Way Industrial Units,Professional Fees,D51000,29/05/2014,31978547,-350.28,Bnp Paribas Real Estate Property Management,204159
Solihull MBC,Planning & Development Services,Starley Way Industrial Units,Professional Fees,D51000,29/05/2014,32044547,350.28,Bnp Paribas Real Estate Property Management,204159
Solihull MBC,Planning & Development Services,Starley Way Industrial Units,Professional Fees,D51000,29/05/2014,31978547,350.28,Bnp Paribas Real Estate Property Management,204159
Solihull MBC,Planning & Development Services,Starley Way Industrial Units,Professional Fees,D51000,29/05/2014,31978547,-291.90,Bnp Paribas Real Estate Property Management,204159
Solihull MBC,Planning & Development Services,Starley Way Industrial Units,Professional Fees,D51000,29/05/2014,31978547,350.28,Bnp Paribas Real Estate Property Management,204159
Solihull MBC,Planning & Development Services,Starley Way Industrial Units,Professional Fees,D51000,29/05/2014,31978547,291.90,Bnp Paribas Real Estate Property Management,204159
Solihull MBC,Adult Social Care,OP South Spot Comm Care,ASC - Residential Care Permanent,E20003,12/05/2014,29197556,988.07,Bondcare (Bromford) Ltd,1035597
Solihull MBC,Adult Social Care,OP South Spot Comm Care,ASC - Nursing Care Permanent,E20005,12/05/2014,29197557,1350.56,Bondcare (Bromford) Ltd,1035597
Solihull MBC,Adult Social Care,Prior Year Spot PMT 12/13,ASC - Nursing Care Permanent,E20005,27/05/2014,31598548,5225.17,Bondcare St Andrews Ltd,1755621
Solihull MBC,Adult Social Care,Prior Year Spot PMT 12/13,ASC - Nursing Care Permanent,E20005,27/05/2014,31598549,312.28,Bondcare St Andrews Ltd,1755621
Solihull MBC,Adult Social Care,OP South Spot Comm Care,ASC - Nursing Care Permanent,E20005,07/05/2014,28497629,1280.49,Bondcare St Andrews Ltd,1755621
Solihull MBC,Adult Social Care,OP South Spot Comm Care,ASC - Nursing Care Permanent,E20005,07/05/2014,28497631,1863.42,Bondcare St Andrews Ltd,1755621
Solihull MBC,Adult Social Care,OP - North Spot Comm Care,ASC - Nursing Care Permanent,E20005,07/05/2014,28497628,1269.21,Bondcare St Andrews Ltd,1755621
Solihull MBC,Adult Social Care,Prior Year Spot PMT 12/13,ASC - Nursing Care Permanent,E20005,27/05/2014,31598547,493.83,Bondcare St Andrews Ltd,1755621
Solihull MBC,Adult Social Care,OP South Spot Comm Care,ASC - Nursing Care Permanent,E20005,07/05/2014,28497627,1414.63,Bondcare St Andrews Ltd,1755621
Solihull MBC,Adult Social Care,OP South Spot Comm Care,ASC - Nursing Care Permanent,E20005,07/05/2014,28497632,1042.41,Bondcare St Andrews Ltd,1755621
Solihull MBC,Adult Social Care,Prior Year Spot PMT 12/13,ASC - Nursing Care Permanent,E20005,27/05/2014,31598550,1783.38,Bondcare St Andrews Ltd,1755621
Solihull MBC,Central Services to the Public,Legal Services,Postage & Courier Services,D43000,23/05/2014,31271549,250.00,Bonds Worldwide Express Ltd,120085
Solihull MBC,Children & Education Services,Specialist Inclusion Support Service,Materials,D11000,27/05/2014,31693547,323.50,Bookpoint Ltd,9157
Solihull MBC,Adult Social Care,Drug and Alcohol Misuse,Other Contracted Services,E29000,21/05/2014,30672547,42.96,Boots The Chemist,21499
Solihull MBC,Adult Social Care,Sexual Health,Other Contracted Services,E29000,21/05/2014,30671547,488.40,Boots The Chemist,21499
Solihull MBC,Adult Social Care,Drug and Alcohol Misuse,Other Contracted Services,E29000,21/05/2014,30668547,8.18,Boots The Chemist,21499
Solihull MBC,Adult Social Care,Drug and Alcohol Misuse,Other Contracted Services,E29000,21/05/2014,30668547,220.17,Boots The Chemist,21499
Solihull MBC,Adult Social Care,Sexual Health,Other Contracted Services,E29000,21/05/2014,30671547,208.00,Boots The Chemist,21499
Solihull MBC,Adult Social Care,Sexual Health,Other Contracted Services,E29000,21/05/2014,30668547,192.40,Boots The Chemist,21499
Solihull MBC,Adult Social Care,Tobacco,Other Contracted Services,E29000,21/05/2014,30668547,75.50,Boots The Chemist,21499
Solihull MBC,Adult Social Care,Drug and Alcohol Misuse,Other Contracted Services,E29000,21/05/2014,30672547,66.03,Boots The Chemist,21499
Solihull MBC,Adult Social Care,Sexual Health,Other Contracted Services,E29000,21/05/2014,30672547,207.57,Boots The Chemist,21499
Solihull MBC,Adult Social Care,Sexual Health,Other Contracted Services,E29000,21/05/2014,30672547,88.40,Boots The Chemist,21499
Solihull MBC,Adult Social Care,Drug and Alcohol Misuse,Other Contracted Services,E29000,21/05/2014,30671547,34.68,Boots The Chemist,21499
Solihull MBC,Adult Social Care,Tobacco,Other Contracted Services,E29000,21/05/2014,30668547,297.96,Boots The Chemist,21499
Solihull MBC,Adult Social Care,Drug and Alcohol Misuse,Other Contracted Services,E29000,21/05/2014,30668547,155.90,Boots The Chemist,21499
Solihull MBC,Adult Social Care,Sexual Health,Other Contracted Services,E29000,21/05/2014,30668547,451.77,Boots The Chemist,21499
Solihull MBC,Adult Social Care,Tobacco,Other Contracted Services,E29000,21/05/2014,30668547,6.00,Boots The Chemist,21499
Solihull MBC,Other Housing Services,Discretionary Hsg Payments,Clients Expenses,D62000,27/05/2014,31545547,308.34,Borshch Electric,37562
Solihull MBC,Other Housing Services,Discretionary Hsg Payments,Clients Expenses,D62000,27/05/2014,31739547,470.84,Borshch Electric,37562
Solihull MBC,Other Housing Services,Discretionary Hsg Payments,Clients Expenses,D62000,27/05/2014,31751548,279.17,Borshch Electric,37562
Solihull MBC,Other Housing Services,Discretionary Hsg Payments,Clients Expenses,D62000,27/05/2014,31737547,320.83,Borshch Electric,37562
Solihull MBC,Other Housing Services,Discretionary Hsg Payments,Clients Expenses,D62000,27/05/2014,31548547,316.67,Borshch Electric,37562
Solihull MBC,Other Housing Services,Discretionary Hsg Payments,Clients Expenses,D62000,27/05/2014,31753549,341.67,Borshch Electric,37562
Solihull MBC,Other Housing Services,Discretionary Hsg Payments,Clients Expenses,D62000,27/05/2014,31751547,341.67,Borshch Electric,37562
Solihull MBC,Other Housing Services,Discretionary Hsg Payments,Clients Expenses,D62000,27/05/2014,31748547,341.67,Borshch Electric,37562
Solihull MBC,Other Housing Services,Discretionary Hsg Payments,Clients Expenses,D62000,27/05/2014,31739548,475.00,Borshch Electric,37562
Solihull MBC,Other Housing Services,Discretionary Hsg Payments,Clients Expenses,D62000,27/05/2014,31753550,279.17,Borshch Electric,37562
Solihull MBC,Other Housing Services,Discretionary Hsg Payments,Clients Expenses,D62000,06/05/2014,28010547,320.83,Borshch Electric,37562
Solihull MBC,Other Housing Services,Discretionary Hsg Payments,Clients Expenses,D62000,27/05/2014,31753551,279.17,Borshch Electric,37562
Solihull MBC,Other Housing Services,Discretionary Hsg Payments,Clients Expenses,D62000,27/05/2014,31751549,279.17,Borshch Electric,37562
Solihull MBC,Children & Education Services,Hazel Oak,Capitation,D11001,07/05/2014,28420547,350.00,Bostin Productions Ltd,3820686
Solihull MBC,Adult Social Care,Sexual Health,Other Contracted Services,E29000,08/05/2014,28727549,1512.36,Bosworth Medical Centre,9235
Solihull MBC,Adult Social Care,Sexual Health,Other Contracted Services,E29000,08/05/2014,28727549,1054.62,Bosworth Medical Centre,9235
Solihull MBC,Adult Social Care,Primary Prevention,Other Contracted Services,E29000,08/05/2014,28727549,715.00,Bosworth Medical Centre,9235
Solihull MBC,Adult Social Care,OP South Spot Comm Care,ASC - Residential Care Permanent,E20003,20/05/2014,30559547,1351.20,Bower Grange Residential Care Home,1906616
Solihull MBC,Children & Education Services,UASC Non Allowable Expend,Clients Expenses,D62000,22/04/2014,PC14800,341.14,Bradford Met Council,Purchase Card Supplier
Solihull MBC,Children & Education Services,Blossomfield Inf,Capitation,D11001,07/05/2014,28353547,18.58,Brainwaves,9468
Solihull MBC,Children & Education Services,Blossomfield Inf,Capitation,D11001,07/05/2014,28353547,-18.58,Brainwaves,9468
Solihull MBC,Children & Education Services,Blossomfield Inf,Capitation,D11001,07/05/2014,28353547,-2.79,Brainwaves,9468
Solihull MBC,Children & Education Services,Blossomfield Inf,Capitation,D11001,07/05/2014,28353547,-2.79,Brainwaves,9468
Solihull MBC,Children & Education Services,Blossomfield Inf,Capitation,D11001,07/05/2014,28353547,-2.73,Brainwaves,9468
Solihull MBC,Children & Education Services,Blossomfield Inf,Capitation,D11001,07/05/2014,28353547,-2.78,Brainwaves,9468
Solihull MBC,Children & Education Services,Blossomfield Inf,Capitation,D11001,07/05/2014,28353547,18.58,Brainwaves,9468
Solihull MBC,Children & Education Services,Blossomfield Inf,Capitation,D11001,07/05/2014,28353547,18.58,Brainwaves,9468
Solihull MBC,Children & Education Services,Blossomfield Inf,Capitation,D11001,07/05/2014,28353547,18.58,Brainwaves,9468
Solihull MBC,Children & Education Services,Blossomfield Inf,Capitation,D11001,07/05/2014,28353547,18.59,Brainwaves,9468
Solihull MBC,Children & Education Services,Blossomfield Inf,Capitation,D11001,07/05/2014,28353547,18.58,Brainwaves,9468
Solihull MBC,Children & Education Services,Blossomfield Inf,Capitation,D11001,07/05/2014,28353547,-2.79,Brainwaves,9468
Solihull MBC,Children & Education Services,Blossomfield Inf,Capitation,D11001,07/05/2014,28353547,-2.79,Brainwaves,9468
Solihull MBC,Children & Education Services,Blossomfield Inf,Capitation,D11001,07/05/2014,28353547,18.58,Brainwaves,9468
Solihull MBC,Children & Education Services,Blossomfield Inf,Capitation,D11001,07/05/2014,28353547,25.58,Brainwaves,9468
Solihull MBC,Children & Education Services,Blossomfield Inf,Capitation,D11001,07/05/2014,28353547,18.58,Brainwaves,9468
Solihull MBC,Children & Education Services,Blossomfield Inf,Capitation,D11001,07/05/2014,28353547,-2.79,Brainwaves,9468
Solihull MBC,Children & Education Services,Blossomfield Inf,Capitation,D11001,07/05/2014,28353547,-2.79,Brainwaves,9468
Solihull MBC,Children & Education Services,Blossomfield Inf,Capitation,D11001,07/05/2014,28353547,-18.58,Brainwaves,9468
Solihull MBC,Children & Education Services,Blossomfield Inf,Capitation,D11001,07/05/2014,28353547,-18.58,Brainwaves,9468
Solihull MBC,Children & Education Services,Blossomfield Inf,Capitation,D11001,07/05/2014,28353547,18.58,Brainwaves,9468
Solihull MBC,Children & Education Services,Blossomfield Inf,Capitation,D11001,07/05/2014,28353547,18.58,Brainwaves,9468
Solihull MBC,Children & Education Services,Blossomfield Inf,Capitation,D11001,07/05/2014,28353547,18.58,Brainwaves,9468
Solihull MBC,Children & Education Services,Blossomfield Inf,Capitation,D11001,07/05/2014,28353547,-18.58,Brainwaves,9468
Solihull MBC,Children & Education Services,Blossomfield Inf,Capitation,D11001,07/05/2014,28353547,-25.58,Brainwaves,9468
Solihull MBC,Children & Education Services,Blossomfield Inf,Capitation,D11001,07/05/2014,28353547,18.58,Brainwaves,9468
Solihull MBC,Children & Education Services,Blossomfield Inf,Capitation,D11001,07/05/2014,28353547,25.58,Brainwaves,9468
Solihull MBC,Children & Education Services,Blossomfield Inf,Capitation,D11001,07/05/2014,28353547,-3.84,Brainwaves,9468
Solihull MBC,Children & Education Services,Blossomfield Inf,Capitation,D11001,07/05/2014,28353547,18.58,Brainwaves,9468
Solihull MBC,Children & Education Services,Blossomfield Inf,Capitation,D11001,07/05/2014,28353547,-18.59,Brainwaves,9468
Solihull MBC,Children & Education Services,Blossomfield Inf,Capitation,D11001,07/05/2014,28353547,18.58,Brainwaves,9468
Solihull MBC,Children & Education Services,Blossomfield Inf,Capitation,D11001,07/05/2014,28353547,18.58,Brainwaves,9468
Solihull MBC,Children & Education Services,Blossomfield Inf,Capitation,D11001,07/05/2014,28353547,-2.79,Brainwaves,9468
Solihull MBC,Children & Education Services,Blossomfield Inf,Capitation,D11001,07/05/2014,28353547,-2.79,Brainwaves,9468
Solihull MBC,Children & Education Services,Blossomfield Inf,Capitation,D11001,07/05/2014,28353547,-2.78,Brainwaves,9468
Solihull MBC,Children & Education Services,Blossomfield Inf,Capitation,D11001,07/05/2014,28353547,18.59,Brainwaves,9468
Solihull MBC,Children & Education Services,Blossomfield Inf,Capitation,D11001,07/05/2014,28353547,-25.58,Brainwaves,9468
Solihull MBC,Children & Education Services,Blossomfield Inf,Capitation,D11001,07/05/2014,28353547,-18.58,Brainwaves,9468
Solihull MBC,Children & Education Services,Blossomfield Inf,Capitation,D11001,07/05/2014,28353547,18.58,Brainwaves,9468
Solihull MBC,Children & Education Services,Blossomfield Inf,Capitation,D11001,07/05/2014,28353547,-3.84,Brainwaves,9468
Solihull MBC,Children & Education Services,Blossomfield Inf,Capitation,D11001,07/05/2014,28353547,25.58,Brainwaves,9468
Solihull MBC,Children & Education Services,Blossomfield Inf,Capitation,D11001,07/05/2014,28353547,18.59,Brainwaves,9468
Solihull MBC,Children & Education Services,Blossomfield Inf,Capitation,D11001,07/05/2014,28353547,-18.59,Brainwaves,9468
Solihull MBC,Children & Education Services,Blossomfield Inf,Capitation,D11001,07/05/2014,28353547,-18.58,Brainwaves,9468
Solihull MBC,Children & Education Services,Blossomfield Inf,Capitation,D11001,07/05/2014,28353547,-18.58,Brainwaves,9468
Solihull MBC,Children & Education Services,Blossomfield Inf,Capitation,D11001,07/05/2014,28353547,-18.58,Brainwaves,9468
Solihull MBC,Children & Education Services,Blossomfield Inf,Capitation,D11001,07/05/2014,28353547,18.58,Brainwaves,9468
Solihull MBC,Children & Education Services,Blossomfield Inf,Capitation,D11001,07/05/2014,28353547,18.58,Brainwaves,9468
Solihull MBC,Children & Education Services,Blossomfield Inf,Capitation,D11001,07/05/2014,28353547,25.58,Brainwaves,9468
Solihull MBC,Children & Education Services,Blossomfield Inf,Capitation,D11001,07/05/2014,28353547,18.58,Brainwaves,9468
Solihull MBC,Children & Education Services,Blossomfield Inf,Capitation,D11001,07/05/2014,28353547,-2.79,Brainwaves,9468
Solihull MBC,Children & Education Services,Blossomfield Inf,Capitation,D11001,07/05/2014,28353547,18.58,Brainwaves,9468
Solihull MBC,Children & Education Services,Blossomfield Inf,Capitation,D11001,07/05/2014,28353547,18.58,Brainwaves,9468
Solihull MBC,Children & Education Services,Blossomfield Inf,Capitation,D11001,07/05/2014,28353547,-18.59,Brainwaves,9468
Solihull MBC,Children & Education Services,Blossomfield Inf,Capitation,D11001,07/05/2014,28353547,-18.58,Brainwaves,9468
Solihull MBC,Children & Education Services,Blossomfield Inf,Capitation,D11001,07/05/2014,28353547,18.58,Brainwaves,9468
Solihull MBC,Children & Education Services,Our Lady Compassion J&I,Catering Provisions,D20000,20/05/2014,30656547,301.45,Brake Bros Foodservice Ltd,9490
Solihull MBC,Children & Education Services,Our Lady Wayside J&I,Catering Provisions,D20000,16/05/2014,30059549,434.49,Brake Bros Foodservice Ltd,9490
Solihull MBC,Children & Education Services,Our Lady Wayside J&I,Catering Provisions,D20000,20/05/2014,30658547,350.22,Brake Bros Foodservice Ltd,9490
Solihull MBC,Children & Education Services,St Alphege Inf,Catering Provisions,D20000,16/05/2014,30059549,293.48,Brake Bros Foodservice Ltd,9490
Solihull MBC,Children & Education Services,St Alphege Inf,Catering Provisions,D20000,20/05/2014,30656547,31.40,Brake Bros Foodservice Ltd,9490
Solihull MBC,Children & Education Services,St Alphege Inf,Catering Provisions,D20000,21/05/2014,30882547,369.88,Brake Bros Foodservice Ltd,9490
Solihull MBC,Children & Education Services,St Andrew's J&I,Catering Provisions,D20000,20/05/2014,30642547,248.05,Brake Bros Foodservice Ltd,9490
Solihull MBC,Children & Education Services,St Anne's J&I,Catering Provisions,D20000,16/05/2014,30059549,254.99,Brake Bros Foodservice Ltd,9490
Solihull MBC,Children & Education Services,St Anne's J&I,Catering Provisions,D20000,20/05/2014,30658547,73.32,Brake Bros Foodservice Ltd,9490
Solihull MBC,Children & Education Services,St Anthony's J&I,Catering Provisions,D20000,21/05/2014,30876547,94.84,Brake Bros Foodservice Ltd,9490
Solihull MBC,Children & Education Services,St Anthony's J&I,Catering Provisions,D20000,30/05/2014,32145547,13.42,Brake Bros Foodservice Ltd,9490
Solihull MBC,Children & Education Services,St Augustine's J&I,Catering Provisions,D20000,20/05/2014,30642547,261.55,Brake Bros Foodservice Ltd,9490
Solihull MBC,Children & Education Services,St George & St Teresa J&I,Catering Provisions,D20000,20/05/2014,30658547,111.42,Brake Bros Foodservice Ltd,9490
Solihull MBC,Children & Education Services,St George & St Teresa J&I,Catering Provisions,D20000,30/05/2014,32145547,72.45,Brake Bros Foodservice Ltd,9490
Solihull MBC,Children & Education Services,St John Baptist,Catering Provisions,D20000,20/05/2014,30658547,72.64,Brake Bros Foodservice Ltd,9490
Solihull MBC,Children & Education Services,St John Baptist,Catering Provisions,D20000,30/05/2014,32145547,13.43,Brake Bros Foodservice Ltd,9490
Solihull MBC,Children & Education Services,St Margaret's,Catering Provisions,D20000,21/05/2014,30882547,244.25,Brake Bros Foodservice Ltd,9490
Solihull MBC,Children & Education Services,St Margaret's,Catering Provisions,D20000,30/05/2014,32145547,157.20,Brake Bros Foodservice Ltd,9490
Solihull MBC,Children & Education Services,St Margaret's,Catering Provisions,D20000,30/05/2014,32145547,10.20,Brake Bros Foodservice Ltd,9490
Solihull MBC,Children & Education Services,St Mary & Margaret J&I,Catering Provisions,D20000,16/05/2014,30059549,43.52,Brake Bros Foodservice Ltd,9490
Solihull MBC,Children & Education Services,Lyndon,Catering Provisions,D20000,20/05/2014,30656547,685.85,Brake Bros Foodservice Ltd,9490
Solihull MBC,Children & Education Services,Smithswood,Catering Provisions,D20000,21/05/2014,30876547,148.65,Brake Bros Foodservice Ltd,9490
Solihull MBC,Children & Education Services,Smithswood,Catering Provisions,D20000,21/05/2014,30876547,133.52,Brake Bros Foodservice Ltd,9490
Solihull MBC,Children & Education Services,Parkhall Academy Catering,Catering Provisions,D20000,20/05/2014,30656547,854.65,Brake Bros Foodservice Ltd,9490
Solihull MBC,Children & Education Services,Arden Academy Catering,Catering Provisions,D20000,20/05/2014,30578549,180.98,Brake Bros Foodservice Ltd,9490
Solihull MBC,Children & Education Services,Arden Academy Catering,Catering Provisions,D20000,20/05/2014,30642547,254.68,Brake Bros Foodservice Ltd,9490
Solihull MBC,Children & Education Services,Arden Academy Catering,Catering Provisions,D20000,30/05/2014,32143555,120.95,Brake Bros Foodservice Ltd,9490
Solihull MBC,Children & Education Services,John Henry Newman Caterg,Catering Provisions,D20000,16/05/2014,30067547,397.20,Brake Bros Foodservice Ltd,9490
Solihull MBC,Children & Education Services,John Henry Newman Caterg,Catering Provisions,D20000,20/05/2014,30578549,228.52,Brake Bros Foodservice Ltd,9490
Solihull MBC,Children & Education Services,John Henry Newman Caterg,Catering Provisions,D20000,20/05/2014,30642547,297.97,Brake Bros Foodservice Ltd,9490
Solihull MBC,Children & Education Services,John Henry Newman Caterg,Catering Provisions,D20000,20/05/2014,30642547,211.50,Brake Bros Foodservice Ltd,9490
Solihull MBC,Children & Education Services,John Henry Newman Caterg,Catering Provisions,D20000,20/05/2014,30658547,303.47,Brake Bros Foodservice Ltd,9490
Solihull MBC,Children & Education Services,Heart of England Academy,Catering Provisions,D20000,16/05/2014,30067547,0.01,Brake Bros Foodservice Ltd,9490
Solihull MBC,Children & Education Services,Heart of England Academy,Catering Provisions,D20000,21/05/2014,30876547,434.53,Brake Bros Foodservice Ltd,9490
Solihull MBC,Children & Education Services,Heart of England Academy,Catering Provisions,D20000,21/05/2014,30882547,216.73,Brake Bros Foodservice Ltd,9490
Solihull MBC,Children & Education Services,Alderbrook Academy,Catering Provisions,D20000,16/05/2014,30059549,268.58,Brake Bros Foodservice Ltd,9490
Solihull MBC,Children & Education Services,Alderbrook Academy,Catering Provisions,D20000,20/05/2014,30658547,102.36,Brake Bros Foodservice Ltd,9490
Solihull MBC,Children & Education Services,Langley Academy,Catering Provisions,D20000,16/05/2014,30059549,353.34,Brake Bros Foodservice Ltd,9490
Solihull MBC,Children & Education Services,Langley Academy,Catering Provisions,D20000,30/05/2014,32145547,226.15,Brake Bros Foodservice Ltd,9490
Solihull MBC,Children & Education Services,Langley Academy,Catering Provisions,D20000,30/05/2014,32145547,351.47,Brake Bros Foodservice Ltd,9490
Solihull MBC,Children & Education Services,Light Hall Academy,Catering Provisions,D20000,20/05/2014,30658547,133.82,Brake Bros Foodservice Ltd,9490
Solihull MBC,Children & Education Services,Light Hall Academy,Catering Provisions,D20000,21/05/2014,30876547,265.48,Brake Bros Foodservice Ltd,9490
Solihull MBC,Children & Education Services,Lode Heath Academy,Catering Provisions,D20000,20/05/2014,30658547,128.86,Brake Bros Foodservice Ltd,9490
Solihull MBC,Children & Education Services,Lode Heath Academy,Catering Provisions,D20000,21/05/2014,30882547,95.52,Brake Bros Foodservice Ltd,9490
Solihull MBC,Children & Education Services,Lanchester Centre,Catering Provisions,D20000,20/05/2014,30658547,19.50,Brake Bros Foodservice Ltd,9490
Solihull MBC,Children & Education Services,Lanchester Centre,Catering Provisions,D20000,21/05/2014,30882547,61.95,Brake Bros Foodservice Ltd,9490
Solihull MBC,Children & Education Services,Forest Oak,Catering Provisions,D20000,20/05/2014,30578549,15.35,Brake Bros Foodservice Ltd,9490
Solihull MBC,Children & Education Services,Forest Oak,Catering Provisions,D20000,30/05/2014,32145547,10.20,Brake Bros Foodservice Ltd,9490
Solihull MBC,Children & Education Services,Hazel Oak,Catering Provisions,D20000,16/05/2014,30059549,193.89,Brake Bros Foodservice Ltd,9490
Solihull MBC,Children & Education Services,Hazel Oak,Catering Provisions,D20000,20/05/2014,30578549,78.09,Brake Bros Foodservice Ltd,9490
Solihull MBC,Children & Education Services,Hazel Oak,Catering Provisions,D20000,20/05/2014,30642547,4.79,Brake Bros Foodservice Ltd,9490
Solihull MBC,Children & Education Services,Hazel Oak,Catering Provisions,D20000,20/05/2014,30658547,149.09,Brake Bros Foodservice Ltd,9490
Solihull MBC,Children & Education Services,Reynolds Cross,Catering Provisions,D20000,30/05/2014,32145547,201.43,Brake Bros Foodservice Ltd,9490
Solihull MBC,Cultural & Related Services,Theatre Bar,Catering Provisions,D20000,06/05/2014,28229547,71.62,Brake Bros Foodservice Ltd,9490
Solihull MBC,Adult Social Care,LD - General Work Related,Catering Provisions,D20000,15/05/2014,29858547,113.52,Brake Bros Foodservice Ltd,9490
Solihull MBC,Children & Education Services,Civic Suite Catering,Catering Provisions,D20000,16/05/2014,30059549,150.45,Brake Bros Foodservice Ltd,9490
Solihull MBC,Children & Education Services,Civic Suite Catering,Catering Provisions,D20000,20/05/2014,30656547,146.40,Brake Bros Foodservice Ltd,9490
Solihull MBC,Children & Education Services,Civic Suite Catering,Catering Provisions,D20000,20/05/2014,30658547,66.44,Brake Bros Foodservice Ltd,9490
Solihull MBC,Children & Education Services,Civic Suite Catering,Catering Provisions,D20000,21/05/2014,30882547,168.16,Brake Bros Foodservice Ltd,9490
Solihull MBC,Children & Education Services,Civic Suite Catering,Catering Provisions,D20000,30/05/2014,32143555,90.35,Brake Bros Foodservice Ltd,9490
Solihull MBC,Children & Education Services,San Souci,Catering Provisions,D20000,21/05/2014,30876547,286.86,Brake Bros Foodservice Ltd,9490
Solihull MBC,Children & Education Services,Burnham Inf,Catering Provisions,D20000,30/05/2014,32145547,10.20,Brake Bros Foodservice Ltd,9490
Solihull MBC,Children & Education Services,C Bromwich Jnr,Catering Provisions,D20000,20/05/2014,30642547,13.94,Brake Bros Foodservice Ltd,9490
Solihull MBC,Children & Education Services,C Bromwich Inf,Catering Provisions,D20000,20/05/2014,30642547,245.20,Brake Bros Foodservice Ltd,9490
Solihull MBC,Children & Education Services,C Bromwich Inf,Catering Provisions,D20000,20/05/2014,30658547,297.74,Brake Bros Foodservice Ltd,9490
Solihull MBC,Children & Education Services,C Bromwich Inf,Catering Provisions,D20000,21/05/2014,30882547,242.10,Brake Bros Foodservice Ltd,9490
Solihull MBC,Children & Education Services,Cheswick Green,Catering Provisions,D20000,16/05/2014,30059549,205.83,Brake Bros Foodservice Ltd,9490
Solihull MBC,Children & Education Services,Coppice Jnr,Catering Provisions,D20000,16/05/2014,30059549,225.59,Brake Bros Foodservice Ltd,9490
Solihull MBC,Children & Education Services,Coppice Jnr,Catering Provisions,D20000,30/05/2014,32143555,17.50,Brake Bros Foodservice Ltd,9490
Solihull MBC,Children & Education Services,Damson Wood Inf,Catering Provisions,D20000,20/05/2014,30656547,121.42,Brake Bros Foodservice Ltd,9490
Solihull MBC,Children & Education Services,Damson Wood Inf,Catering Provisions,D20000,20/05/2014,30658547,10.19,Brake Bros Foodservice Ltd,9490
Solihull MBC,Children & Education Services,Daylesford Inf,Catering Provisions,D20000,20/05/2014,30656547,117.29,Brake Bros Foodservice Ltd,9490
Solihull MBC,Children & Education Services,Daylesford Inf,Catering Provisions,D20000,21/05/2014,30882547,45.49,Brake Bros Foodservice Ltd,9490
Solihull MBC,Children & Education Services,Dorridge Jnr,Catering Provisions,D20000,20/05/2014,30642547,363.18,Brake Bros Foodservice Ltd,9490
Solihull MBC,Children & Education Services,Dorridge Jnr,Catering Provisions,D20000,20/05/2014,30642547,225.58,Brake Bros Foodservice Ltd,9490
Solihull MBC,Children & Education Services,Dorridge Inf,Catering Provisions,D20000,30/05/2014,32143555,288.75,Brake Bros Foodservice Ltd,9490
Solihull MBC,Children & Education Services,Greswold J&I,Catering Provisions,D20000,16/05/2014,30059549,465.93,Brake Bros Foodservice Ltd,9490
Solihull MBC,Children & Education Services,Haslucks Grn Jnr,Catering Provisions,D20000,20/05/2014,30578549,10.90,Brake Bros Foodservice Ltd,9490
Solihull MBC,Children & Education Services,Haslucks Grn Jnr,Catering Provisions,D20000,30/05/2014,32145547,10.19,Brake Bros Foodservice Ltd,9490
Solihull MBC,Children & Education Services,Hatchford Community School,Catering Provisions,D20000,16/05/2014,30059549,33.74,Brake Bros Foodservice Ltd,9490
Solihull MBC,Children & Education Services,Hatchford Community School,Catering Provisions,D20000,20/05/2014,30642547,178.89,Brake Bros Foodservice Ltd,9490
Solihull MBC,Children & Education Services,Kingshurst Jnr,Catering Provisions,D20000,20/05/2014,30578549,189.22,Brake Bros Foodservice Ltd,9490
Solihull MBC,Children & Education Services,Kingshurst Jnr,Catering Provisions,D20000,21/05/2014,30882547,316.29,Brake Bros Foodservice Ltd,9490
Solihull MBC,Children & Education Services,Kingshurst Jnr,Catering Provisions,D20000,30/05/2014,32143555,11.40,Brake Bros Foodservice Ltd,9490
Solihull MBC,Children & Education Services,Kingshurst Jnr,Catering Provisions,D20000,30/05/2014,32145547,20.39,Brake Bros Foodservice Ltd,9490
Solihull MBC,Children & Education Services,Langley Jnr,Catering Provisions,D20000,16/05/2014,30059549,153.77,Brake Bros Foodservice Ltd,9490
Solihull MBC,Children & Education Services,Langley Jnr,Catering Provisions,D20000,20/05/2014,30642547,118.97,Brake Bros Foodservice Ltd,9490
Solihull MBC,Children & Education Services,Langley Jnr,Catering Provisions,D20000,20/05/2014,30658547,10.20,Brake Bros Foodservice Ltd,9490
Solihull MBC,Children & Education Services,Marston Grn Jnr,Catering Provisions,D20000,20/05/2014,30656547,217.21,Brake Bros Foodservice Ltd,9490
Solihull MBC,Children & Education Services,Mill Lodge J&I,Catering Provisions,D20000,16/05/2014,30059549,29.15,Brake Bros Foodservice Ltd,9490
Solihull MBC,Children & Education Services,Mill Lodge J&I,Catering Provisions,D20000,20/05/2014,30578549,75.98,Brake Bros Foodservice Ltd,9490
Solihull MBC,Children & Education Services,Mill Lodge J&I,Catering Provisions,D20000,20/05/2014,30656547,156.25,Brake Bros Foodservice Ltd,9490
Solihull MBC,Children & Education Services,Mill Lodge J&I,Catering Provisions,D20000,20/05/2014,30656547,48.75,Brake Bros Foodservice Ltd,9490
Solihull MBC,Children & Education Services,Oak Cottage J&I,Catering Provisions,D20000,20/05/2014,30656547,147.53,Brake Bros Foodservice Ltd,9490
Solihull MBC,Children & Education Services,Oak Cottage J&I,Catering Provisions,D20000,30/05/2014,32143555,193.80,Brake Bros Foodservice Ltd,9490
Solihull MBC,Children & Education Services,Oak Cottage J&I,Catering Provisions,D20000,30/05/2014,32143555,26.75,Brake Bros Foodservice Ltd,9490
Solihull MBC,Children & Education Services,Oak Cottage J&I,Catering Provisions,D20000,30/05/2014,32145547,36.80,Brake Bros Foodservice Ltd,9490
Solihull MBC,Children & Education Services,Peterbrook J&I,Catering Provisions,D20000,20/05/2014,30658547,239.47,Brake Bros Foodservice Ltd,9490
Solihull MBC,Children & Education Services,Shirley Heath Jnr,Catering Provisions,D20000,20/05/2014,30658547,208.52,Brake Bros Foodservice Ltd,9490
Solihull MBC,Children & Education Services,Streetsbrook Inf,Catering Provisions,D20000,20/05/2014,30642547,210.93,Brake Bros Foodservice Ltd,9490
Solihull MBC,Children & Education Services,Streetsbrook Inf,Catering Provisions,D20000,21/05/2014,30882547,5.52,Brake Bros Foodservice Ltd,9490
Solihull MBC,Children & Education Services,Ulverley J&I,Catering Provisions,D20000,16/05/2014,30059549,43.09,Brake Bros Foodservice Ltd,9490
Solihull MBC,Children & Education Services,Ulverley J&I,Catering Provisions,D20000,20/05/2014,30656547,196.11,Brake Bros Foodservice Ltd,9490
Solihull MBC,Children & Education Services,Ulverley J&I,Catering Provisions,D20000,20/05/2014,30656547,11.40,Brake Bros Foodservice Ltd,9490
Solihull MBC,Children & Education Services,Ulverley J&I,Catering Provisions,D20000,20/05/2014,30658547,42.16,Brake Bros Foodservice Ltd,9490
Solihull MBC,Children & Education Services,Ulverley J&I,Catering Provisions,D20000,30/05/2014,32145547,11.48,Brake Bros Foodservice Ltd,9490
Solihull MBC,Children & Education Services,Valley Inf,Catering Provisions,D20000,20/05/2014,30658547,182.67,Brake Bros Foodservice Ltd,9490
Solihull MBC,Children & Education Services,Valley Inf,Catering Provisions,D20000,30/05/2014,32143555,11.40,Brake Bros Foodservice Ltd,9490
Solihull MBC,Children & Education Services,Widney Jnr,Catering Provisions,D20000,30/05/2014,32145547,126.65,Brake Bros Foodservice Ltd,9490
Solihull MBC,Children & Education Services,Woodlands,Catering Provisions,D20000,16/05/2014,30059549,176.24,Brake Bros Foodservice Ltd,9490
Solihull MBC,Children & Education Services,Yorkswood J&I,Catering Provisions,D20000,30/05/2014,32143555,34.70,Brake Bros Foodservice Ltd,9490
Solihull MBC,Children & Education Services,Dickens Heath,Catering Provisions,D20000,30/05/2014,32145547,209.84,Brake Bros Foodservice Ltd,9490
Solihull MBC,Children & Education Services,Berkswell J&I,Catering Provisions,D20000,16/05/2014,30067547,153.37,Brake Bros Foodservice Ltd,9490
Solihull MBC,Children & Education Services,Bishop Wilson J&I,Catering Provisions,D20000,16/05/2014,30059549,29.15,Brake Bros Foodservice Ltd,9490
Solihull MBC,Children & Education Services,Bishop Wilson J&I,Catering Provisions,D20000,20/05/2014,30642547,13.77,Brake Bros Foodservice Ltd,9490
Solihull MBC,Children & Education Services,Bishop Wilson J&I,Catering Provisions,D20000,21/05/2014,30882547,168.50,Brake Bros Foodservice Ltd,9490
Solihull MBC,Children & Education Services,George Fentham J&I,Catering Provisions,D20000,16/05/2014,30067547,289.67,Brake Bros Foodservice Ltd,9490
Solihull MBC,Children & Education Services,George Fentham J&I,Catering Provisions,D20000,20/05/2014,30658547,181.26,Brake Bros Foodservice Ltd,9490
Solihull MBC,Children & Education Services,Meriden J&I,Catering Provisions,D20000,20/05/2014,30656547,18.70,Brake Bros Foodservice Ltd,9490
Solihull MBC,Children & Education Services,Meriden J&I,Catering Provisions,D20000,30/05/2014,32145547,74.32,Brake Bros Foodservice Ltd,9490
Solihull MBC,Children & Education Services,Alderbrook Academy,Catering Provisions,D20000,21/05/2014,30876547,26.92,Brake Bros Foodservice Ltd,9490
Solihull MBC,Children & Education Services,Alderbrook Academy,Catering Provisions,D20000,30/05/2014,32145547,102.36,Brake Bros Foodservice Ltd,9490
Solihull MBC,Children & Education Services,Langley Academy,Catering Provisions,D20000,20/05/2014,30658547,222.09,Brake Bros Foodservice Ltd,9490
Solihull MBC,Children & Education Services,Light Hall Academy,Catering Provisions,D20000,16/05/2014,30059549,250.08,Brake Bros Foodservice Ltd,9490
Solihull MBC,Children & Education Services,Light Hall Academy,Catering Provisions,D20000,16/05/2014,30067547,314.50,Brake Bros Foodservice Ltd,9490
Solihull MBC,Children & Education Services,Light Hall Academy,Catering Provisions,D20000,20/05/2014,30656547,346.33,Brake Bros Foodservice Ltd,9490
Solihull MBC,Children & Education Services,Light Hall Academy,Catering Provisions,D20000,20/05/2014,30658547,102.36,Brake Bros Foodservice Ltd,9490
Solihull MBC,Children & Education Services,Light Hall Academy,Catering Provisions,D20000,20/05/2014,30658547,102.36,Brake Bros Foodservice Ltd,9490
Solihull MBC,Children & Education Services,Lode Heath Academy,Catering Provisions,D20000,20/05/2014,30642547,48.73,Brake Bros Foodservice Ltd,9490
Solihull MBC,Children & Education Services,Lode Heath Academy,Catering Provisions,D20000,30/05/2014,32143555,380.80,Brake Bros Foodservice Ltd,9490
Solihull MBC,Children & Education Services,Lode Heath Academy,Catering Provisions,D20000,30/05/2014,32145547,5.72,Brake Bros Foodservice Ltd,9490
Solihull MBC,Children & Education Services,Lanchester Centre,Catering Provisions,D20000,20/05/2014,30658547,10.20,Brake Bros Foodservice Ltd,9490
Solihull MBC,Children & Education Services,Forest Oak,Catering Provisions,D20000,20/05/2014,30642547,54.40,Brake Bros Foodservice Ltd,9490
Solihull MBC,Children & Education Services,Forest Oak,Catering Provisions,D20000,20/05/2014,30658547,131.06,Brake Bros Foodservice Ltd,9490
Solihull MBC,Children & Education Services,Forest Oak,Catering Provisions,D20000,21/05/2014,30882547,258.11,Brake Bros Foodservice Ltd,9490
Solihull MBC,Children & Education Services,Reynolds Cross,Catering Provisions,D20000,30/05/2014,32143555,4.65,Brake Bros Foodservice Ltd,9490
Solihull MBC,Children & Education Services,Balsall Common Academy,Catering Provisions,D20000,16/05/2014,30059549,23.95,Brake Bros Foodservice Ltd,9490
Solihull MBC,Children & Education Services,Balsall Common Academy,Catering Provisions,D20000,20/05/2014,30642547,338.42,Brake Bros Foodservice Ltd,9490
Solihull MBC,Children & Education Services,Balsall Common Academy,Catering Provisions,D20000,20/05/2014,30658547,221.96,Brake Bros Foodservice Ltd,9490
Solihull MBC,Children & Education Services,Balsall Common Academy,Catering Provisions,D20000,20/05/2014,30658547,378.36,Brake Bros Foodservice Ltd,9490
Solihull MBC,Children & Education Services,Balsall Common Academy,Catering Provisions,D20000,21/05/2014,30882547,312.82,Brake Bros Foodservice Ltd,9490
Solihull MBC,Children & Education Services,Balsall Common Academy,Catering Provisions,D20000,21/05/2014,30882547,418.50,Brake Bros Foodservice Ltd,9490
Solihull MBC,Children & Education Services,Balsall Common Academy,Catering Provisions,D20000,30/05/2014,32143555,11.40,Brake Bros Foodservice Ltd,9490
Solihull MBC,Children & Education Services,Hockley Heath Academy,Catering Provisions,D20000,20/05/2014,30642547,233.37,Brake Bros Foodservice Ltd,9490
Solihull MBC,Children & Education Services,Marston Gn Inf Academy,Catering Provisions,D20000,20/05/2014,30578549,233.56,Brake Bros Foodservice Ltd,9490
Solihull MBC,Children & Education Services,Marston Gn Inf Academy,Catering Provisions,D20000,21/05/2014,30876547,45.55,Brake Bros Foodservice Ltd,9490
Solihull MBC,Children & Education Services,Marston Gn Inf Academy,Catering Provisions,D20000,21/05/2014,30882547,327.19,Brake Bros Foodservice Ltd,9490
Solihull MBC,Children & Education Services,Bentley Heath Academy,Catering Provisions,D20000,20/05/2014,30642547,187.98,Brake Bros Foodservice Ltd,9490
Solihull MBC,Children & Education Services,Bentley Heath Academy,Catering Provisions,D20000,30/05/2014,32145547,202.79,Brake Bros Foodservice Ltd,9490
Solihull MBC,Children & Education Services,Knowle Academy,Catering Provisions,D20000,30/05/2014,32143555,49.95,Brake Bros Foodservice Ltd,9490
Solihull MBC,Children & Education Services,Knowle Academy,Catering Provisions,D20000,30/05/2014,32145547,161.55,Brake Bros Foodservice Ltd,9490
Solihull MBC,Children & Education Services,St Patrick's Academy,Catering Provisions,D20000,20/05/2014,30658547,20.38,Brake Bros Foodservice Ltd,9490
Solihull MBC,Children & Education Services,Blossomfield Inf,Catering Provisions,D20000,20/05/2014,30578549,144.43,Brake Bros Foodservice Ltd,9490
Solihull MBC,Children & Education Services,Bosworth Wood J&I,Catering Provisions,D20000,21/05/2014,30882547,160.38,Brake Bros Foodservice Ltd,9490
Solihull MBC,Children & Education Services,Burnham Inf,Catering Provisions,D20000,16/05/2014,30059549,9.18,Brake Bros Foodservice Ltd,9490
Solihull MBC,Children & Education Services,Burnham Inf,Catering Provisions,D20000,20/05/2014,30642547,178.68,Brake Bros Foodservice Ltd,9490
Solihull MBC,Adult Social Care,LD - General Work Related,Catering Provisions,D20000,15/05/2014,29858547,238.66,Brake Bros Foodservice Ltd,9490
Solihull MBC,Children & Education Services,Civic Suite Catering,Catering Provisions,D20000,20/05/2014,30578549,228.06,Brake Bros Foodservice Ltd,9490
Solihull MBC,Children & Education Services,Civic Suite Catering,Catering Provisions,D20000,20/05/2014,30653547,176.75,Brake Bros Foodservice Ltd,9490
Solihull MBC,Children & Education Services,San Souci,Catering Provisions,D20000,20/05/2014,30578549,199.20,Brake Bros Foodservice Ltd,9490
Solihull MBC,Children & Education Services,San Souci,Catering Provisions,D20000,30/05/2014,32143555,171.64,Brake Bros Foodservice Ltd,9490
Solihull MBC,Children & Education Services,Our Lady Compassion J&I,Catering Provisions,D20000,20/05/2014,30656547,15.88,Brake Bros Foodservice Ltd,9490
Solihull MBC,Children & Education Services,Our Lady Compassion J&I,Catering Provisions,D20000,20/05/2014,30658547,20.39,Brake Bros Foodservice Ltd,9490
Solihull MBC,Children & Education Services,Our Lady Compassion J&I,Catering Provisions,D20000,21/05/2014,30882547,285.49,Brake Bros Foodservice Ltd,9490
Solihull MBC,Children & Education Services,Our Lady Compassion J&I,Catering Provisions,D20000,21/05/2014,30882547,40.06,Brake Bros Foodservice Ltd,9490
Solihull MBC,Children & Education Services,Our Lady Wayside J&I,Catering Provisions,D20000,20/05/2014,30578549,265.05,Brake Bros Foodservice Ltd,9490
Solihull MBC,Children & Education Services,Our Lady Wayside J&I,Catering Provisions,D20000,20/05/2014,30578549,135.30,Brake Bros Foodservice Ltd,9490
Solihull MBC,Children & Education Services,St Alphege Inf,Catering Provisions,D20000,30/05/2014,32143555,11.40,Brake Bros Foodservice Ltd,9490
Solihull MBC,Children & Education Services,St Alphege Jun,Catering Provisions,D20000,16/05/2014,30059549,231.23,Brake Bros Foodservice Ltd,9490
Solihull MBC,Children & Education Services,St Alphege Jun,Catering Provisions,D20000,20/05/2014,30578549,10.90,Brake Bros Foodservice Ltd,9490
Solihull MBC,Children & Education Services,St Alphege Jun,Catering Provisions,D20000,20/05/2014,30642547,178.19,Brake Bros Foodservice Ltd,9490
Solihull MBC,Children & Education Services,St Alphege Jun,Catering Provisions,D20000,20/05/2014,30658547,124.69,Brake Bros Foodservice Ltd,9490
Solihull MBC,Children & Education Services,St Andrew's J&I,Catering Provisions,D20000,20/05/2014,30578549,28.10,Brake Bros Foodservice Ltd,9490
Solihull MBC,Children & Education Services,St Augustine's J&I,Catering Provisions,D20000,16/05/2014,30059549,240.47,Brake Bros Foodservice Ltd,9490
Solihull MBC,Children & Education Services,St George & St Teresa J&I,Catering Provisions,D20000,20/05/2014,30642547,221.18,Brake Bros Foodservice Ltd,9490
Solihull MBC,Children & Education Services,St John Baptist,Catering Provisions,D20000,20/05/2014,30658547,198.08,Brake Bros Foodservice Ltd,9490
Solihull MBC,Children & Education Services,St John Baptist,Catering Provisions,D20000,21/05/2014,30882547,133.41,Brake Bros Foodservice Ltd,9490
Solihull MBC,Children & Education Services,St Margaret's,Catering Provisions,D20000,16/05/2014,30059549,9.18,Brake Bros Foodservice Ltd,9490
Solihull MBC,Children & Education Services,St Margaret's,Catering Provisions,D20000,20/05/2014,30656547,129.40,Brake Bros Foodservice Ltd,9490
Solihull MBC,Children & Education Services,St Margaret's,Catering Provisions,D20000,30/05/2014,32143555,90.15,Brake Bros Foodservice Ltd,9490
Solihull MBC,Children & Education Services,St Mary & Margaret J&I,Catering Provisions,D20000,20/05/2014,30578549,165.89,Brake Bros Foodservice Ltd,9490
Solihull MBC,Children & Education Services,Lyndon,Catering Provisions,D20000,30/05/2014,32143555,403.76,Brake Bros Foodservice Ltd,9490
Solihull MBC,Children & Education Services,Smithswood,Catering Provisions,D20000,16/05/2014,30059549,253.82,Brake Bros Foodservice Ltd,9490
Solihull MBC,Children & Education Services,Parkhall Academy Catering,Catering Provisions,D20000,16/05/2014,30059549,19.41,Brake Bros Foodservice Ltd,9490
Solihull MBC,Children & Education Services,Parkhall Academy Catering,Catering Provisions,D20000,20/05/2014,30578549,662.81,Brake Bros Foodservice Ltd,9490
Solihull MBC,Children & Education Services,Parkhall Academy Catering,Catering Provisions,D20000,30/05/2014,32143555,719.56,Brake Bros Foodservice Ltd,9490
Solihull MBC,Children & Education Services,Parkhall Academy Catering,Catering Provisions,D20000,30/05/2014,32143555,122.10,Brake Bros Foodservice Ltd,9490
Solihull MBC,Children & Education Services,Arden Academy Catering,Catering Provisions,D20000,16/05/2014,30059549,494.37,Brake Bros Foodservice Ltd,9490
Solihull MBC,Children & Education Services,Arden Academy Catering,Catering Provisions,D20000,16/05/2014,30059549,422.03,Brake Bros Foodservice Ltd,9490
Solihull MBC,Children & Education Services,Arden Academy Catering,Catering Provisions,D20000,16/05/2014,30067547,90.45,Brake Bros Foodservice Ltd,9490
Solihull MBC,Children & Education Services,Arden Academy Catering,Catering Provisions,D20000,20/05/2014,30578549,611.70,Brake Bros Foodservice Ltd,9490
Solihull MBC,Children & Education Services,Arden Academy Catering,Catering Provisions,D20000,20/05/2014,30578549,343.60,Brake Bros Foodservice Ltd,9490
Solihull MBC,Children & Education Services,Arden Academy Catering,Catering Provisions,D20000,30/05/2014,32143555,287.15,Brake Bros Foodservice Ltd,9490
Solihull MBC,Children & Education Services,John Henry Newman Caterg,Catering Provisions,D20000,16/05/2014,30059549,61.38,Brake Bros Foodservice Ltd,9490
Solihull MBC,Children & Education Services,John Henry Newman Caterg,Catering Provisions,D20000,20/05/2014,30578549,654.95,Brake Bros Foodservice Ltd,9490
Solihull MBC,Children & Education Services,John Henry Newman Caterg,Catering Provisions,D20000,20/05/2014,30578549,38.55,Brake Bros Foodservice Ltd,9490
Solihull MBC,Children & Education Services,John Henry Newman Caterg,Catering Provisions,D20000,20/05/2014,30656547,111.90,Brake Bros Foodservice Ltd,9490
Solihull MBC,Children & Education Services,John Henry Newman Caterg,Catering Provisions,D20000,20/05/2014,30658547,51.18,Brake Bros Foodservice Ltd,9490
Solihull MBC,Children & Education Services,John Henry Newman Caterg,Catering Provisions,D20000,30/05/2014,32143555,541.79,Brake Bros Foodservice Ltd,9490
Solihull MBC,Children & Education Services,John Henry Newman Caterg,Catering Provisions,D20000,30/05/2014,32143555,217.19,Brake Bros Foodservice Ltd,9490
Solihull MBC,Children & Education Services,John Henry Newman Caterg,Catering Provisions,D20000,30/05/2014,32143555,20.95,Brake Bros Foodservice Ltd,9490
Solihull MBC,Children & Education Services,John Henry Newman Caterg,Catering Provisions,D20000,30/05/2014,32145547,264.63,Brake Bros Foodservice Ltd,9490
Solihull MBC,Children & Education Services,Heart of England Academy,Catering Provisions,D20000,20/05/2014,30642547,235.35,Brake Bros Foodservice Ltd,9490
Solihull MBC,Children & Education Services,Heart of England Academy,Catering Provisions,D20000,20/05/2014,30642547,57.74,Brake Bros Foodservice Ltd,9490
Solihull MBC,Children & Education Services,Heart of England Academy,Catering Provisions,D20000,20/05/2014,30656547,464.50,Brake Bros Foodservice Ltd,9490
Solihull MBC,Children & Education Services,Heart of England Academy,Catering Provisions,D20000,20/05/2014,30658547,165.24,Brake Bros Foodservice Ltd,9490
Solihull MBC,Children & Education Services,Heart of England Academy,Catering Provisions,D20000,20/05/2014,30658547,34.12,Brake Bros Foodservice Ltd,9490
Solihull MBC,Children & Education Services,Heart of England Academy,Catering Provisions,D20000,30/05/2014,32145547,51.18,Brake Bros Foodservice Ltd,9490
Solihull MBC,Children & Education Services,Heart of England Academy,Catering Provisions,D20000,30/05/2014,32145547,3.90,Brake Bros Foodservice Ltd,9490
Solihull MBC,Children & Education Services,Woodlands,Catering Provisions,D20000,20/05/2014,30658547,207.47,Brake Bros Foodservice Ltd,9490
Solihull MBC,Children & Education Services,Yew Tree,Catering Provisions,D20000,20/05/2014,30656547,323.22,Brake Bros Foodservice Ltd,9490
Solihull MBC,Children & Education Services,Yew Tree,Catering Provisions,D20000,20/05/2014,30656547,7.00,Brake Bros Foodservice Ltd,9490
Solihull MBC,Children & Education Services,Yew Tree,Catering Provisions,D20000,30/05/2014,32145547,164.31,Brake Bros Foodservice Ltd,9490
Solihull MBC,Children & Education Services,Yorkswood J&I,Catering Provisions,D20000,20/05/2014,30642547,211.94,Brake Bros Foodservice Ltd,9490
Solihull MBC,Children & Education Services,Monkspath,Catering Provisions,D20000,16/05/2014,30059549,273.94,Brake Bros Foodservice Ltd,9490
Solihull MBC,Children & Education Services,Monkspath,Catering Provisions,D20000,20/05/2014,30658547,14.57,Brake Bros Foodservice Ltd,9490
Solihull MBC,Children & Education Services,Monkspath,Catering Provisions,D20000,21/05/2014,30882547,24.00,Brake Bros Foodservice Ltd,9490
Solihull MBC,Children & Education Services,Dickens Heath,Catering Provisions,D20000,20/05/2014,30656547,495.11,Brake Bros Foodservice Ltd,9490
Solihull MBC,Children & Education Services,Dickens Heath,Catering Provisions,D20000,30/05/2014,32145547,118.09,Brake Bros Foodservice Ltd,9490
Solihull MBC,Children & Education Services,Berkswell J&I,Catering Provisions,D20000,16/05/2014,30059549,186.15,Brake Bros Foodservice Ltd,9490
Solihull MBC,Children & Education Services,Bishop Wilson J&I,Catering Provisions,D20000,16/05/2014,30067547,199.31,Brake Bros Foodservice Ltd,9490
Solihull MBC,Children & Education Services,Bishop Wilson J&I,Catering Provisions,D20000,30/05/2014,32143555,245.81,Brake Bros Foodservice Ltd,9490
Solihull MBC,Children & Education Services,Lady K Leveson J&I,Catering Provisions,D20000,20/05/2014,30656547,22.80,Brake Bros Foodservice Ltd,9490
Solihull MBC,Children & Education Services,Balsall Common Academy,Catering Provisions,D20000,20/05/2014,30578549,241.47,Brake Bros Foodservice Ltd,9490
Solihull MBC,Children & Education Services,Balsall Common Academy,Catering Provisions,D20000,20/05/2014,30658547,50.98,Brake Bros Foodservice Ltd,9490
Solihull MBC,Children & Education Services,Balsall Common Academy,Catering Provisions,D20000,21/05/2014,30876547,218.39,Brake Bros Foodservice Ltd,9490
Solihull MBC,Children & Education Services,Marston Gn Inf Academy,Catering Provisions,D20000,20/05/2014,30656547,152.94,Brake Bros Foodservice Ltd,9490
Solihull MBC,Children & Education Services,Marston Gn Inf Academy,Catering Provisions,D20000,20/05/2014,30658547,301.34,Brake Bros Foodservice Ltd,9490
Solihull MBC,Children & Education Services,Bentley Heath Academy,Catering Provisions,D20000,21/05/2014,30876547,20.55,Brake Bros Foodservice Ltd,9490
Solihull MBC,Children & Education Services,Bentley Heath Academy,Catering Provisions,D20000,21/05/2014,30882547,55.51,Brake Bros Foodservice Ltd,9490
Solihull MBC,Children & Education Services,Knowle Academy,Catering Provisions,D20000,16/05/2014,30059549,23.95,Brake Bros Foodservice Ltd,9490
Solihull MBC,Children & Education Services,St Patrick's Academy,Catering Provisions,D20000,20/05/2014,30658547,136.05,Brake Bros Foodservice Ltd,9490
Solihull MBC,Children & Education Services,Blossomfield Inf,Catering Provisions,D20000,16/05/2014,30059549,175.28,Brake Bros Foodservice Ltd,9490
Solihull MBC,Children & Education Services,Blossomfield Inf,Catering Provisions,D20000,20/05/2014,30658547,272.83,Brake Bros Foodservice Ltd,9490
Solihull MBC,Children & Education Services,Bosworth Wood J&I,Catering Provisions,D20000,20/05/2014,30642547,102.86,Brake Bros Foodservice Ltd,9490
Solihull MBC,Children & Education Services,Bosworth Wood J&I,Catering Provisions,D20000,20/05/2014,30658547,126.69,Brake Bros Foodservice Ltd,9490
Solihull MBC,Children & Education Services,Bosworth Wood J&I,Catering Provisions,D20000,30/05/2014,32145547,102.84,Brake Bros Foodservice Ltd,9490
Solihull MBC,Children & Education Services,Burnham Inf,Catering Provisions,D20000,21/05/2014,30882547,211.50,Brake Bros Foodservice Ltd,9490
Solihull MBC,Children & Education Services,C Bromwich Jnr,Catering Provisions,D20000,20/05/2014,30578549,231.64,Brake Bros Foodservice Ltd,9490
Solihull MBC,Children & Education Services,C Bromwich Inf,Catering Provisions,D20000,20/05/2014,30578549,53.15,Brake Bros Foodservice Ltd,9490
Solihull MBC,Children & Education Services,C Bromwich Inf,Catering Provisions,D20000,21/05/2014,30882547,50.08,Brake Bros Foodservice Ltd,9490
Solihull MBC,Children & Education Services,Chapelfields J&I,Catering Provisions,D20000,30/05/2014,32143555,56.70,Brake Bros Foodservice Ltd,9490
Solihull MBC,Children & Education Services,Cheswick Green,Catering Provisions,D20000,16/05/2014,30059549,9.18,Brake Bros Foodservice Ltd,9490
Solihull MBC,Children & Education Services,Cheswick Green,Catering Provisions,D20000,20/05/2014,30642547,23.32,Brake Bros Foodservice Ltd,9490
Solihull MBC,Children & Education Services,Cheswick Green,Catering Provisions,D20000,21/05/2014,30882547,40.48,Brake Bros Foodservice Ltd,9490
Solihull MBC,Children & Education Services,Coppice Jnr,Catering Provisions,D20000,20/05/2014,30658547,20.39,Brake Bros Foodservice Ltd,9490
Solihull MBC,Children & Education Services,Coppice Jnr,Catering Provisions,D20000,30/05/2014,32145547,137.45,Brake Bros Foodservice Ltd,9490
Solihull MBC,Children & Education Services,Damson Wood Inf,Catering Provisions,D20000,21/05/2014,30882547,71.29,Brake Bros Foodservice Ltd,9490
Solihull MBC,Children & Education Services,Damson Wood Inf,Catering Provisions,D20000,30/05/2014,32145547,93.24,Brake Bros Foodservice Ltd,9490
Solihull MBC,Children & Education Services,Dorridge Jnr,Catering Provisions,D20000,16/05/2014,30059549,172.18,Brake Bros Foodservice Ltd,9490
Solihull MBC,Children & Education Services,Dorridge Jnr,Catering Provisions,D20000,20/05/2014,30658547,262.09,Brake Bros Foodservice Ltd,9490
Solihull MBC,Children & Education Services,Dorridge Jnr,Catering Provisions,D20000,21/05/2014,30882547,347.18,Brake Bros Foodservice Ltd,9490
Solihull MBC,Children & Education Services,Dorridge Jnr,Catering Provisions,D20000,21/05/2014,30882547,485.95,Brake Bros Foodservice Ltd,9490
Solihull MBC,Children & Education Services,Dorridge Jnr,Catering Provisions,D20000,30/05/2014,32145547,288.95,Brake Bros Foodservice Ltd,9490
Solihull MBC,Children & Education Services,Dorridge Inf,Catering Provisions,D20000,20/05/2014,30656547,84.30,Brake Bros Foodservice Ltd,9490
Solihull MBC,Children & Education Services,Greswold J&I,Catering Provisions,D20000,30/05/2014,32145547,30.59,Brake Bros Foodservice Ltd,9490
Solihull MBC,Children & Education Services,Haslucks Grn Jnr,Catering Provisions,D20000,20/05/2014,30642547,122.18,Brake Bros Foodservice Ltd,9490
Solihull MBC,Children & Education Services,Hatchford Community School,Catering Provisions,D20000,16/05/2014,30059549,390.74,Brake Bros Foodservice Ltd,9490
Solihull MBC,Children & Education Services,Hatchford Community School,Catering Provisions,D20000,21/05/2014,30882547,430.29,Brake Bros Foodservice Ltd,9490
Solihull MBC,Children & Education Services,Kingshurst Jnr,Catering Provisions,D20000,20/05/2014,30642547,208.41,Brake Bros Foodservice Ltd,9490
Solihull MBC,Children & Education Services,Langley Jnr,Catering Provisions,D20000,20/05/2014,30578549,195.01,Brake Bros Foodservice Ltd,9490
Solihull MBC,Children & Education Services,Langley Jnr,Catering Provisions,D20000,21/05/2014,30876547,232.36,Brake Bros Foodservice Ltd,9490
Solihull MBC,Children & Education Services,Langley Jnr,Catering Provisions,D20000,30/05/2014,32145547,16.66,Brake Bros Foodservice Ltd,9490
Solihull MBC,Children & Education Services,Peterbrook J&I,Catering Provisions,D20000,30/05/2014,32145547,249.14,Brake Bros Foodservice Ltd,9490
Solihull MBC,Children & Education Services,Sharmans Cross Jnr,Catering Provisions,D20000,30/05/2014,32143555,344.52,Brake Bros Foodservice Ltd,9490
Solihull MBC,Children & Education Services,Sharmans Cross Jnr,Catering Provisions,D20000,30/05/2014,32143555,20.65,Brake Bros Foodservice Ltd,9490
Solihull MBC,Children & Education Services,Sharmans Cross Jnr,Catering Provisions,D20000,30/05/2014,32145547,201.68,Brake Bros Foodservice Ltd,9490
Solihull MBC,Children & Education Services,Shirley Heath Jnr,Catering Provisions,D20000,16/05/2014,30059549,24.76,Brake Bros Foodservice Ltd,9490
Solihull MBC,Children & Education Services,Shirley Heath Jnr,Catering Provisions,D20000,20/05/2014,30658547,20.40,Brake Bros Foodservice Ltd,9490
Solihull MBC,Children & Education Services,Shirley Heath Jnr,Catering Provisions,D20000,30/05/2014,32145547,20.40,Brake Bros Foodservice Ltd,9490
Solihull MBC,Children & Education Services,Streetsbrook Inf,Catering Provisions,D20000,20/05/2014,30658547,16.66,Brake Bros Foodservice Ltd,9490
Solihull MBC,Children & Education Services,Ulverley J&I,Catering Provisions,D20000,20/05/2014,30578549,157.40,Brake Bros Foodservice Ltd,9490
Solihull MBC,Children & Education Services,Valley Inf,Catering Provisions,D20000,16/05/2014,30059549,13.94,Brake Bros Foodservice Ltd,9490
Solihull MBC,Children & Education Services,Valley Inf,Catering Provisions,D20000,20/05/2014,30656547,315.18,Brake Bros Foodservice Ltd,9490
Solihull MBC,Children & Education Services,Valley Inf,Catering Provisions,D20000,20/05/2014,30658547,15.03,Brake Bros Foodservice Ltd,9490
Solihull MBC,Children & Education Services,Valley Inf,Catering Provisions,D20000,30/05/2014,32143555,215.66,Brake Bros Foodservice Ltd,9490
Solihull MBC,Children & Education Services,Valley Inf,Catering Provisions,D20000,30/05/2014,32143555,32.37,Brake Bros Foodservice Ltd,9490
Solihull MBC,Children & Education Services,Valley Inf,Catering Provisions,D20000,30/05/2014,32145547,10.20,Brake Bros Foodservice Ltd,9490
Solihull MBC,Children & Education Services,Windy Arbour J&I,Catering Provisions,D20000,16/05/2014,30059549,42.05,Brake Bros Foodservice Ltd,9490
Solihull MBC,Children & Education Services,Windy Arbour J&I,Catering Provisions,D20000,20/05/2014,30578549,253.87,Brake Bros Foodservice Ltd,9490
Solihull MBC,Children & Education Services,Windy Arbour J&I,Catering Provisions,D20000,21/05/2014,30882547,14.57,Brake Bros Foodservice Ltd,9490
Solihull MBC,Children & Education Services,Windy Arbour J&I,Catering Provisions,D20000,21/05/2014,30882547,335.18,Brake Bros Foodservice Ltd,9490
Solihull MBC,Children & Education Services,Our Lady Wayside J&I,Catering Provisions,D20000,30/05/2014,32145547,276.67,Brake Bros Foodservice Ltd,9490
Solihull MBC,Children & Education Services,St Alphege Inf,Catering Provisions,D20000,20/05/2014,30658547,31.87,Brake Bros Foodservice Ltd,9490
Solihull MBC,Children & Education Services,St Alphege Inf,Catering Provisions,D20000,30/05/2014,32143555,141.92,Brake Bros Foodservice Ltd,9490
Solihull MBC,Children & Education Services,St Alphege Inf,Catering Provisions,D20000,30/05/2014,32145547,219.56,Brake Bros Foodservice Ltd,9490
Solihull MBC,Children & Education Services,St Alphege Jun,Catering Provisions,D20000,16/05/2014,30059549,9.18,Brake Bros Foodservice Ltd,9490
Solihull MBC,Children & Education Services,St Alphege Jun,Catering Provisions,D20000,21/05/2014,30876547,2.84,Brake Bros Foodservice Ltd,9490
Solihull MBC,Children & Education Services,St Andrew's J&I,Catering Provisions,D20000,16/05/2014,30059549,9.38,Brake Bros Foodservice Ltd,9490
Solihull MBC,Children & Education Services,St Andrew's J&I,Catering Provisions,D20000,30/05/2014,32145547,188.10,Brake Bros Foodservice Ltd,9490
Solihull MBC,Children & Education Services,St Anne's J&I,Catering Provisions,D20000,20/05/2014,30656547,42.80,Brake Bros Foodservice Ltd,9490
Solihull MBC,Children & Education Services,St Anne's J&I,Catering Provisions,D20000,20/05/2014,30658547,266.67,Brake Bros Foodservice Ltd,9490
Solihull MBC,Children & Education Services,St Anthony's J&I,Catering Provisions,D20000,16/05/2014,30059549,189.46,Brake Bros Foodservice Ltd,9490
Solihull MBC,Children & Education Services,St Anthony's J&I,Catering Provisions,D20000,20/05/2014,30642547,113.18,Brake Bros Foodservice Ltd,9490
Solihull MBC,Children & Education Services,St Anthony's J&I,Catering Provisions,D20000,30/05/2014,32145547,84.49,Brake Bros Foodservice Ltd,9490
Solihull MBC,Children & Education Services,St Augustine's J&I,Catering Provisions,D20000,16/05/2014,30067547,142.03,Brake Bros Foodservice Ltd,9490
Solihull MBC,Children & Education Services,St Augustine's J&I,Catering Provisions,D20000,20/05/2014,30656547,173.61,Brake Bros Foodservice Ltd,9490
Solihull MBC,Children & Education Services,St Augustine's J&I,Catering Provisions,D20000,20/05/2014,30656547,7.67,Brake Bros Foodservice Ltd,9490
Solihull MBC,Children & Education Services,St Augustine's J&I,Catering Provisions,D20000,20/05/2014,30658547,228.69,Brake Bros Foodservice Ltd,9490
Solihull MBC,Children & Education Services,St Augustine's J&I,Catering Provisions,D20000,21/05/2014,30882547,30.46,Brake Bros Foodservice Ltd,9490
Solihull MBC,Children & Education Services,St George & St Teresa J&I,Catering Provisions,D20000,16/05/2014,30059549,136.44,Brake Bros Foodservice Ltd,9490
Solihull MBC,Children & Education Services,St George & St Teresa J&I,Catering Provisions,D20000,21/05/2014,30882547,189.21,Brake Bros Foodservice Ltd,9490
Solihull MBC,Children & Education Services,St John Baptist,Catering Provisions,D20000,30/05/2014,32143555,181.28,Brake Bros Foodservice Ltd,9490
Solihull MBC,Children & Education Services,St Margaret's,Catering Provisions,D20000,20/05/2014,30642547,103.06,Brake Bros Foodservice Ltd,9490
Solihull MBC,Children & Education Services,Smithswood,Catering Provisions,D20000,20/05/2014,30656547,414.30,Brake Bros Foodservice Ltd,9490
Solihull MBC,Children & Education Services,Smithswood,Catering Provisions,D20000,20/05/2014,30658547,170.78,Brake Bros Foodservice Ltd,9490
Solihull MBC,Children & Education Services,Parkhall Academy Catering,Catering Provisions,D20000,16/05/2014,30059549,42.48,Brake Bros Foodservice Ltd,9490
Solihull MBC,Children & Education Services,Arden Academy Catering,Catering Provisions,D20000,16/05/2014,30067547,32.69,Brake Bros Foodservice Ltd,9490
